{"text_format":"3","workbook":"xlsx","n_sheets":7,"sheets":["I1_Explications","E1_Données de projet","E2_Prix de la chaleur","E3_Consommateurs","B1_Calculs","A1_Résultats","A2_Données VAN"],"not_rendered":{"charts":6,"images":2,"defined_names":280,"comments":1},"read":"whole","date_system":"1900"}

{"sheet":"I1_Explications","index":0,"n_rows":219,"n_cols":2,"rows_kept":219}
[null,"Explications au sujet du modèle de rentabilité de QM Chauffages au bois"]
[null,"Version: 5.1 (mai 2022)"]
[null,"Explications"]
[null,"Généralités au sujet de cet outil:\nExclusion de responsabilité\nMalgré tout le soin apporté à l’élaboration de cet outil Excel, ses concepteurs ne peuvent donner aucune garantie concernant les résultats obtenus et les conclusions qui en sont tirées. Les simplifications et le mode de calcul retenus peuvent entraîner certaines «erreurs». L’outil ne distingue p. ex. pas si les paiements sont effectués en début ou en fin d’année, étant donné qu’une année est considérée comme une période globale.\nAttention: Bien que l’outil affiche des messages d’alerte en cas de non respect de diverses limites de saisie, il n’est pas exclu que la saisie de valeurs erronées conduise à l’obtention d’un résultat final également erroné. Il appartient à l’utilisateur de l’outil d’évaluer de façon appropriée les conséquences d’un certain nombre d’hypothèses.\n\nFormules:\nLes feuilles de calcul de ce classeur sont protégées en écriture, mais l’ensemble des formules et calculs sont néanmoins visibles. Notez bien que toute modification peut entraîner des erreurs en d’autres emplacements et, par conséquent, à des assertions erronées de l’outil.\n\nAnalyse de sensibilité / calculs de simulation:\nEn faisant varier les paramètres de saisie et en enregistrant les résultats individuels des \ncalculs de rentabilité, il est possible d’obtenir des informations concernant l’influence des \nparamètres individuels sur l’évolution économique du projet.\n\nFeed-back:\nL’équipe de QM Chauffages au bois sera ravie de toute suggestion d’amélioration ou idée concernant \ncet outil, que vous lui transmettrez à l’adresse info@qmholzheizwerke.ch"]
[null,"Remerciements\nLe présent outil a été élaboré sur mandat de SuisseEnergie."]
[null,"Onglets: Le fichier est divisé en plusieurs onglets\nDénomination: les dénominations des onglets distinguent également leur principale fonction:\nI = Information (feuille comportant des informations et des explications sur l’utilisation du fichier)\nE = Feuille de saisie (saisie de données requises pour les calculs)\nB = Calcul\nA = Feuille de sortie (présentation de résultats sélectionnés en vue de les imprimer ou d’exporter les données)"]
[100,"Onglet «E1_Données de projet»\nSaisie de données de projet, délais, coûts d’investissement, subventions, prêts, frais d’exploitation, etc."]
[101,"Les champs de saisie sont affichés sur fond jaune clair."]
[102,"Les champs de saisie avec des valeurs standard et/ou des calculs sont affichés sur fond bleu clair.\nNotez bien que toute modification de ces champs peut entraîner des erreurs en d’autres emplacements et, par conséquent, à des assertions erronées de l’outil."]
[103,"Champs de saisie dans lesquels peuvent être reprises des données issues du fichier Excel QMCB Relevé de situation.\nRemarque: pour éviter de copier les formules, utilisez la fonction «Coller - Valeurs»."]
[104,"Champs de résultat dont le contenu peut être copié et inséré dans un fichier externe\nCes champs sont modifiables. Notez bien que toute modification de ces champs peut entraîner des erreurs en d’autres emplacements et, par conséquent, à des résultats erronés."]
[105,"Tous les montants en CHF doivent être indiqués hors TVA."]
[106,"Champ de saisie pour le nom et la désignation du projet et/ou de la variante"]
[107,"Personne en charge de l’édition du modèle de rentabilité"]
[108,"Avertissements: Un court texte explicatif apparaît dans le champ Avertissements en cas de saisie de valeurs non plausibles (p. ex. déperditions du réseau = 80 % ou similaire)"]
[110,"Chapitre Quantité de chaleur, déperditions du réseau et informations générales sur le projet"]
[111,"Quantité de chaleur vendue en MWh pour un degré de consommation de chaleur de 100 %. (Calculée à partir de la somme des consommateurs de chaleur de l’onglet «Consommateurs»)"]
[112,"Déperditions du réseau de chaleur à distance (exigence QMCB ≤ 10 %). Rapport entre la différence entre chaleur produite et vendue d’une part et la quantité de chaleur vendue d’autre part. Pour les réseaux en cours d’extension, il convient d’indiquer au mieux une déperdition moyenne."]
[113,"Diminution annuelle des besoins de chaleur. Diminution annuelle moyenne des besoins de chaleur par des mesures d’efficacité (p.ex. Amélioration de l’enveloppe des bâtiments, de l’isolation) des consommateurs de chaleur depuis la mise en service. Cette valeur est prise en compte dans les besoins totaux de chaleur."]
[114,"Année de base pour les investissements: utilisée comme année 0 pour les calculs de rentabilité."]
[115,"Année de première fourniture de chaleur: année à partir de laquelle des recettes ont été générées. (Reprise de la première année de fourniture de chaleur dans l’onglet «Consommateurs»)."]
[120,"Saisie des prix de l’énergie, frais d’exploitation et autres charges (dépenses importantes pour le projet)"]
[121,"Prix d’achat du combustible biomasse en CHF/MWh d’énergie utile (mesurée sur le compteur de chaleur)"]
[122,"Pourcentage de chaleur vendue générée à partir de biomasse.\n100 % correspond à une installation monovalente, 85 % indique par exemple que 15 % des besoins annuels de chaleur sont fournis par une chaudière d’appoint à combustible fossile."]
[123,"Pourcentage de chaleur vendue produite à base d’énergie fossile: calculé à partir de la proportion de chaleur issue de la biomasse (point 122)."]
[124,"Prix du combustible fossile utilisé (mazout ou gaz naturel) en CHF/MWh (d’énergie primaire). Si un combustible non fossile est utilisé pour couvrir les pointes de charge, il doit également être employé ici."]
[125,"Taux d’utilisation annuel de la chaudière d’appoint à combustible fossile.\nSi une chaudière au gaz est intégrée pour couvrir les pointes de charge et que le prix en MWho est indiqué sous le point 124, il faut également tenir compte de la conversion de PCs en PCi (0.9)."]
[126,"Part d’énergie auxiliaire (électricité) par rapport à la quantité de chaleur produite. Cette donnée est requise aussi bien pour la production que pour la distribution de chaleur.\nRecommandation QMCB: la production de chaleur nécessite 1 - 1,5 % de la chaleur produite, la distribution de la chaleur consomme 0,5 - 1 % de la chaleur distribuée."]
[127,"Prix de l’électricité en CHF/kWh (y compris part des frais de raccordement, etc.) (Recommandation si le chiffre est inconnu: 0,2 CHF/kWhel)."]
[130,"Coûts d'exploitation : frais de personnel pour l'utilisation, le nettoyage, l'entretien, sans les frais administratifs.\nValeur prescrite = valeur indicative QMH PHB : 1,5% des coûts d'investissement pour la production de chaleur (pts 151-153)"]
[131,"Frais d'exploitation externes pour le ramonage, la mesure des émissions, les contrats de service, etc. (élimination des cendres si elle n'est pas comprise dans le prix du combustible)"]
[132,"Frais d’entretien: pièces détachées, réparations (pourcentage de l’investissement selon QMCB, voir à partir du point 140)."]
[135,"Frais annuels de loyer, de bail ou de propriété (introduire les frais effectifs)"]
[136,"Autres frais annuels (administration, assurance, impôts, site internet, téléphonie, taxes publiques, ......, etc.)                                                                                                                                               Valeur par défaut : 1% du coûts d'investissement total (Valeur indicative QMBois Manuel de planification : 0.5–1.5%)"]
[137,"Augmentation annuelle des prix en %: il est possible de saisir une valeur globale servant de prescription pour les hausses de prix individuelles dans l’onglet B1_Calculs (point 505)."]
[138,"Taux d'intérêt nominal : taux d'intérêt nominal actuel"]
[139,"Taux d'intérêt réel : calculé à partir du taux d'intérêt nominal (138) et de l'inflation moyenne (137)"]
[140,"Structure de coûts"]
[141,"Colonne de saisie des coûts d’investissement"]
[142,"Frais d’entretien spéciaux: pourcentage des coûts d’investissement (voir aussi Manuel de planification QMCB)"]
[143,"Durée d’amortissement des éléments de l’installation (voir aussi Manuel de planification QMCB)"]
[150,"Coûts d’investissement"]
[151,"Coûts de construction de la centrale de chauffe et de l’entrepôt à combustible"]
[152,"Coûts des éléments de l’installation spécifiques au bois (chaudière complète)"]
[153,"Coûts des éléments de l’installation spécifiques à la charge de pointe (chaudière à combustible fossile)"]
[154,"Coûts des installations de chauffage, ventilation, climatisation, sanitaire et électriques (CVCSE)"]
[155,"Coûts du réseau de chaleur, y compris génie civil"]
[156,"Coûts pour les compteurs de chaleur et la régulation des consommateurs (propriété du réseau de chaleur), y compris les compteurs de chaleur des générateurs. Ce poste implique généralement des investissements de remplacement après une quinzaine d’années."]
[157,"Coûts liés aux stations de transfert de chaleur au niveau des consommateurs.\nPart client, généralement remboursée au réseau de chaleur avec les frais uniques de raccordement (point 325). Ce poste n’implique généralement pas d’investissements de remplacement pour le réseau de chaleur.\nCe poste n’est pas inclus dans le calcul de la valeur résiduelle!"]
[158,"Frais de planification et d’imprévus (durée d’amortissement moyenne).\nCe poste n’est pas inclus dans le calcul de la valeur résiduelle!"]
[159,"Investissement total calculé pour le projet et la durée moyenne d’amortissement"]
[160,"Répartition des investissements sur max. trois ans en % de l’investissement total (point 159).\nRemarque: les frais d’entretien (point 124) sont échelonnés selon la même répartition. En cas de différence entre les frais d’entretien effectifs et les dépenses figurant au point 558, les pourcentages du point 142 doivent être adaptés en conséquence."]
[161,"Étape 1: L’année de démarrage du projet (point 114) est toujours l’année des premiers investissements: ce champ ne peut pas être modifié ; les investissements non effectués dans les années des points 162 + 163 sont réalisés durant l’année de démarrage.\n(Formule: 100 % de l’investissement total - parts d’investissement des points 162+163)"]
[162,"Étape 2: Année et part d’investissement de la deuxième étape. Par défaut, l’année suivant l’année de démarrage est sélectionnée.\nCe champ peut être modifié.\nAttention: toute frappe dans ce champ supprime la formule!"]
[163,"Étape 3: Année et part d’investissement de la troisième étape. Par défaut, la deuxième année suivant l’année de démarrage est sélectionnée.\nCe champ peut être modifié.\nAttention: toute frappe dans ce champ supprime la formule!"]
[165,"Informations sur les prêts et les crédits de financement du projet\nDeux crédits / prêts peuvent être saisis."]
[166,"Total du montant financé par des fonds externes"]
[167,"Durée du crédit ; ce calcul suppose des mensualités constantes sur toute la durée. La durée du crédit bancaire devrait être choisie aussi longue que possible (idéalement 20 voire 25 ans) et une possibilité de remboursement anticipé sans frais devrait être prévue dans le contrat. Ainsi, la mensualité due reste aussi faible que possible et, en cas de hausse de ses recettes, l’exploitant peut effectuer des versements anticipés et amortir son crédit plus rapidement.\nLes crédits à durée indéterminée sans mensualités (p. ex. les hypothèques sans amortissement) sont saisies avec une durée de «0»."]
[168,"Année de début du prêt. C’est l’année de déblocage du prêt pour le projet et où la première mensualité est due. Le paiement des intérêts intervient toujours l’année suivante."]
[169,"Taux d’intérêt annuel brut du crédit (avant déduction de l’impôt anticipé) sur l’ensemble de sa durée (taux d’intérêt moyen)"]
[170,"Informations sur les subventions"]
[171,"Deux «packs» de subventions uniques (p. ex. subvention cantonale, Fondation pour le climat, Aide Suisse aux Montagnards, etc.) avec des années de versement différentes peuvent être saisis."]
[172,"Subvention unique du premier pack"]
[173,"Année de versement de la subvention du premier pack. Il est conseillé d’intégrer le versement au calcul au plus tôt après la mise en service et idéalement à l’issue de la première année d’exploitation. Un retard de versement entraîne des intérêts supplémentaires pour les fonds externes nécessaires dans l’intervalle."]
[174,"Subvention unique du deuxième pack"]
[175,"Année de versement de la subvention du deuxième pack"]
[176,"Parallèlement aux subventions uniques, il est également possible de saisir une subvention annuelle temporaire (p. ex. KliK)"]
[177,"Versement annuel moyen durant la période subventionnée."]
[178,"Durée des subventions annuelles (nombre de versements)"]
[179,"Année du premier versement. Merci de tenir compte de la durée de traitement pour le calcul des versements annuels. Il est conseillé de compter sur un premier versement au plus tôt l’année suivant la mise en service."]
[180,"Valeurs calculées: valeurs numériques pouvant être calculées à partir des informations saisies plus haut et servant au contrôle de saisie et à la représentation du calcul des quantités d’énergie."]
[181,"Quantité annuelle maximale de chaleur produite: calculée d’après la quantité annuelle de chaleur vendue (point 111) et les déperditions du réseau (point 112)"]
[182,"Quantité de chaleur utile produite avec de la biomasse: calculée d’après la part de biomasse (point 122)"]
[183,"Besoin d’énergie primaire fossile pour la couverture des pointes: calculé d’après la part de combustible fossile (point 123) et le taux d’utilisation annuel de la chaudière d’appoint (point 125)."]
[184,"Énergie électrique requise pour le fonctionnement de l’installation: pourcentage calculé d’après la quantité de chaleur totale (point 181) et la part d’énergie auxiliaire (point 126)."]
[185,"Les coûts énergétiques annuels de la biomasse sont calculés d’après l’énergie utile de la biomasse (point 182) et les coûts de combustible pour la biomasse (point 121)"]
[186,"Les coûts annuels d’achat de l’énergie fossile de pointe sont calculés d’après l’énergie primaire fossile requise (point 183) et les coûts d’achat de l’énergie fossile (point 124)."]
[187,"Consommation électrique pour l’énergie auxiliaire: calculée d’après le besoin d’énergie auxiliaire (point 184) et le prix de l’électricité (point 127). "]
[190,"Coût d’investissement global du projet (centrale de chauffe, réseau de chaleur, stations de transfert de chaleur, etc.)"]
[191,"Montant total des subventions: calculé d’après les subventions uniques (points 172/174), les subventions annuelles (point 177) et la durée de versement de ces dernières (point 178)"]
[192,"Coûts annuels = coûts annuels moyens sur la durée du projet\nCoûts de production de chaleur = coûts spécifiques par kWh de chaleur utile fournie, calculés à partir des coûts annuels divisés par la chaleur utile fournie (pt 111)"]
[193,"Coûts annuels = coûts annuels moyens sur la durée du projet\nCoûts de production de chaleur = coûts spécifiques par kWh de chaleur utile fournie, calculés à partir des coûts annuels divisés par la chaleur utile fournie (pt 111)"]
[194,"Coûts annuels calculés à partir de la capitalisation des coûts d'investissement pour la distribution de chaleur, y compris les stations domestiques, composée des points 155-157 et de 50% des coûts de planification (point 158), du taux d'intérêt réel et de la durée d'amortissement."]
[195,"Frais d'entretien et de maintenance pour la production de chaleur\nFrais d'entretien calculés à partir des investissements des pts 151-154 + 50% du pt 158 et des frais d'entretien spécifiques (pt 142)\nFrais d'entretien calculés à partir de la part des frais d'entretien pour la production de chaleur dans les frais d'entretien totaux des pts 130, 131, 135 et 136."]
[196,"Frais d'entretien et de maintenance pour la distribution de chaleur\nFrais d'entretien calculés à partir des investissements des pts 155-157 + 50% du pt 158 et des frais d'entretien spécifiques (pt 142)\nFrais d'entretien calculés à partir de la part des frais d'entretien pour la distribution de chaleur dans les frais d'entretien totaux des pts 130, 131, 135 et 136."]
[197,"Coûts annuels de l'énergie calculés à partir des pts 185-187, respectivement en tenant compte de la subvention incluant pt 199"]
[198,"Somme des coûts annuels et des coûts de production de chaleur des pts 193-197, respectivement en tenant compte de la subvention incluant pt 199"]
[199,"Réduction des coûts annuels par suite des subventions. La somme des subventions des pts 172, 174 et 177 x 178 capitalisés pour une durée de 25 ans."]
[]
[200,"Onglet «E2_Prix de la chaleur»\nInformations sur les prix de la chaleur et la tarification"]
[206,"Champ pour le nom et la désignation du projet et/ou de la variante: repris du point 106."]
[207,"Personne en charge: repris du point 107"]
[210,"Structure tarifaire: des prix distincts peuvent être saisis pour quatre niveaux de tarifs"]
[211,"Niveau tarifaire 1: p. ex. petits clients avec une consommation de chaleur et une puissance requise réduites.\nSaisir un nom pour le niveau tarifaire 1 dans le champ correspondant.\nLe champ «% de la quantité de chaleur» indique la part de la quantité de chaleur de ce niveau tarifaire, calculée à l’aide des informations de l’onglet E3_Consommateurs."]
[212,"Prix de base du niveau tarifaire 1: prix de base en CHF par an et par kW de puissance thermique souscrite conformément au contrat de fourniture de chaleur.\nPour effectuer un calcul sans prix de base, indiquer zéro dans ce champ.\nLes prix de base par kW de puissance installée diminuent en général légèrement au fur et à mesure que la puissance augmente."]
[213,"Prix de consommation du niveau tarifaire 1: prix de consommation en CHF par kWh pour la quantité de chaleur vendue."]
[214,"Durée contractuelle du niveau tarifaire 1: durée contractuelle habituelle (moyenne) des contrats de fourniture de chaleur de ce niveau tarifaire. À l’issue de cette durée, un nouveau contrat peut être négocié avec d’autres tarifs. Les contrats étant en général reconduits tacitement, leur échéance n’a pas d’influence sur les calculs de l’onglet «B1_Calculs».\nLa durée contractuelle est utilisée pour le calcul des coûts du capital des clients de chaleur (point 330). "]
["221\n222\n223\n224","Niveau tarifaire 2: p. ex. clients professionnels avec une consommation de chaleur et une puissance requise moyenne.\nSaisir un nom pour le niveau tarifaire 2 dans le champ correspondant.\nLa saisie du prix de base, du prix de consommation et de la durée du contrat s’effectue comme pour le niveau tarifaire 1 (voir points 211 - 214)"]
["231\n232\n233\n234","Niveau tarifaire 3: p. ex. organismes publics avec une consommation de chaleur et une puissance requise importantes.\nSaisir un nom pour le niveau tarifaire 3 dans le champ correspondant.\nLa saisie du prix de base, du prix de consommation et de la durée du contrat s’effectue comme pour le niveau tarifaire 1 (voir points 211 - 214)"]
["241\n242\n243\n244","Niveau tarifaire 4: p. ex. clients industriels avec une très importante consommation de chaleur et une forte puissance requise.\nSaisir un nom pour le niveau tarifaire 4 dans le champ correspondant.\nLa saisie du prix de base, du prix de consommation et de la durée du contrat s’effectue comme pour le niveau tarifaire 1 (voir points 211 - 214)"]
[]
[300,"Onglet «E3_Consommateurs»\nInformations sur les consommateurs du réseau de chaleur (clients de chaleur)"]
[310,"Indications concernant les consommateurs\nCe tableau permet de saisir les données correspondant à chaque client de chaleur. Les informations correspondant à celles du relevé de situation Excel de QM Chauffages au bois (points 311 - 314) peuvent être reprises de celui-ci. Pour ce faire, copier les lignes concernées et les coller dans les cellules correspondantes du modèle de rentabilité avec «Coller les valeurs».\nAttention: contrairement au fichier Excel Relevé de situation, ce tableau permet de saisir au maximum 180 objets.\nRemarque: pour simplifier la saisie des données, il est également possible de saisir les valeurs cumulées des phases d’extension annuelles."]
[311,"Numéro: numérotation consécutive (possibilité de reprise du tableau Excel Relevé de situation).\nRemarque: pour éviter de copier les formules, utilisez la fonction «Coller - Valeurs»."]
[312,"Désignation: trois lignes pour la dénomination de l’objet ou de l’étape (possibilité de reprise du tableau Excel Relevé de situation).\nRemarque: pour éviter de copier les formules, utilisez la fonction «Coller - Valeurs»."]
[320,"Besoin total de chaleur du client comprenant le besoin de chaleur ambiante, d’eau chaude et de chaleur industrielle (à partir du relevé de situation V34, les valeurs peuvent être directement reprises de l’onglet «Consommateurs». Pour les relevés de situation plus anciens, il est possible de reprendre le total des valeurs individuelles)."]
[321,"Puissance souscrite conformément au contrat de fourniture de chaleur.\nAttention: indiquer ici la puissance souscrite, nécessaire à la facturation de la taxe de base. Cette valeur peut être différente de puissance requise calculée d’après le relevé de situation Excel!"]
[322,"Date de raccordement: part du besoin total de chaleur (point 320) requise l’année du raccordement (point 323).\nExemple: si le raccordement intervient en début de période de chauffage, le besoin de chaleur de l’année de raccordement atteint env. 40 %. Le calcul est donc basé sur un besoin de chaleur de 40 % l’année du raccordement et de 100 % l’année suivante."]
[323,"Année de raccordement: première année calendaire où le consommateur est approvisionné en chaleur."]
[324,"Niveau tarifaire du prix de la chaleur pour le consommateur (champ de sélection: les niveaux tarifaires définis dans E2_Prix de la chaleur peuvent être sélectionnés)."]
[325,"Coûts de raccordement: coûts de raccordement uniques versés par le consommateur au réseau de chaleur. Ces coûts sont comptabilisés comme des recettes pour le réseau de chaleur l’année du raccordement (point 323)."]
[330,"Coûts du capital annuels (sans intérêts) pour le consommateur: calculés d’après les coûts de raccordement (point 325) et la durée du contrat de fourniture de chaleur dans le modèle de tarification approprié (points 214, 224, 234 et 244)"]
[331,"Coûts de base annuels pour le consommateur: calculés d’après la puissance souscrite et les coûts de base du niveau tarifaire sélectionné"]
[332,"Coûts énergétiques annuels pour le consommateur: calculés d’après les besoins annuels de chaleur et le prix de consommation du niveau tarifaire sélectionné"]
[333,"Coûts de base et énergétiques annuels pour le consommateur: total des points 331 + 332 (ce montant est comptabilisé comme recette annuelle pour le réseau de chaleur)"]
[334,"Coûts annuels pour le consommateur: total des coûts de capital, de base et énergétiques (points 300-332)"]
[335,"Prix de revient de la chaleur pour les consommateurs: calculé d’après les coûts annuels (point 334) et la consommation de chaleur (point 320)."]
[]
[500,"Onglet «B1_Calculs»\nFeuille de calcul: Représentation de l’évolution financière simplifiée du projet sur 25 ans.\nLes sections Coûts d’exploitation et Recettes se rapportent à la première année d’exploitation et à un taux d’utilisation de 100 % (qui n’est généralement pas encore atteint!). Ces données doivent contribuer à une meilleure appréciation des dépenses et des recettes à prévoir. \nLes procédés de calcul dynamique des investissements tiennent compte de la date de versement des recettes et des dépenses individuelles en fin d’année.\n"]
[501,"Avertissement: si des alertes sont encore actives dans les feuilles de saisie E1 et E2, une «alerte globale» est affichée dans ce champ."]
[505,"Colonne Augmentation: par défaut, la hausse de prix générale, saisie dans l’onglet E1_Données de projet (point 137) est utilisée.\nIl est toutefois possible d’utiliser une hausse de prix annuelle distincte pour chaque poste de coûts (points 512-519). Au point 520 (prix de la chaleur), l’augmentation est calculée sur la base de la valeur moyenne pondérée. Cette valeur peut être modifiée si nécessaire.\nAttention: le remplacement de la valeur calculée supprime la formule enregistrée!"]
[510,"Synthèse des coûts d’exploitation: les valeurs affichées correspondent aux coûts totaux théoriques en cas d’extension complète (raccordement à 100 %) la première année d’exploitation."]
[511,"Total des coûts d’exploitation: calculé en additionnant les points 512-519 ; l’augmentation des prix correspond à la valeur moyenne pondérée des hausses de prix des points 512-519 "]
[512,"Combustible biomasse: voir point 185"]
[513,"Combustible fossile: voir point 186"]
[514,"Électricité: voir point 187"]
[515,"Coûts d’exploitation: voir point 130"]
[516,"Administration: voir point 131"]
[517,"Frais d’entretien: voir point 132"]
[518,"Frais de loyer / bail / terrain: voir point 135"]
[519,"Autres (assurance, etc.): voir point 136"]
[520,"Augmentation du prix de vente de la chaleur: reprend la valeur moyenne pondérée des hausses de prix des points 512-519 (la valeur peut être modifiée ; le remplacement de la valeur calculée supprime la formule enregistrée!)"]
[530,"Données du projet: caractéristiques principales du projet\nDébut du projet: année de base pour les investissements: utilisée comme année 0 pour les calculs de rentabilité (voir aussi point 114)"]
[531,"Fonds propres maximum requis l’année concernée pour couvrir l’ensemble des coûts."]
[550,"Calcul des dépenses et des recettes annuelles du projet sur une durée de 25 ans.\nDans le cadre du calcul de la valeur actuelle nette, les «recettes» et les «dépenses» des différentes périodes doivent être mises en regard.\nRemarque: les calculs sont effectués sans rémunération des fonds propres."]
[551,"Année: dans cet outil de calcul, 1 période = 1 année d’exploitation."]
[552,"Besoin de chaleur des consommateurs actuellement raccordés, avec pourcentage de majoration pour les déperditions du réseau (point 112)"]
[553,"Charge de la centrale de chauffe et du réseau de chaleur au stade d’extension finale."]
[554,"Coûts du combustible biomasse: hausse de prix incluse dans le calcul"]
[555,"Coûts des combustibles fossiles: hausse de prix incluse dans le calcul"]
[556,"Coût de l’électricité pour l’énergie auxiliaire: hausse de prix incluse dans le calcul"]
[557,"Coûts d’exploitation et d’administration: hausse de prix incluse dans le calcul, les coûts ne sont calculés qu’à partir de la première année de fourniture de chaleur"]
[558,"Frais d’entretien: voir aussi point 132, hausse de prix incluse dans le calcul, les coûts ne sont calculés qu’à partir de la première année de fourniture de chaleur.\nRemarque: dans l’outil, les frais d’entretien sont échelonnés selon la même répartition que les coûts d’investissement (voir point 160, Échelonnement du projet). En cas de différence entre les frais d’entretien effectifs et les dépenses figurant au point 558, les pourcentages du point 142 doivent être adaptés en conséquence ou des montants correctifs doivent être saisis dans la colonne «Surcoût» (point 560)."]
[559,"Autres coûts et dépenses de loyer et de bail: hausse de prix incluse dans le calcul, ces coûts s’appliquent dès la première année"]
[560,"Les autres dépenses ou corrections de dépenses calculées (différences) peuvent être saisies dans cette colonne. Pour un maximum de clarté, l’en-tête de cette colonne peut être modifié.\nRemarque: ces dépenses ne sont pas comptabilisées comme une plus-value dans la valeur de l’installation.\nAttention VAN: ces dépenses sont répertoriées dans l’onglet «A2_Données VAN», sous le point 930. Elles doivent être transmises aux positions adéquates!"]
[561,"Dépenses effectives: cette colonne permet de saisir les coûts annuels effectifs pour le calcul permanent des coûts a posteriori.\nSi celle colonne comporte une valeur > 0, les saisies des colonnes 554-560 sont ignorées pour la suite des analyses de l’année concernée.\nAttention VAN: ces dépenses ne sont pas reprises dans l’onglet «A2_Données VAN»."]
[562,"Coûts des intérêts des prêts et crédits\nLe premier paiement d’intérêts est dû l’année de versement des fonds"]
[563,"Amortissement des investissements (point 141) pendant la durée d’amortissement (point 143).\nRemarque: les investissement de remplacement prévus sont également amortis."]
[564,"Total des charges du réseau de chaleur"]
[571,"Recettes issues de la vente de chaleur à distance: coûts de base et vente de chaleur"]
[572,"Les contributions de raccordement des consommateurs sont comptabilisées l’année du raccordement"]
[573,"Versement de subventions d’après les saisies de l’onglet E1_Données de projet\nLes valeurs peuvent être modifiées.\nAttention: le remplacement des formules supprime le calcul"]
[574,"Recettes supplémentaires - colonne pour la saisie libre (l’intitulé de la colonne peut être modifié).\nAttention VAN: ces recettes sont répertoriées dans l’onglet «A2_Données VAN», sous le point 930. Elles doivent être transmises aux positions adéquates!"]
[575,"Recettes effectives: cette colonne permet de saisir les recettes annuelles effectives pour le calcul permanent a posteriori.\nSi celle colonne comporte une valeur > 0, les saisies des colonnes 571-574 sont ignorées pour la suite des analyses de l’année concernée.\nAttention VAN: ces recettes ne sont pas automatiquement reprises dans l’onglet «A2_Données VAN»."]
[576,"Recettes totales du projet"]
[577,"Compte d’exploitation: bénéfice / perte annuel(le) sur dépenses (point 564) et recettes (point 576)"]
[578,"Compte d’exploitation: cumul excédent / déficit"]
[580,"Investissements: la première année, l’investissement initial est comptabilisé proportionnellement (point 161) dans cette colonne. Les investissements suivants sont comptabilisés au prorata dans les années correspondantes.\nLes investissements de remplacement sont réinvestis à l’issue de la durée d’utilisation (point 143) en incluant l’augmentation générale des prix (point 137). "]
[581,"Crédits / prêts: le versement des crédits et des prêts est comptabilisé l’année du versement."]
[582,"Amortissement des fonds externes sur la durée des crédits / prêts.\nRemarque: les prêts sans durée ne sont pas amortis."]
[583,"Cashflow: liquidités (entrées/sorties nettes) issues des recettes totales (point 576) + remboursements de prêts (point 581) après déduction des dépenses totales (point 564) hors amortissements (point 563), investissements (point 580) et amortissement des fonds externes (point 582)"]
[584,"Cash-flow cumulé"]
[586,"Année d’exploitation: année de mise en service (point 115) = an 1 (informatif). L’échéance des investissements de remplacement est calculé sur cette base."]
[587,"Solde du crédit (informatif) - Calcul net du solde du crédit, sans frais bancaires, frais de mise en place, etc.\nFormatage conditionnel: si le solde du crédit n’est pas garanti par la valeur résiduelle de l’installation, ce champ apparaît sur fond rouge."]
[588,"Valeur résiduelle de l’installation en tenant compte de l’amortissement\nLa valeur résiduelle est calculée d’après la part d’investissement proportionnelle et l’amortissement correspondant.\nRemarque: les coûts des postes intérieurs et de la planification ne sont pas inclus."]
[589,"Rémunération de l’investissement (point 190) en tenant compte de la valeur résiduelle de l’installation"]
[590,"Diagramme représentant l’évolution économique au cours des périodes 1 à 25. "]
[591,"Diagramme représentant l’évolution de l’état du crédit et de la valeur résiduelle de l’installation au cours des périodes 1 à 25. \nRemarque: pour garantir le crédit, la valeur résiduelle ne doit pas être inférieure au solde du crédit."]
[]
[600,"Onglet «A1_Résultats»\nCet onglet récapitule et évalue les principaux résultats"]
[610,"Coûts d’investissement: synthèse"]
[612,"Chaudières et installations: somme des points 152, 153 et 154"]
[613,"Réseau de chaleur, génie civil et postes intérieurs, y compris mesures thermiques: somme des points 155 à 157"]
[615,"Financements externes et subventions: synthèse"]
[620,"Coûts annuels: l’évaluation s’effectue d’une part pour l’année de mise en service (point 115), d’autre part pour une année au choix dans la période considérée."]
[621,"Coûts énergétiques: somme des points 554, 555 et 556 (Attention: cette évaluation n’est pas adaptée si des dépenses effectives sont saisies dans le champ correspondant du point 562!)"]
[622,"Exploitation et entretien: somme des points 557, 558, 559 et 560\nAttention: cette évaluation n’est pas adaptée si des dépenses effectives sont saisies dans le champ correspondant du point 561!"]
[623,"Rémunération et amortissement: somme des points 562 et 563"]
[624,"Total des dépenses: somme des points 621 à 623\nAttention: cette évaluation n’est pas adaptée si des dépenses effectives sont saisies dans le champ correspondant du point 562!"]
[625,"Vente de chaleur: somme des points 571 et 572\nAttention: cette évaluation n’est pas adaptée si des dépenses effectives sont saisies dans le champ correspondant du point 575!"]
[626,"Subventions et autres: somme des points 573 et 574\nAttention: cette évaluation n’est pas adaptée si des dépenses effectives sont saisies dans le champ correspondant du point 575!"]
[627,"Total des recettes: somme des points 625 et 626\nAttention: cette évaluation n’est pas adaptée si des dépenses effectives sont saisies dans le champ correspondant du point 575!"]
[650,"Évaluations en matière d’énergie: Les évaluations sont effectuées pour les mêmes périodes que celles décrites au point 620"]
[651,"Besoin de chaleur des consommateurs raccordés à l’heure actuelle"]
[652,"Coût moyen sur la base de la quantité de chaleur vendue en CHF/MWh: calculé d’après les dépenses totales (point 564) et la chaleur vendue (point 651)"]
[653,"Évolution de la charge du réseau pendant la durée du projet (graphique)"]
[660,"Retour sur investissement: L’évaluation se base d’une part sur les capitaux propres non rémunérés et d’autre part sur une rémunération sélectionnable."]
[661,"Année de comptabilisation de la rémunération de l’investissement indiquée au point 660."]
[690,"Remarques: champ permettant la saisie de remarques et de commentaires."]
[]
[900,"Onglet Données VAN\nModèle d’exportation pour calculateur de VAN: cet onglet réunit les données issues de l’outil, requises pour le calcul de la VAN. La présentation est adaptée à KliK, l’«outil de justification de l’additionnalité de projets de chaleur à distance» (version 3.2 du 10 février 2016).\nLes informations destinées à l’outil KliK qui ne peuvent pas être reprises du présent fichier ne sont pas contenues dans l’exportation.\nLes modifications dans l’outil ou dans d’autres vues ne sont pas automatiquement adaptées par l’outil de calcul de rentabilité QMCB."]
[910,"Onglet KliK Paramètres de saisie"]
[911,"Clients clés: Les données des colonnes «Désignation», «Puissance» et «Besoins annuels de chaleur» sont reprises de l’onglet «E3_Consommateurs». La colonne «Type de bâtiment & caractéristiques de consommation» nécessite encore un suivi manuel.\nAttention: l’outil KliK ne propose que 15 consommateurs. Les 15 premiers consommateurs sont donc repris. Si les consommateurs sont plus nombreux, il convient de les regrouper pour couvrir l’ensemble de la consommation."]
[912,"Clients clés: Les données de la colonne «Année de raccordement» sont reprises de l’onglet «E3_Consommateurs». La colonne «Puissance en pleine configuration» reprend les valeurs de la colonne «Puissance» du point 911. Les valeurs peuvent être modifiées.\nAttention: toute frappe dans cette cellule supprime la formule."]
[920,"Onglet KliK Consommation de chaleur ; section Évolution de référence"]
[921,"Consommation de chaleur: Le besoin de chaleur utile est repris de l’onglet «E3_Consommateurs» en fonction de la date de raccordement\nÀ la différence du présent outil, la période considérée ne couvre que 15 ans."]
[922,"Consommation d’électricité: Le besoin d’électricité en guise d’énergie auxiliaire est repris de l’onglet «B1_Calculs» (point 556)."]
[923,"Réseau de chaleur à distance (40 ans): Les coûts d’investissement pour le réseau de chaleur sont repris de l’onglet «B1_Calculs». La répartition des coûts annuels Réseau de chaleur à distance / Centrale de chauffe est effectuée proportionnellement au coût d’investissement total.\nAttention: Les dépenses de la colonne «Autres charges» (point 651) ne sont pas automatiquement reprises dans l’onglet «A2_Données VAN». Elles doivent être transmises manuellement aux positions adéquates!"]
[924,"Centrale de chauffe ou système de chaleur décentralisé (15 ans): Les coûts d’investissement pour la centrale de chauffe sont repris de l’onglet «B1_Calculs». La répartition des coûts annuels Réseau de chaleur à distance / Centrale de chauffe est effectuée proportionnellement au coût d’investissement total.\nAttention: Les dépenses de la colonne «Autres charges» (point 651) ne sont pas automatiquement reprises dans l’onglet «A2_Données VAN». Elles doivent être transmises manuellement aux positions adéquates!"]
[925,"Exploitation et entretien: Les coûts annuels d’exploitation et d’entretien sont repris de l’onglet «B1_Calculs» (points 557, 558 et 559).\nAttention: Les dépenses de la colonne «Autres charges» (point 651) ne sont pas automatiquement reprises dans l’onglet «A2_Données VAN». Elles doivent être transmises manuellement aux positions adéquates!"]
[926,"Coûts énergétiques: Les coûts énergétiques sont repris de l’onglet «B1_Calculs» (points 554, 555 et 556).\nAttention: Les dépenses de la colonne «Autres charges» (point 651) ne sont pas automatiquement reprises dans l’onglet «A2_Données VAN». Elles doivent être transmises manuellement aux positions adéquates!"]
[927,"Contributions de raccordement / revenus exceptionnels: Les contributions de raccordement sont reprises de l’onglet «B1_Calculs» (point 572).\nAttention: Les dépenses de la colonne «Autres charges» (point 651) ne sont pas automatiquement reprises dans l’onglet «A2_Données VAN». Elles doivent être transmises manuellement aux positions adéquates!"]
[928,"Ventes de chaleur / revenus récurrents: Les recettes issues de la vente de chaleur sont reprises de l’onglet «B1_Calculs» (point 571).\nAttention: Les dépenses de la colonne «Autres charges» (point 651) ne sont pas automatiquement reprises dans l’onglet «A2_Données VAN». Elles doivent être transmises manuellement aux positions adéquates!"]
[929,"Subventions de tiers (canton, Confédération, commune): Les versements de subventions uniques sont repris de l’onglet «E1_Données de projet» (points 172 et 174) et reportés sur l’année de versement correspondante (points 173 et 175).\nRemarque: les subventions pluriannuelles (hors montants KliK) doivent être reportées manuellement!"]
[930,"Dépenses et recettes non prises en compte:\nLes montants des colonnes «Charges additionnelles» (point 561) et «Recettes additionnelles» (point 574) sont mentionnés ici. Les lignes correspondant à ces montants n’étant pas définies, ceux-ci doivent être reportés manuellement dans les champs appropriés avant l’exportation."]
[]
[null,"Unités"]
["MWh","Mégawatt-heure thermique, c’est-à-dire chaleur"]
["kWh","Kilowatt-heure thermique, c’est-à-dire chaleur"]
["MWhel","Mégawatt-heure électrique, c’est-à-dire électricité"]
["kWhel","Kilowatt-heure électrique, c’est-à-dire électricité"]
["an","année"]
["CHF","francs suisses"]
["%","pour cent"]
[]
[null,"Abréviations"]
["AP","année précédente"]
["cour.","courant/courante"]
["exc.","excédent"]

{"sheet":"E1_Données de projet","index":1,"n_rows":105,"n_cols":23,"rows_kept":105}
[100,"QM Chauffages au bois - Modèle de rentabilité - Données de projet"]
[]
[101,null,"Champ de saisie",{"$nulls":9},"Commentaires"]
[102,null,"Valeur standard ou calcul (modifiable)"]
[105,"(hors TVA)"]
[]
[106,"Projet/Variante :"]
[]
[]
[]
[107,"Saisi par :"]
[]
[108,"Avertissements\nRemarques :",{"$f":"IF(S13>10,T14,IF(S13>0,T13,\"\"))","v":"Plus de 10 remarques !"},{"$nulls":15},{"$f":"COUNTIF(Q16:S120,\">0\")","v":21},{"$f":"T16&T24&T34&T47&T62&T74&T68","v":"111: La consommation de chaleur est trop faible ! 113: Aucune diminution des besoins de chaleur saisi. 114: L'année de démarrage du projet est antérieure à 2000. 122: La part de la chaleur annuelle issue de la biomasse est insignifiante. 124: Le prix du combustible fossile est trop bas. 127: Le prix de l'électricité est supposé très faible. 127: Le prix de l'électricité est nul. 125: Le taux d'utilisation annuel de la chaudière est inférieur à 40 %. 130: Les coûts annuels de personnel sont très faibles. 131: Les coûts d'exploitation externes annuels sont très faibles.132: Les frais d'entretien annuels sont très faibles. 135: Les frais annuels de propriété ont été supposés très bas. 136: Les autres frais sont très faibles. 151: Les frais de construction de la centrale de chauffage sont très faibles. 154: Les frais des installations de la centrale sont très faibles. 155: Les frais de construction du réseau de chaleur sont très faibles. 157: Les frais pour les postes intérieurs sont très faibles. 152: Les frais des éléments de l'installation spécifiques au bois sont très faibles. 153: Les frais des éléments de l'installation spécifiques à la charge de pointe sont très faibles. 156: Les frais de comptage de la chaleur sont très faibles. "}]
[{"$nulls":19},"Plus de 10 remarques !"]
[{"$nulls":14},"Min","Max","Unters.","Übers.","S.Fehler","Avertissement","TexteMin","TexteMax","TexteAutre"]
[110,"Quantité de chaleur, réseau, lancement du projet",{"$nulls":17},{"$f":"T17&T18&T19&T21&T22","v":"111: La consommation de chaleur est trop faible ! 113: Aucune diminution des besoins de chaleur saisi. 114: L'année de démarrage du projet est antérieure à 2000. "}]
[111,null,"Consommation de chaleur totale des utilisateurs",{"$f":"SUM(E3_Consommateurs!D18:XFD18)","v":0},"MWh/an",{"$nulls":9},10,9999999999,{"$f":"IF($D17<O17,1,0)","v":1},{"$f":"IF($D17>P17,1,0)","v":0},0,{"$f":"IF(Q17=1,U17,IF(R17=1,V17,IF(S17=1,W17,\"\")))","v":"111: La consommation de chaleur est trop faible ! "},"111: La consommation de chaleur est trop faible ! ","111: La consommation de chaleur est trop grande."]
[112,null,"Déperditions du réseau",10,"%",{"$nulls":9},0,20,{"$f":"IF($D18<O18,1,0)","v":0},{"$f":"IF($D18>P18,1,0)","v":0},{"$f":"IF(D18=\"\",1,0)","v":0},{"$f":"IF(Q18>0,U18,\"\")&IF(R18>0,V18,\"\")&IF(S18>0,W18,\"\")","v":""},"112: Les déperditions du réseau de chaleur sont trop faibles !","112: Les déperditions du réseau de chaleur sont trop élevées !","112: Pas de déperditions de réseau saisies."]
[113,null,"Diminution des besoins de chaleur (Amélioration de l’enveloppe du bâtiment)",null,"%",{"$nulls":9},0,5,{"$f":"IF($D19<O19,1,0)","v":0},{"$f":"IF($D19>P19,1,0)","v":0},{"$f":"IF(D19=\"\",1,0)","v":1},{"$f":"IF(Q19>0,U19,\"\")&IF(R19>0,V19,\"\")&IF(S19>0,W19,\"\")","v":"113: Aucune diminution des besoins de chaleur saisi. "},"113: La diminution des besoins de chaleur des consommateurs de chaleur est négative ; surconsommation. ","113: La diminution des besoins de chaleur est très élevée. ","113: Aucune diminution des besoins de chaleur saisi. "]
[]
[114,null,"Année de démarrage du projet",{"$nulls":11},2000,2100,{"$f":"IF($D21<O21,1,0)","v":1},{"$f":"IF($D21>P21,1,0)","v":0},0,{"$f":"IF(Q21>0,U21,\"\")&IF(R21>0,V21,\"\")&IF(S21>0,W21,\"\")","v":"114: L'année de démarrage du projet est antérieure à 2000. "},"114: L'année de démarrage du projet est antérieure à 2000. ","114: L'année de démarrage du projet est postérieure à 2100. "]
[115,null,"Année de mise en service / première fourniture de chaleur",{"$f":"MIN(E3_Consommateurs!D21:XFD21)","v":0},{"$nulls":10},{"$f":"Eing_Beginnjahr","v":0},{"$f":"O22+3","v":3},{"$f":"IF($D22<O22,D22,0)","v":0},{"$f":"IF($D22>P22,1,0)","v":0},0,{"$f":"IF(Q22>0,U22,\"\")&IF(R22>0,V22,\"\")&IF(S22>0,W22,\"\")","v":""},"115: L'année de mise en service est antérieure à l'année de démarrage du projet.","115Plus de 3 ans séparent la mise en service du démarrage du projet. Ajuster la date de première fourniture de chaleur dans l'onglet Consommateurs. "]
[]
[120,"Prix d'achat de l'énergie, frais d'exploitation et autres charges",{"$nulls":17},{"$f":"T25&T26&T28&T31&T32&T29","v":"122: La part de la chaleur annuelle issue de la biomasse est insignifiante. 124: Le prix du combustible fossile est trop bas. 127: Le prix de l'électricité est supposé très faible. 127: Le prix de l'électricité est nul. 125: Le taux d'utilisation annuel de la chaudière est inférieur à 40 %. "}]
[121,null,"Prix du combustible bois (à partir du compteur de chaleur)",null,"CHF/MWh d'énergie produite",{"$nulls":9},0,100,{"$f":"IF($D25<O25,1,0)","v":0},{"$f":"IF($D25>P25,1,0)","v":0},0,{"$f":"IF(Q25>0,U25,\"\")&IF(R25>0,V25,\"\")&IF(S25>0,W25,\"\")","v":""},"121: Le prix de la matière première (biomasse) est supposé négatif. ","121: Le prix de la matière première (biomasse) est trop élevé. "]
[122,null,"Part de chaleur utile produite à base de biomasse",null,"%",{"$nulls":9},70,100,{"$f":"IF($D26<O26,1,0)","v":1},{"$f":"IF($D26>P26,1,0)","v":0},0,{"$f":"IF(Q26>0,U26,\"\")&IF(R26>0,V26,\"\")&IF(S26>0,W26,\"\")","v":"122: La part de la chaleur annuelle issue de la biomasse est insignifiante. "},"122: La part de la chaleur annuelle issue de la biomasse est insignifiante. ","122: La part de la chaleur annuelle issue de la biomasse est trop importante. "]
[123,null,"Part de chaleur utile produite à base d'énergie fossile",{"$f":"100-Eing_Anteil_Biomasse","v":100},"%"]
[124,null,"Prix du combustible fossile",null,"CHF/MWh d'énergie primaire",{"$nulls":9},30,300,{"$f":"IF(Anteil_fossil_erzeugt=0,0,IF($D28<O28,1,0))","v":1},{"$f":"IF(Anteil_fossil_erzeugt=0,0,IF($D28>P28,1,0))","v":0},{"$f":"IF(Anteil_fossil_erzeugt=0,0,IF(Eing_Rohstoffpreis_fossil<Eing_Rohstoffpreis_Biomasse,1,0))","v":0},{"$f":"IF(Q28>0,U28,\"\")&IF(R28>0,V28,\"\")&IF(S28>0,W28,\"\")","v":"124: Le prix du combustible fossile est trop bas. "},"124: Le prix du combustible fossile est trop bas. ","124: Le prix supposé du combustible fossile est élevé. ","124: Le prix du combustible fossile est inférieur au prix de la biomasse. "]
[125,null,"Taux d'utilisation annuel de la chaudière à combustible fossile",null,"%",{"$nulls":9},40,98,{"$f":"IF(Anteil_fossil_erzeugt=0,0,IF($D29<O29,1,0))","v":1},{"$f":"IF(Anteil_fossil_erzeugt=0,0,IF($D29>P29,1,0))","v":0},{"$f":"IF(Anteil_fossil_erzeugt=0,0,IF(D29=\"\",1,0))","v":1},{"$f":"IF(Q29>0,U29,\"\")&IF(R29>0,V29,\"\")&IF(S29>0,W29,\"\")","v":"125: Le taux d'utilisation annuel de la chaudière est inférieur à 40 %. "},"125: Le taux d'utilisation annuel de la chaudière est inférieur à 40 %. ","125: Le taux d'utilisation annuel de la chaudière est supérieur à 98 %. "]
[]
[126,null,"Énergie auxiliaire (électricité)",2,"% de la chaleur produite",{"$nulls":9},1,3,{"$f":"IF($D31<O31,1,0)","v":0},{"$f":"IF($D31>P31,1,0)","v":0},{"$f":"IF(Eing_Spez_Stromverbrauch=0,1,0)","v":0},{"$f":"IF(Q31>0,U31,\"\")&IF(R31>0,V31,\"\")&IF(S31>0,W31,\"\")","v":""},"126: La consommation spécifique d'électricité est supposée très faible. ","126: La consommation spécifique d'électricité est supposée très importante. ","126: La consommation spécifique d'électricité a été définie comme nulle. "]
[127,null,"Prix de l'électricité",null,"CHF/kWhel",{"$nulls":9},0.02,0.8,{"$f":"IF($D32<O32,1,0)","v":1},{"$f":"IF($D32>P32,1,0)","v":0},{"$f":"IF(Eing_Strompreis=0,1,0)","v":1},{"$f":"IF(Q32>0,U32,\"\")&IF(R32>0,V32,\"\")&IF(S32>0,W32,\"\")","v":"127: Le prix de l'électricité est supposé très faible. 127: Le prix de l'électricité est nul. "},"127: Le prix de l'électricité est supposé très faible. ","127: Le prix de l'électricité est supposé très élevé. ","127: Le prix de l'électricité est nul. "]
[]
[{"$nulls":19},{"$f":"T35&T36&T37&T39&T40&T41","v":"130: Les coûts annuels de personnel sont très faibles. 131: Les coûts d'exploitation externes annuels sont très faibles.132: Les frais d'entretien annuels sont très faibles. 135: Les frais annuels de propriété ont été supposés très bas. 136: Les autres frais sont très faibles. "}]
[130,null,"Coûts de personnel (pour le service, le nettoyage, etc.)",{"$f":"ROUND(1.5%*SUM(D49:D51),-2)","v":0},"CHF/an",{"$nulls":9},1000,{"$f":"5%*SUM(D49:D51)","v":0},{"$f":"IF($D35<O35,1,0)","v":1},{"$f":"IF($D35>P35,1,0)","v":0},0,{"$f":"IF(Q35>0,U35,\"\")&IF(R35>0,V35,\"\")&IF(S35>0,W35,\"\")","v":"130: Les coûts annuels de personnel sont très faibles. "},"130: Les coûts annuels de personnel sont très faibles. ","130: Les coûts annuels de personnel sont très élevés. "]
[131,null,"Coûts d'exploitation externes (service, ramonage, etc.)",null,"CHF/an",{"$nulls":9},1000,999999,1,0,0,{"$f":"IF(Q36>0,U36,\"\")&IF(R36>0,V36,\"\")&IF(S36>0,W36,\"\")","v":"131: Les coûts d'exploitation externes annuels sont très faibles."},"131: Les coûts d'exploitation externes annuels sont très faibles.","131: Les coûts d'exploitation externes annuels sont très très élevés. "]
[132,null,"Frais d'entretien",{"$f":"SUMPRODUCT(D48:D55,F48:F55)/100","v":0},"CHF/an",{"$nulls":9},1000,{"$f":"10%*Gesamtinvestition","v":0},1,0,0,{"$f":"IF(Q37>0,U37,\"\")&IF(R37>0,V37,\"\")&IF(S37>0,W37,\"\")","v":"132: Les frais d'entretien annuels sont très faibles. "},"132: Les frais d'entretien annuels sont très faibles. ","132: Les frais d'entretien annuels sont trop élevés. "]
[]
[135,null,"Frais de loyer / bail / propriété",null,"CHF/an",{"$nulls":9},1000,{"$f":"Gesamtinvestition/20","v":0},{"$f":"IF($D39<O39,1,0)","v":1},{"$f":"IF($D39>P39,1,0)","v":0},0,{"$f":"IF(Q39>0,U39,\"\")&IF(R39>0,V39,\"\")&IF(S39>0,W39,\"\")","v":"135: Les frais annuels de propriété ont été supposés très bas. "},"135: Les frais annuels de propriété ont été supposés très bas. ","135: Les frais annuels de propriété sont très élevés. "]
[136,null,"Autres frais (administration, assurances, etc.)",{"$f":"ROUND(1%*Gesamtinvestition,-2)","v":0},"CHF/an",{"$nulls":9},1000,{"$f":"5%*Gesamtinvestition","v":0},{"$f":"IF($D40<O40,1,0)","v":1},{"$f":"IF($D40>P40,1,0)","v":0},0,{"$f":"IF(Q40>0,U40,\"\")&IF(R40>0,V40,\"\")&IF(S40>0,W40,\"\")","v":"136: Les autres frais sont très faibles. "},"136: Les autres frais sont très faibles. ","136: Les autres frais sont très élevés. ","136: Les autres frais ont été supposés nuls. "]
[137,null,"Augmentation générale des prix",null,"%",{"$nulls":9},0,5,{"$f":"IF($D41<O41,1,0)","v":0},{"$f":"IF($D41>P41,1,0)","v":0},0,{"$f":"IF(Q41>0,U41,\"\")&IF(R41>0,V41,\"\")&IF(S41>0,W41,\"\")","v":""},"137: L'augmentation générale des prix a été supposée très faible. ","137: L'augmentation générale des prix a été supposée très élevée. "]
[138,null,"Taux d'intérêt nominal",null,"%",{"$nulls":9},0,10,{"$f":"IF($D42<O42,1,0)","v":0},{"$f":"IF($D42>P42,1,0)","v":0},0,{"$f":"IF(Q42>0,U42,\"\")&IF(R42>0,V42,\"\")&IF(S42>0,W42,\"\")","v":""},"138: Le taux d'intérêt nominal a été supposé négatif. ","138: Le taux d'intérêt nominal a été supposé très élevé. "]
[139,null,"Taux d'intérêt réel",{"$f":"Eing_Nominalzins-Eing_allg_Teuerung","v":{"v":0,"d":"0.00"}},"%",{"$nulls":9},0,8,{"$f":"IF($D43<O43,1,0)","v":0},{"$f":"IF($D43>P43,1,0)","v":0},0,"","139: Le taux d'intérêt réel est négatif ","139: Le taux d'intérêt réel est très élevé "]
[]
[140,"Investissements, amortissement, etc.",null,141,null,142,null,null,143]
[{"$nulls":6},"Frais d'entretien",null,"Durée d'utilisation"]
[150,"Coûts d'investissement","(extensions y comprises)",{"$nulls":3},"spécifiques",null,"Amortissement",{"$nulls":10},{"$f":"T48&T51&T52&T54&T55&T56&T49&T50&T53","v":"151: Les frais de construction de la centrale de chauffage sont très faibles. 154: Les frais des installations de la centrale sont très faibles. 155: Les frais de construction du réseau de chaleur sont très faibles. 157: Les frais pour les postes intérieurs sont très faibles. 152: Les frais des éléments de l'installation spécifiques au bois sont très faibles. 153: Les frais des éléments de l'installation spécifiques à la charge de pointe sont très faibles. 156: Les frais de comptage de la chaleur sont très faibles. "}]
[151,null,"Coûts de construction Bâtiments Environs",null,"CHF",1,"%",null,50,"ans",{"$nulls":4},10000,999999999,{"$f":"IF($D48<O48,1,0)","v":1},{"$f":"IF($D48>P48,1,0)","v":0},0,{"$f":"IF(Q48>0,U48,\"\")&IF(R48>0,V48,\"\")&IF(S48>0,W48,\"\")","v":"151: Les frais de construction de la centrale de chauffage sont très faibles. "},"151: Les frais de construction de la centrale de chauffage sont très faibles. ","151: Les frais de construction de la centrale de chauffage sont très élevés. "]
[152,null,"Éléments de l'installation spécifiques au bois",null,"CHF",3,"%",null,20,"ans",{"$nulls":4},10000,999999999,1,0,0,"152: Les frais des éléments de l'installation spécifiques au bois sont très faibles. ","152: Les frais des éléments de l'installation spécifiques au bois sont très faibles. ","152: Les frais des éléments de l'installation spécifiques au bois sont très élevés. "]
[153,null,"Éléments de l’installation spécifiques à la charge de pointe",null,"CHF",2,"%",null,20,"ans",{"$nulls":4},10000,999999999,{"$f":"IF(Anteil_fossil_erzeugt=0,0,IF($D50<O50,1,0))","v":1},0,0,"153: Les frais des éléments de l'installation spécifiques à la charge de pointe sont très faibles. ","153: Les frais des éléments de l'installation spécifiques à la charge de pointe sont très faibles. ","153: Les frais des éléments de l'installation spécifiques à la charge de pointe sont très élevés. "]
[154,null,"Installations de la centrale",null,"CHF",2,"%",null,20,"ans",{"$nulls":4},10000,999999999,{"$f":"IF($D51<O51,1,0)","v":1},0,0,"154: Les frais des installations de la centrale sont très faibles. ","154: Les frais des installations de la centrale sont très faibles. ","154: Les frais des installations de la centrale sont très élevés. "]
[155,null,"Réseau de chaleur, y compris génie civil",null,"CHF",1,"%",null,40,"ans",{"$nulls":4},10000,999999999,1,0,0,"155: Les frais de construction du réseau de chaleur sont très faibles. ","155: Les frais de construction du réseau de chaleur sont très faibles. ","155: Les frais de construction du réseau de chaleur sont très élevés. "]
[156,null,"Compteurs de chaleur et robinets de régulation",null,"CHF",2,"%",null,15,"ans",{"$nulls":4},10000,999999999,1,0,0,"156: Les frais de comptage de la chaleur sont très faibles. ","156: Les frais de comptage de la chaleur sont très faibles. ","156: Les frais de comptage de la chaleur sont très élevés. "]
[157,null,"Postes intérieurs",null,"CHF",2,"%",null,30,"ans",{"$nulls":4},10000,999999999,1,0,0,"157: Les frais pour les postes intérieurs sont très faibles. ","157: Les frais pour les postes intérieurs sont très faibles. ","157: Les frais pour les postes intérieurs sont très élevés. "]
[158,null,"Planification et imprévus",null,"CHF",0,"%",null,{"$f":"IF(SUM(D48:D54)=0,1,SUMPRODUCT(D48:D54,I48:I54)/SUM(D48:D54))","v":1},"ans",{"$nulls":4},0,999999999,0,0,{"$f":"IF(Eing_Kosten_Planung_QM<Gesamtinvestition/20,1,0)","v":0},"","158: Les frais de planification et d'imprévus sont très faibles. ","158: Les frais de planification et d'imprévus sont très élevés. ","158: Les frais de planification et d'imprévus représentent moins de 5 % des coûts d'investissement. "]
[159,null,"Coût d'investissement total",{"$f":"SUM(D48:D55)","v":0},"CHF",{"$nulls":3},{"$f":"IF(SUM(D48:D55)=0,\"\",SUMPRODUCT(D48:D55,I48:I55)/SUM(D48:D55))","v":""},"ans",{"$nulls":4},0,999999999,0,0,0,"","159: Les coûts d'investissement sont très faibles.","159: Les coûts d'investissement sont très élevés."]
[160,"Échelonnement des investissements",null,"Année",null,"Part"]
[161,null,"Niveau d'extension / étape 1",{"$f":"Eing_Beginnjahr","v":0},null,{"$f":"100-SUM(F59:F60)","v":100},"%",null,{"$f":"F58","v":100},"%"]
[162,null,"Niveau d'extension / étape 2",{"$f":"Eing_Beginnjahr+1","v":1},null,null,"%",null,{"$f":"F58+F59","v":100},"%"]
[163,null,"Niveau d'extension / étape 3",{"$f":"Eing_Beginnjahr+2","v":2},null,null,"%",null,{"$f":"I59+F60","v":100},"%"]
[]
[165,"Financement externe","Crédit 1",{"$nulls":16},{"$f":"T63&T64&T66&T65","v":""}]
[166,null,"Crédit/prêt",null,"CHF",{"$nulls":9},0,{"$f":"Gesamtinvestition","v":0},{"$f":"IF($D63<O63,1,0)","v":0},{"$f":"IF($D63>P63,1,0)","v":0},0,{"$f":"IF(Q63>0,U63,\"\")&IF(R63>0,V63,\"\")&IF(S63>0,W63,\"\")","v":""},"166: La part du crédit est nulle ou négative. ","166: La part du crédit est supérieure au coût d'investissement global. "]
[167,null,"Durée du crédit en année",null,"ans",{"$nulls":9},0,25,{"$f":"IF($D64<O64,Eing_Kredit_1,0)","v":0},{"$f":"IF($D64>P64,Eing_Kredit_1,0)","v":0},0,{"$f":"IF(Q64>0,U64,\"\")&IF(R64>0,V64,\"\")&IF(S64>0,W64,\"\")","v":""},"167: La durée du crédit est trop courte. ","167: La durée du crédit ne doit pas excéder 25 ans ! "]
[168,null,"Année de début",{"$nulls":11},{"$f":"Eing_Beginnjahr-1","v":-1},{"$f":"O65+20","v":19},{"$f":"IF($D65<=O65,Eing_Kredit_1,0)","v":0},{"$f":"IF($D65>P65,Eing_Kredit_1,0)","v":0},0,{"$f":"IF(Q65>0,U65,\"\")&IF(R65>0,V65,\"\")&IF(S65>0,W65,\"\")","v":""},"168: L'année de début du financement est antérieure au démarrage du projet.","168: L'année de début du financement se situe loin après le démarrage du projet."]
[169,null,"Taux d'intérêt",null,"%",{"$nulls":9},2,10,{"$f":"IF($D66<=O66,Eing_Kredit_1,0)","v":0},{"$f":"IF($D66>P66,Eing_Kredit_1,0)","v":0},0,{"$f":"IF(Q66>0,U66,\"\")&IF(R66>0,V66,\"\")&IF(S66>0,W66,\"\")","v":""},"169: Le taux d'intérêt indiqué est très faible.","169: Le taux d'intérêt indiqué est très élevé."]
[]
[null,null,"Crédit 2",{"$nulls":16},{"$f":"T69&T70&T72&T71","v":""}]
[166,null,"Crédit/prêt",null,"CHF",{"$nulls":9},0,{"$f":"Gesamtinvestition","v":0},{"$f":"IF($D69<O69,1,0)","v":0},{"$f":"IF($D69>P69,1,0)","v":0},0,{"$f":"IF(Q69>0,U69,\"\")&IF(R69>0,V69,\"\")&IF(S69>0,W69,\"\")","v":""},"166: La part du crédit est nulle ou négative. ","166: La part du crédit est supérieure au coût d'investissement global. "]
[167,null,"Durée du crédit en année",null,"ans",{"$nulls":9},0,25,{"$f":"IF($D70<O70,Eing_Kredit_2,0)","v":0},{"$f":"IF($D70>P70,Eing_Kredit_2,0)","v":0},0,{"$f":"IF(Q70>0,U70,\"\")&IF(R70>0,V70,\"\")&IF(S70>0,W70,\"\")","v":""},"167: La durée du crédit est trop courte. ","167: La durée du crédit ne doit pas excéder 25 ans ! "]
[168,null,"Année de début",{"$nulls":11},{"$f":"Eing_Beginnjahr-1","v":-1},{"$f":"O71+20","v":19},{"$f":"IF($D71<=O71,Eing_Kredit_2,0)","v":0},{"$f":"IF($D71>P71,Eing_Kredit_2,0)","v":0},0,{"$f":"IF(Q71>0,U71,\"\")&IF(R71>0,V71,\"\")&IF(S71>0,W71,\"\")","v":""},"168: L'année de début du financement est antérieure au démarrage du projet.","168: L'année de début du financement se situe loin après le démarrage du projet."]
[169,null,"Taux d'intérêt",null,"%",{"$nulls":9},2,10,{"$f":"IF($D72<=O72,Eing_Kredit_2,0)","v":0},{"$f":"IF($D72>P72,Eing_Kredit_2,0)","v":0},0,{"$f":"IF(Q72>0,U72,\"\")&IF(R72>0,V72,\"\")&IF(S72>0,W72,\"\")","v":""},"169: Le taux d'intérêt indiqué est très faible.","169: Le taux d'intérêt indiqué est très élevé."]
[]
[170,"Subventions",{"$nulls":17},{"$f":"T76&T77&T82&T78&T79&T81&T83","v":""}]
[171,null,"Subvention unique (p.ex. cantonale)"]
[172,null,"Subvention unique pack 1",null,"CHF",{"$nulls":9},0,{"$f":"Gesamtinvestition","v":0},{"$f":"IF($D76<O76,1,0)","v":0},{"$f":"IF($D76>P76,1,0)","v":0},0,{"$f":"IF(Q76>0,U76,\"\")&IF(R76>0,V76,\"\")&IF(S76>0,W76,\"\")","v":""},"172: Le montant de la subvention du pack 1 est trop faible. ","172: Le montant de la subvention du pack 1 est trop élevé. "]
[173,null,"Année de versement",{"$nulls":11},{"$f":"Eing_Beginnjahr","v":0},{"$f":"O77+10","v":10},{"$f":"IF($D77<O77,Einmaliger_Förderbeitrag_1,0)","v":0},{"$f":"IF($D77>P77,Einmaliger_Förderbeitrag_1,0)","v":0},0,{"$f":"IF(Q77>0,U77,\"\")&IF(R77>0,V77,\"\")&IF(S77>0,W77,\"\")","v":""},"173: La subvention du pack 1 ne peut être versée qu'après le démarrage du projet ! ","173: Le versement de la subvention du pack 1 est indiqué plus de 10 ans après le démarrage du projet ! "]
[174,null,"Subvention unique pack 2",null,"CHF",{"$nulls":9},0,{"$f":"Gesamtinvestition","v":0},{"$f":"IF($D78<O78,1,0)","v":0},{"$f":"IF($D78>P78,1,0)","v":0},0,{"$f":"IF(Q78>0,U78,\"\")&IF(R78>0,V78,\"\")&IF(S78>0,W78,\"\")","v":""},"174: Le montant de la subvention du pack 2 est trop faible. ","174: Le montant de la subvention du pack 2 est trop élevé. "]
[175,null,"Année de versement",{"$nulls":11},{"$f":"Eing_Beginnjahr","v":0},{"$f":"O79+10","v":10},{"$f":"IF($D79<O79,D78,0)","v":0},{"$f":"IF($D79>P79,Einmaliger_Förderbeitrag_2,0)","v":0},0,{"$f":"IF(Q79>0,U79,\"\")&IF(R79>0,V79,\"\")&IF(S79>0,W79,\"\")","v":""},"175: La subvention du pack 2 ne peut être versée qu'après le démarrage du projet ! ","175: Le versement de la subvention du pack 2 est indiqué plus de 10 ans après le démarrage du projet ! "]
[176,null,"Subvention pluriannuelle (p.ex. KliK)"]
[177,null,"Subvention annuelle moyenne",null,"CHF/an",{"$nulls":9},0,{"$f":"IF(Eing_Förderung_wiederholend_Laufzeit=0,0,Gesamtinvestition/Eing_Förderung_wiederholend_Laufzeit)","v":0},{"$f":"IF($D81<O81,1,0)","v":0},{"$f":"IF($D81>P81,1,0)","v":0},0,{"$f":"IF(Q81>0,U81,\"\")&IF(R81>0,V81,\"\")&IF(S81>0,W81,\"\")","v":""},"177: Le montant de subvention saisi est très faible. ","177: Le montant de subvention saisi est trop élevé. "]
[178,null,"Durée de versement",null,"ans",{"$nulls":9},2,25,{"$f":"IF($D82<O82,jährlicher_Förderbeitrag,0)","v":0},{"$f":"IF($D82>P82,jährlicher_Förderbeitrag,0)","v":0},0,{"$f":"IF(Q82>0,U82,\"\")&IF(R82>0,V82,\"\")&IF(S82>0,W82,\"\")","v":""},"178: La durée de la subvention est trop faible. ","178: La durée de la subvention est trop longue. "]
[179,null,"Année du premier versement",{"$nulls":11},{"$f":"Eing_Beginnjahr","v":0},{"$f":"O83+10","v":10},{"$f":"IF($D83<O83,jährlicher_Förderbeitrag,0)","v":0},{"$f":"IF($D83>P83,jährlicher_Förderbeitrag,0)","v":0},0,{"$f":"IF(Q83>0,U83,\"\")&IF(R83>0,V83,\"\")&IF(S83>0,W83,\"\")","v":""},"179: La subvention ne peut être versée qu'après le démarrage du projet ! ","179: Le versement de la subvention est indiqué plus de 10 ans après le démarrage du projet ! "]
[]
[180,"Valeurs calculées"]
[181,null,"quantité max. de chaleur produite",{"$f":"Eing_verkaufteWM/((100-Eing_Netzverluste))*100","v":0},"MWh/an"]
[182,null,"quantité annuelle max. de chaleur utile issue de la biomasse",{"$f":"D86*Eing_Anteil_Biomasse/100","v":0},"MWh/an"]
[183,null,"besoin annuel max. de combustible fossile (primaire)",{"$f":"IF(Eing_Jahresnutzungsgrad_Kessel=0,0,Erzeugte_Wärmemenge*(Anteil_fossil_erzeugt/100)/Eing_Jahresnutzungsgrad_Kessel*100)","v":0},"MWh/an"]
[184,null,"consommation annuelle d'électricité",{"$f":"Erzeugte_Wärmemenge*Eing_Spez_Stromverbrauch/100","v":0},"MWh/an"]
[185,null,"coûts énergétiques annnuels max. de la biomasse",{"$f":"Eingesetzte_Brennstoffwärme_Biomasse*Eing_Rohstoffpreis_Biomasse","v":0},"CHF/an"]
[186,null,"coûts énergétiques annuels max. de l'énergie fossile",{"$f":"Eingesetzte_Brennstoffwärme_fossil*Eing_Rohstoffpreis_fossil","v":0},"CHF/an"]
[187,null,"coûts annuels max. d'électricité",{"$f":"jährlicher_Stromverbrauch*Eing_Strompreis*1000","v":0},"CHF/an"]
[]
[190,null,"Coût d'investissement global",{"$f":"Gesamtinvestition","v":0},"CHF"]
[191,null,"Montant total des subventions",{"$f":"Einmaliger_Förderbeitrag_1+Einmaliger_Förderbeitrag_2+(jährlicher_Förderbeitrag*Eing_Förderung_wiederholend_Laufzeit)","v":0},"CHF"]
[]
[192,"Coûts annuels / Coûts de production de chaleur",null,"Coûts annuels",null,"Coûts de production de chaleur"]
[193,"(sans subventions)","Coût du capital pour la production de chaleur",{"$f":"ROUND(PMT(Eing_Realzins/100,SUMPRODUCT(D48:D51,I48:I51)/SUM(D48:D51),SUM(D48:D51,0.5*Eing_Kosten_Planung_QM))*-1,0)","v":{"$error":"#DIV/0!"}},"CHF/an",{"$f":"ROUND(D98/Eing_verkaufteWM/10,2)","v":{"$error":"#DIV/0!"}},"ct./kWh"]
[194,null,"Coûts en capital de la distribution de chaleur",{"$f":"ROUND(PMT(Eing_Realzins/100,SUMPRODUCT(D52:D54,I52:I54)/SUM(D52:D54),SUM(D52:D54,0.5*Eing_Kosten_Planung_QM))*-1,0)","v":{"$error":"#DIV/0!"}},"CHF/an",{"$error":"#DIV/0!"},"ct./kWh"]
[195,null,"Entretien et maintenance de la production de chaleur",{"$f":"SUM(D35:D37,D39:D40)-D101","v":{"$error":"#DIV/0!"}},"CHF/an",{"$error":"#DIV/0!"},"ct./kWh"]
[196,null,"Entretien et maintenance de la distribution de chaleur",{"$f":"(SUMPRODUCT(D52:D54,F52:F54)+0.5*Eing_Kosten_Planung_QM*F55)/100+((SUMPRODUCT(D52:D54,F52:F54)+0.5*Eing_Kosten_Planung_QM*F55)/100)/Eing_Unterhaltskosten*SUM(D35:D36,D39:D40)","v":{"$error":"#DIV/0!"}},"CHF/an",{"$error":"#DIV/0!"},"ct./kWh"]
[197,null,"Coûts de l'énergie",{"$f":"SUM(D90:D92)","v":0},"CHF/an",{"$error":"#DIV/0!"},"ct./kWh"]
[198,null,"Coûts annuels",{"$f":"SUM(D98:D102)","v":{"$error":"#DIV/0!"}},"CHF/an",{"$error":"#DIV/0!"},"ct./kWh"]
[199,null,"Subventions (capitalisés pour une durée de 25 ans)",{"$f":"ROUND(PMT(Eing_Realzins/100,25,SUM(Einmaliger_Förderbeitrag_1,Einmaliger_Förderbeitrag_2,Eing_Förderung_wiederholend_Laufzeit*jährlicher_Förderbeitrag)),0)","v":0},"CHF/an",{"$error":"#DIV/0!"},"ct./kWh"]
[198,null,"Coûts annuels incluant les subventions",{"$f":"SUM(D103:D104)","v":{"$error":"#DIV/0!"}},"CHF/an",{"$f":"SUM(F103:F104)","v":{"$error":"#DIV/0!"}},"ct./kWh"]

{"sheet":"E2_Prix de la chaleur","index":2,"n_rows":35,"n_cols":11,"rows_kept":35,"merged":[[5,3,5,8],[6,3,6,8],[7,3,7,8],[9,3,9,8]]}
[200,"QM Chauffages au bois - Modèle de rentabilité - Prix de la chaleur "]
[]
[101,null,null,"Champ de saisie"]
[105,"(hors TVA)"]
[]
[206,"Projet/Variante :",null,{"$f":"IF('E1_Données de projet'!C7=0,\"\",'E1_Données de projet'!C7)","v":""}]
[{"$nulls":3},{"$f":"IF('E1_Données de projet'!C8=0,\"\",'E1_Données de projet'!C8)","v":""}]
[{"$nulls":3},{"$f":"IF('E1_Données de projet'!C9=0,\"\",'E1_Données de projet'!C9)","v":""}]
[]
[207,"Saisi par :",null,{"$f":"IF('E1_Données de projet'!C11=0,\"\",'E1_Données de projet'!C11)","v":""}]
[]
[210,"Saisie du prix de base et du prix de consommation",{"$nulls":8},"Commentaires"]
[]
[211,"Tarif 1",{"$nulls":4},{"$f":"SUMPRODUCT(E3_Consommateurs!$D$18:$XFD$18*(E3_Consommateurs!$D$22:$XFD$22=\"T 1: \"&Eing_Abnehmerart1))/Eing_verkaufteWM*100","v":{"$error":"#DIV/0!"}},"% de la quantité de chaleur"]
[212,{"$nulls":4},"prix de base annuel",null,"CHF/kW an"]
[213,{"$nulls":4},"prix de consommation",null,"CHF/kWh"]
[214,{"$nulls":4},"durée contractuelle",null,"ans"]
[]
[]
[221,"Tarif 2",{"$nulls":4},{"$f":"SUMPRODUCT(E3_Consommateurs!$D$18:$XFD$18*(E3_Consommateurs!$D$22:$XFD$22=\"T 2: \"&Eing_Abnehmerart2))/Eing_verkaufteWM*100","v":{"$error":"#DIV/0!"}},"% de la quantité de chaleur"]
[222,{"$nulls":4},"prix de base annuel",null,"CHF/kW an"]
[223,{"$nulls":4},"prix de consommation",null,"CHF/kWh"]
[224,{"$nulls":4},"durée contractuelle",null,"ans"]
[]
[]
[231,"Tarif 3",{"$nulls":4},{"$f":"SUMPRODUCT(E3_Consommateurs!$D$18:$XFD$18*(E3_Consommateurs!$D$22:$XFD$22=\"T 3: \"&Eing_Abnehmerart3))/Eing_verkaufteWM*100","v":{"$error":"#DIV/0!"}},"% de la quantité de chaleur"]
[232,{"$nulls":4},"prix de base annuel",null,"CHF/kW an"]
[233,{"$nulls":4},"prix de consommation",null,"CHF/kWh"]
[234,{"$nulls":4},"durée contractuelle",null,"ans"]
[]
[]
[241,"Tarif 4",{"$nulls":4},{"$f":"SUMPRODUCT(E3_Consommateurs!$D$18:$XFD$18*(E3_Consommateurs!$D$22:$XFD$22=\"T 4: \"&Eing_Abnehmerart4))/Eing_verkaufteWM*100","v":{"$error":"#DIV/0!"}},"% de la quantité de chaleur"]
[242,{"$nulls":4},"prix de base annuel",null,"CHF/kW an"]
[243,{"$nulls":4},"prix de consommation",null,"CHF/kWh"]
[244,{"$nulls":4},"durée contractuelle",null,"ans"]

{"sheet":"E3_Consommateurs","index":3,"n_rows":38,"n_cols":183,"rows_kept":38}
[300,"QM Chauffages au bois - Modèle de rentabilité - Saisie des consommateurs"]
[]
[101,null,"Champ de saisie"]
[102,null,"Valeur standard ou calcul (modifiable)"]
[103,null,"Champ transmis depuis le relevé de situation"]
[206,"Projet/Variante :",""]
[null,null,""]
[null,null,""]
[]
[207,"Saisi par :",""]
[]
[310,"Indications concernant les consommateurs"]
[]
[311,"Généralités","Numéro"]
[312,null,"Désignation"]
[null,null," "]
[null,null," "]
[320,"Besoin de chaleur","Besoin total de chaleur [MWh/an]"]
[321,null,"Puissance souscrite [kW]"]
[322,"Raccordement","Date de raccordement"]
[323,null,"Année de raccordement"]
[324,"Tarif","Prix de la chaleur - Tarif"]
[325,"(hors TVA)","Coûts de raccordement (uniques) [CHF]"]
[330,null,"Coûts de capital annuels [CHF/an]",{"$f":"IF(ISBLANK(D22),0,D23/VLOOKUP(D22,$B$35:$E$38,4,0))","v":0},0,0,0,0,0,0,0,0,0,0,0,0,0,0,0,0,0,0,0,0,0,0,0,0,0,0,0,0,0,0,0,{"$f":"IF(ISBLANK(AJ22),0,AJ23/VLOOKUP(AJ22,$B$35:$E$38,4,0))","v":0},0,0,0,0,0,0,0,0,0,0,0,0,0,0,0,0,0,0,0,0,0,0,0,0,0,0,0,0,0,0,0,{"$f":"IF(ISBLANK(BP22),0,BP23/VLOOKUP(BP22,$B$35:$E$38,4,0))","v":0},0,0,0,0,0,0,0,0,0,0,0,0,0,0,0,0,0,0,0,0,0,0,0,0,0,0,0,0,0,0,0,{"$f":"IF(ISBLANK(CV22),0,CV23/VLOOKUP(CV22,$B$35:$E$38,4,0))","v":0},0,0,0,0,0,0,0,0,0,0,0,0,0,0,0,0,0,0,0,0,0,0,0,0,0,0,0,0,0,0,0,{"$f":"IF(ISBLANK(EB22),0,EB23/VLOOKUP(EB22,$B$35:$E$38,4,0))","v":0},0,0,0,0,0,0,0,0,0,0,0,0,0,0,0,0,0,0,0,0,0,0,0,0,0,0,0,0,0,0,0,{"$f":"IF(ISBLANK(FH22),0,FH23/VLOOKUP(FH22,$B$35:$E$38,4,0))","v":0},0,0,0,0,0,0,0,0,0,0,0,0,0,0,0,0,0,0,0]
[331,null,"Coûts de base annuels [CHF/an]",{"$f":"IF(ISBLANK(D22),0,(D19*VLOOKUP(D22,$B$35:$D$38,3,0)))","v":0},{"$f":"IF(ISBLANK(E22),0,(E19*VLOOKUP(E22,$B$35:$D$38,3,0)))","v":0},0,0,0,0,0,0,0,0,0,0,0,0,0,0,0,0,0,0,0,0,0,0,0,0,0,0,0,0,0,0,0,0,0,0,0,0,0,0,0,0,0,0,0,0,0,0,0,0,0,0,0,0,0,0,0,0,0,0,0,0,0,0,0,{"$f":"IF(ISBLANK(BQ22),0,(BQ19*VLOOKUP(BQ22,$B$35:$D$38,3,0)))","v":0},0,0,0,0,0,0,0,0,0,0,0,0,0,0,0,0,0,0,0,0,0,0,0,0,0,0,0,0,0,0,0,0,0,0,0,0,0,0,0,0,0,0,0,0,0,0,0,0,0,0,0,0,0,0,0,0,0,0,0,0,0,0,0,{"$f":"IF(ISBLANK(EC22),0,(EC19*VLOOKUP(EC22,$B$35:$D$38,3,0)))","v":0},0,0,0,0,0,0,0,0,0,0,0,0,0,0,0,0,0,0,0,0,0,0,0,0,0,0,0,0,0,0,0,0,0,0,0,0,0,0,0,0,0,0,0,0,0,0,0,0,0,0]
[332,null,"Coûts énergétiques annuels [CHF/an]",{"$f":"IF(ISBLANK(D22),0,(D18*1000*VLOOKUP(D22,$B$35:$D$38,2,0)))","v":0},{"$f":"IF(ISBLANK(E22),0,(E18*1000*VLOOKUP(E22,$B$35:$D$38,2,0)))","v":0},0,0,0,0,0,0,0,0,0,0,0,0,0,0,0,0,0,0,0,0,0,0,0,0,0,0,0,0,0,0,0,0,0,0,0,0,0,0,0,0,0,0,0,0,0,0,0,0,0,0,0,0,0,0,0,0,0,0,0,0,0,0,0,{"$f":"IF(ISBLANK(BQ22),0,(BQ18*1000*VLOOKUP(BQ22,$B$35:$D$38,2,0)))","v":0},0,0,0,0,0,0,0,0,0,0,0,0,0,0,0,0,0,0,0,0,0,0,0,0,0,0,0,0,0,0,0,0,0,0,0,0,0,0,0,0,0,0,0,0,0,0,0,0,0,0,0,0,0,0,0,0,0,0,0,0,0,0,0,{"$f":"IF(ISBLANK(EC22),0,(EC18*1000*VLOOKUP(EC22,$B$35:$D$38,2,0)))","v":0},0,0,0,0,0,0,0,0,0,0,0,0,0,0,0,0,0,0,0,0,0,0,0,0,0,0,0,0,0,0,0,0,0,0,0,0,0,0,0,0,0,0,0,0,0,0,0,0,0,0]
[333,null,"Coûts de base et énergétiques [CHF/an]",{"$f":"IF(ISBLANK(D22),0,SUM(D25:D26))","v":0},{"$f":"IF(ISBLANK(E22),0,SUM(E25:E26))","v":0},0,0,0,0,0,0,0,0,0,0,0,0,0,0,0,0,0,0,0,0,0,0,0,0,0,0,0,0,0,0,0,0,0,0,0,0,0,0,0,0,0,0,0,0,0,0,0,0,0,0,0,0,0,0,0,0,0,0,0,0,0,0,0,{"$f":"IF(ISBLANK(BQ22),0,SUM(BQ25:BQ26))","v":0},0,0,0,0,0,0,0,0,0,0,0,0,0,0,0,0,0,0,0,0,0,0,0,0,0,0,0,0,0,0,0,0,0,0,0,0,0,0,0,0,0,0,0,0,0,0,0,0,0,0,0,0,0,0,0,0,0,0,0,0,0,0,0,{"$f":"IF(ISBLANK(EC22),0,SUM(EC25:EC26))","v":0},0,0,0,0,0,0,0,0,0,0,0,0,0,0,0,0,0,0,0,0,0,0,0,0,0,0,0,0,0,0,0,0,0,0,0,0,0,0,0,0,0,0,0,0,0,0,0,0,0,0]
[334,null,"Coûts annuels [CHF/an]",{"$f":"IF(ISBLANK(D23),0,SUM(D24:D26))","v":0},{"$f":"IF(ISBLANK(E23),0,SUM(E24:E26))","v":0},0,0,0,0,0,0,0,0,0,0,0,0,0,0,0,0,0,0,0,0,0,0,0,0,0,0,0,0,0,0,0,0,0,0,0,0,0,0,0,0,0,0,0,0,0,0,0,0,0,0,0,0,0,0,0,0,0,0,0,0,0,0,0,{"$f":"IF(ISBLANK(BQ23),0,SUM(BQ24:BQ26))","v":0},0,0,0,0,0,0,0,0,0,0,0,0,0,0,0,0,0,0,0,0,0,0,0,0,0,0,0,0,0,0,0,0,0,0,0,0,0,0,0,0,0,0,0,0,0,0,0,0,0,0,0,0,0,0,0,0,0,0,0,0,0,0,0,{"$f":"IF(ISBLANK(EC23),0,SUM(EC24:EC26))","v":0},0,0,0,0,0,0,0,0,0,0,0,0,0,0,0,0,0,0,0,0,0,0,0,0,0,0,0,0,0,0,0,0,0,0,0,0,0,0,0,0,0,0,0,0,0,0,0,0,0,0]
[335,null,"Prix de revient de la chaleur [ct/kWh]",{"$f":"IF(ISBLANK(D18),0,(D28/D18/10))","v":0},{"$f":"IF(ISBLANK(E18),0,(E28/E18/10))","v":0},0,0,0,0,0,0,0,0,0,0,0,0,0,0,0,0,0,0,0,0,0,0,0,0,0,0,0,0,0,0,0,0,0,0,0,0,0,0,0,0,0,0,0,0,0,0,0,0,0,0,0,0,0,0,0,0,0,0,0,0,0,0,0,{"$f":"IF(ISBLANK(BQ18),0,(BQ28/BQ18/10))","v":0},0,0,0,0,0,0,0,0,0,0,0,0,0,0,0,0,0,0,0,0,0,0,0,0,0,0,0,0,0,0,0,0,0,0,0,0,0,0,0,0,0,0,0,0,0,0,0,0,0,0,0,0,0,0,0,0,0,0,0,0,0,0,0,{"$f":"IF(ISBLANK(EC18),0,(EC28/EC18/10))","v":0},0,0,0,0,0,0,0,0,0,0,0,0,0,0,0,0,0,0,0,0,0,0,0,0,0,0,0,0,0,0,0,0,0,0,0,0,0,0,0,0,0,0,0,0,0,0,0,0,0,0]
[]
[]
[]
[]
[null,"Tarifname","Arbeitstarif [CHF/kWh a]","Leistungstarif [CHF/kW]","Vertragslaufzeit [Jahre]"]
[null,{"$f":"\"T 1: \"&Eing_Abnehmerart1","v":"T 1: "},{"$f":"Eing_Arbeitspreis1","v":0},{"$f":"Eing_Leistungspreis1","v":0},{"$f":"Eing_Vertragslaufzeit1","v":0}]
[null,{"$f":"\"T 2: \"&Eing_Abnehmerart2","v":"T 2: "},{"$f":"Eing_Arbeitspreis2","v":0},{"$f":"Eing_Leistungspreis2","v":0},{"$f":"Eing_Vertragslaufzeit2","v":0}]
[null,{"$f":"\"T 3: \"&Eing_Abnehmerart3","v":"T 3: "},{"$f":"Eing_Arbeitspreis3","v":0},{"$f":"Eing_Leistungspreis3","v":0},{"$f":"Eing_Vertragslaufzeit3","v":0}]
[null,{"$f":"\"T 4: \"&Eing_Abnehmerart4","v":"T 4: "},{"$f":"Eing_Arbeitspreis4","v":0},{"$f":"Eing_Leistungspreis4","v":0},{"$f":"Eing_Vertragslaufzeit4","v":0}]

{"sheet":"B1_Calculs","index":4,"n_rows":60,"n_cols":36,"rows_kept":60,"merged":[[2,3,2,8],[3,3,3,8],[5,3,5,8],[6,3,6,8],[7,3,7,8],[9,3,9,8],[11,3,11,8],[14,1,14,4],[15,2,15,4],[16,2,16,4],[17,2,17,4],[18,2,18,4],[19,2,19,4],[20,2,20,4],[21,2,21,4],[22,2,22,4],[26,2,26,4],[27,2,27,4],[28,2,28,4]]}
[500,"QM Chauffages au bois - Modèle de rentabilité - Résultat"]
[]
[101,null,null,"Champ de saisie"]
[102,null,null,"Valeur standard ou calculée (modifiable)"]
[]
[206,"Projet/Variante :",null,{"$f":"IF('E1_Données de projet'!C7=0,\"\",'E1_Données de projet'!C7)","v":""},{"$nulls":5},590,"Évolution économique (graphique)",{"$nulls":10},591,"Évolution état du crédit / valeur résiduelle (graphique)"]
[{"$nulls":3},{"$f":"IF('E1_Données de projet'!C8=0,\"\",'E1_Données de projet'!C8)","v":""}]
[{"$nulls":3},{"$f":"IF('E1_Données de projet'!C9=0,\"\",'E1_Données de projet'!C9)","v":""}]
[]
[207,"Saisi par :",null,{"$f":"IF('E1_Données de projet'!C11=0,\"\",'E1_Données de projet'!C11)","v":""}]
[]
[501,"Avertissements :",null,{"$f":"IF('E1_Données de projet'!C13<>\"\",\"Il y a des avertissements dans le registre 'E1_Données de projet'!\",\"\")","v":"Il y a des avertissements dans le registre 'E1_Données de projet'!"}]
[{"$nulls":6},505]
[510,"Coûts d'exploitation",null,null," (utilisation à 100 % ; année 1)"," [CHF/an]","Augmentation [%]"]
[511,"Total des coûts d'exploitation",{"$nulls":3},{"$f":"SUM(F16:F23)","v":0},{"$f":"IF(F15=0,0,(F16*G16+F17*G17+F19*G19+F18*G18+F20*G20+F21*G21+F22*G22+F23*G23)/(SUM(F16:F23)))","v":{"v":0,"d":"0.00%"}}]
[512,null,"Combustible biomasse",null,null,{"$f":"Eing_Rohstoffpreis_Biomasse*Eingesetzte_Brennstoffwärme_Biomasse","v":0},{"$f":"Eing_allg_Teuerung/100","v":{"v":0,"d":"0.00%"}}]
[513,null,"Combustible fossile",null,null,{"$f":"Eingesetzte_Brennstoffwärme_fossil*Eing_Rohstoffpreis_fossil","v":0},{"v":0,"d":"0.00%"}]
[514,null,"Électricité",null,null,{"$f":"järhliche_Stromkosten","v":0},{"v":0,"d":"0.00%"}]
[515,null,"Coûts d'exploitation",null,null,{"$f":"Eing_Betriebskosten","v":0},{"v":0,"d":"0.00%"}]
[516,null,"Administration",null,null,{"$f":"Eing_Administration","v":0},{"$f":"Eing_allg_Teuerung/100","v":{"v":0,"d":"0.00%"}}]
[517,null,"Frais d'entretien",null,null,{"$f":"Eing_Unterhaltskosten","v":0},{"v":0,"d":"0.00%"}]
[518,null,"Frais de loyer/bail/terrain",null,null,{"$f":"Eing_Kosten_Grundstück","v":0},{"v":0,"d":"0.00%"}]
[519,null,"Autres (assurances, etc.)",null,null,{"$f":"Eing_Sonstige_Kosten","v":0},{"v":0,"d":"0.00%"}]
[520,"Prix de la chaleur",{"$nulls":4},{"$f":"G15","v":{"v":0,"d":"0.00%"}}]
[]
[530,"Données du projet",null,null,"Début du projet",{"$f":"Eing_Beginnjahr","v":0}]
[190,null,"Coût d'investissement global",null,null,{"$f":"Gesamtinvestition","v":0},"CHF"]
[191,null,"Total des subventions",null,null,{"$f":"'E1_Données de projet'!D95","v":0},"CHF"]
[531,null,"Fonds propres max. requis",null,null,{"$f":"-MIN(AB36:AB60)","v":0},"CHF","pour l'année",{"$f":"VLOOKUP(-maxEigenkapital,AB36:AH60,7,0)","v":0}]
[]
[550,{"$nulls":3},"Dépenses",{"$nulls":10},"Recettes",{"$nulls":5},"Compte d'exploitation",null,"Capital",null,null,"Cash-flow"]
[]
[null,"Année","Besoin de chaleur, déperditions réseau incl.","Charge","Combustible biomasse","Combustible fossile","Électricité","Exploitation+ administra-tion","Entretien","Autres\n+ loyer/\nbail","Autres dépenses","Dépenses effectives","Intérêts","Amortissemet","Total des charges","Vente de chaleur","Contributions de raccordement","Subventions","Recettes supplémentaires","Recettes effectives","Recettes totales","Bénéfice/\nperte annuelle","Cumul excédent / déficit","Investissements","Crédits / prêts","Amortissement","Cash-flow","Cash-flow cumulé",null,"Année après la MES","Solde du crédit","Valeur résiduelle des installations","Rémunération de l'investissement","Année"]
[null,551,552,553,554,555,556,557,558,559,560,561,562,563,564,571,572,573,574,575,576,577,578,580,581,582,583,584,null,586,587,588,589,551]
[null,"[aaaa]","MWh/an","%","CHF/an","CHF/an","CHF/an","CHF/an","CHF/an","CHF/an","CHF/an","CHF/an","CHF/an","CHF/an","CHF/an","CHF/an","CHF/an","CHF/an","CHF/an","CHF/an","CHF/an","CHF/an","CHF/an","CHF/an",null,null,"CHF/an","CHF",null,null,"CHF","CHF","%","[aaaa]"]
[null,{"$f":"Eing_Beginnjahr","v":0},{"$f":"(SUMPRODUCT((E3_Consommateurs!$D$21:$XFD$21<B1_Calculs!B36)*E3_Consommateurs!$D$18:$XFD$18)+SUMPRODUCT((E3_Consommateurs!$D$21:$XFD$21=B1_Calculs!B36)*E3_Consommateurs!$D$18:$XFD$18*E3_Consommateurs!$D$20:$XFD$20))/(100-Eing_Netzverluste)*100*(1-'E1_Données de projet'!$D$19/100)^(B1_Calculs!B36-'E1_Données de projet'!$D$22)","v":0},{"$f":"IF(Erzeugte_Wärmemenge=0,0,C36/Erzeugte_Wärmemenge*100)","v":{"v":0,"d":"0.00"}},{"$f":"Eingesetzte_Brennstoffwärme_Biomasse*D36/100*Eing_Rohstoffpreis_Biomasse*((1+$G$16)^(B36-$B$36))","v":0},{"$f":"Eingesetzte_Brennstoffwärme_fossil*Eing_Rohstoffpreis_fossil*D36/100*(1+$G$17)^(B36-$B$36)","v":0},{"$f":"Eing_Spez_Stromverbrauch*10*C36*Eing_Strompreis*(1+$G$18)^(B36-B$36)","v":0},{"$f":"($F$19*(1+$G$19)^(B36-B$36)+$F$20*(1+$G$20)^(B36-B$36))*(B36>='E1_Données de projet'!$D$22)*VLOOKUP(B36,'E1_Données de projet'!$D$58:$I$60,6)/100","v":0},{"$f":"$F$21*(1+$G$21)^(B36-B$36)*(B36>='E1_Données de projet'!$D$22)*VLOOKUP(B36,'E1_Données de projet'!$D$58:$I$60,6)/100","v":0},{"$f":"Eing_Kosten_Grundstück+Eing_Sonstige_Kosten","v":0},null,null,{"$f":"-IF(Eing_Kreditlaufzeit_1=0,(B36>=Eing_Kreditstartjahr_1)*-Eing_Kredit_1,(-Eing_Kredit_1+(Eing_Kredit_1/Eing_Kreditlaufzeit_1)*(B36-Eing_Kreditstartjahr_1))*(Eing_Kreditlaufzeit_1>B36-Eing_Kreditstartjahr_1)*(B36>=Eing_Kreditstartjahr_1))*Eing_Kreditzinssatz_1/100-IF(Eing_Kreditlaufzeit_2=0,(B36>=Eing_Kreditstartjahr_2)*-Eing_Kredit_2,(-Eing_Kredit_2+(Eing_Kredit_2/Eing_Kreditlaufzeit_2)*(B36-Eing_Kreditstartjahr_2))*(Eing_Kreditlaufzeit_2>B36-Eing_Kreditstartjahr_2)*(B36>=Eing_Kreditstartjahr_2))*Eing_Kreditzinssatz_2/100","v":0},{"$f":"+('E1_Données de projet'!$D$48*(1+Eing_allg_Teuerung/100)^('E1_Données de projet'!$I$48*ROUNDDOWN((AD36-1)/'E1_Données de projet'!$I$48,0))/'E1_Données de projet'!$I$48\n+'E1_Données de projet'!$D$49*(1+Eing_allg_Teuerung/100)^('E1_Données de projet'!$I$49*ROUNDDOWN((AD36-1)/'E1_Données de projet'!$I$49,0))/'E1_Données de projet'!$I$49\n+'E1_Données de projet'!$D$50*(1+Eing_allg_Teuerung/100)^('E1_Données de projet'!$I$50*ROUNDDOWN((AD36-1)/'E1_Données de projet'!$I$50,0))/'E1_Données de projet'!$I$50\n+'E1_Données de projet'!$D$51*(1+Eing_allg_Teuerung/100)^('E1_Données de projet'!$I$51*ROUNDDOWN((AD36-1)/'E1_Données de projet'!$I$51,0))/'E1_Données de projet'!$I$51\n+'E1_Données de projet'!$D$52*(1+Eing_allg_Teuerung/100)^('E1_Données de projet'!$I$52*ROUNDDOWN((AD36-1)/'E1_Données de projet'!$I$52,0))/'E1_Données de projet'!$I$52\n+'E1_Données de projet'!$D$53*(1+Eing_allg_Teuerung/100)^('E1_Données de projet'!$I$53*ROUNDDOWN((AD36-1)/'E1_Données de projet'!$I$53,0))/'E1_Données de projet'!$I$53\n)*((AD36)>0)*VLOOKUP(B36,'E1_Données de projet'!$D$58:$I$60,6\n)/100","v":0},{"$f":"IF(L36,SUM(L36:N36),SUM(E36:N36))","v":0},{"$f":"SUM((SUMPRODUCT((E3_Consommateurs!$D$21:$XFD$21<B1_Calculs!B36)*E3_Consommateurs!$D$25:$XFD$25)+SUMPRODUCT((E3_Consommateurs!$D$21:$XFD$21=B1_Calculs!B36)*E3_Consommateurs!$D$25:$XFD$25*E3_Consommateurs!$D$20:$XFD$20))*(1+$G$24)^(B36-B$36),(SUMPRODUCT((E3_Consommateurs!$D$21:$XFD$21<B1_Calculs!B36)*E3_Consommateurs!$D$26:$XFD$26)+SUMPRODUCT((E3_Consommateurs!$D$21:$XFD$21=B1_Calculs!B36)*E3_Consommateurs!$D$26:$XFD$26*E3_Consommateurs!$D$20:$XFD$20))*((1+$G$24)*(1-'E1_Données de projet'!$D$19/100))^(B36-B$36))","v":0},{"$f":"SUMPRODUCT((E3_Consommateurs!$D$21:$XFD$21<=B1_Calculs!B36)*E3_Consommateurs!$D$23:$XFD$23)","v":0},{"$f":"SUM(jährlicher_Förderbeitrag*(B36-Erstauszahlung_jährlFörderung<=Eing_Förderung_wiederholend_Laufzeit-1)*(B36>='E1_Données de projet'!$D$83),'E1_Données de projet'!$D$76*(B36='E1_Données de projet'!$D$77),'E1_Données de projet'!$D$78*(B36='E1_Données de projet'!$D$79))","v":0},null,null,{"$f":"IF(T36,T36,SUM(P36:S36))","v":0},{"$f":"U36-O36","v":0},{"$f":"V36","v":0},{"$f":"'E1_Données de projet'!$D$48*(AD36-1='E1_Données de projet'!$I$48)*(1+Eing_allg_Teuerung/100)^'E1_Données de projet'!$I$48\n+'E1_Données de projet'!$D$49*(AD36-1='E1_Données de projet'!$I$49)*(1+Eing_allg_Teuerung/100)^'E1_Données de projet'!$I$49\n+'E1_Données de projet'!$D$50*(AD36-1='E1_Données de projet'!$I$50)*(1+Eing_allg_Teuerung/100)^'E1_Données de projet'!$I$50\n+'E1_Données de projet'!$D$51*(AD36-1='E1_Données de projet'!$I$51)*(1+Eing_allg_Teuerung/100)^'E1_Données de projet'!$I$51\n+'E1_Données de projet'!$D$52*(AD36-1='E1_Données de projet'!$I$52)*(1+Eing_allg_Teuerung/100)^'E1_Données de projet'!$I$52\n+'E1_Données de projet'!$D$53*(AD36-1='E1_Données de projet'!$I$53)*(1+Eing_allg_Teuerung/100)^'E1_Données de projet'!$I$53\n+Gesamtinvestition*SUMPRODUCT(('E1_Données de projet'!$D$58:$D$60=B36)*'E1_Données de projet'!$F$58:$F$60)/100","v":0},{"$f":"Eing_Kredit_1*(B36=Eing_Kreditstartjahr_1)+Eing_Kredit_2*(B36=Eing_Kreditstartjahr_2)","v":0},{"$f":"IF(Eing_Kreditlaufzeit_1<>0,(Eing_Kredit_1/Eing_Kreditlaufzeit_1)*(Eing_Kreditlaufzeit_1>B36-1-Eing_Kreditstartjahr_1)*(B36>Eing_Kreditstartjahr_1))\n+IF(Eing_Kreditlaufzeit_2<>0,(Eing_Kredit_2/Eing_Kreditlaufzeit_2)*(Eing_Kreditlaufzeit_2>B36-1-Eing_Kreditstartjahr_2)*(B36>Eing_Kreditstartjahr_2))","v":0},{"$f":"U36-(O36-N36)-X36-Z36+Y36","v":0},{"$f":"AA36","v":0},null,{"$f":"MAX(B1_Calculs!B36+1-'E1_Données de projet'!$D$22,0)","v":1},{"$f":"IF(Eing_Kreditlaufzeit_1=0,(B36>=Eing_Kreditstartjahr_1)*-Eing_Kredit_1,(-Eing_Kredit_1+(Eing_Kredit_1/Eing_Kreditlaufzeit_1)*(B36-Eing_Kreditstartjahr_1))*(Eing_Kreditlaufzeit_1>B36-Eing_Kreditstartjahr_1)*(B36>=Eing_Kreditstartjahr_1))+IF(Eing_Kreditlaufzeit_2=0,(B36>=Eing_Kreditstartjahr_2)*-Eing_Kredit_2,(-Eing_Kredit_2+(Eing_Kredit_2/Eing_Kreditlaufzeit_2)*(B36-Eing_Kreditstartjahr_2))*(Eing_Kreditlaufzeit_2>B36-Eing_Kreditstartjahr_2)*(B36>=Eing_Kreditstartjahr_2))","v":0},{"$f":"'E1_Données de projet'!$D$48*(AD36-1='E1_Données de projet'!$I$48)*(1+Eing_allg_Teuerung/100)^'E1_Données de projet'!$I$48\n+'E1_Données de projet'!$D$49*(AD36-1='E1_Données de projet'!$I$49)*(1+Eing_allg_Teuerung/100)^'E1_Données de projet'!$I$49\n+'E1_Données de projet'!$D$50*(AD36-1='E1_Données de projet'!$I$50)*(1+Eing_allg_Teuerung/100)^'E1_Données de projet'!$I$50\n+'E1_Données de projet'!$D$51*(AD36-1='E1_Données de projet'!$I$51)*(1+Eing_allg_Teuerung/100)^'E1_Données de projet'!$I$51\n+'E1_Données de projet'!$D$52*(AD36-1='E1_Données de projet'!$I$52)*(1+Eing_allg_Teuerung/100)^'E1_Données de projet'!$I$52\n+'E1_Données de projet'!$D$53*(AD36-1='E1_Données de projet'!$I$53)*(1+Eing_allg_Teuerung/100)^'E1_Données de projet'!$I$53\n+(Gesamtinvestition-SUM('E1_Données de projet'!$D$54:$D$55))*SUMPRODUCT(('E1_Données de projet'!$D$58:$D$60=B36)*'E1_Données de projet'!$F$58:$F$60)/100-N36","v":0},{"$f":"IF(ISNUMBER(IRR(AI36)),IRR(AI36),\"-\")","v":"-"},{"$f":"B36","v":0},{"$f":"SUM(-$X36,$V36,$N36,AF36)","v":0},{"$f":"SUM(-$X36,$V36,$N36)","v":0}]
[null,{"$f":"B36+1","v":1},{"$f":"(SUMPRODUCT((E3_Consommateurs!$D$21:$XFD$21<B1_Calculs!B37)*E3_Consommateurs!$D$18:$XFD$18)+SUMPRODUCT((E3_Consommateurs!$D$21:$XFD$21=B1_Calculs!B37)*E3_Consommateurs!$D$18:$XFD$18*E3_Consommateurs!$D$20:$XFD$20))/(100-Eing_Netzverluste)*100*(1-'E1_Données de projet'!$D$19/100)^(B1_Calculs!B37-'E1_Données de projet'!$D$22)","v":0},{"v":0,"d":"0.00"},0,0,0,{"$f":"($F$19*(1+$G$19)^(B37-B$36)+$F$20*(1+$G$20)^(B37-B$36))*(B37>='E1_Données de projet'!$D$22)*VLOOKUP(B37,'E1_Données de projet'!$D$58:$I$60,6)/100","v":0},{"$f":"$F$21*(1+$G$21)^(B37-B$36)*(B37>='E1_Données de projet'!$D$22)*VLOOKUP(B37,'E1_Données de projet'!$D$58:$I$60,6)/100","v":0},{"$f":"$F$22*(1+$G$22)^(B37-B$36)+$F$23*(1+$G$23)^(B37-B$36)","v":0},null,null,0,{"$f":"+('E1_Données de projet'!$D$48*(1+Eing_allg_Teuerung/100)^('E1_Données de projet'!$I$48*ROUNDDOWN((AD37-1)/'E1_Données de projet'!$I$48,0))/'E1_Données de projet'!$I$48\n+'E1_Données de projet'!$D$49*(1+Eing_allg_Teuerung/100)^('E1_Données de projet'!$I$49*ROUNDDOWN((AD37-1)/'E1_Données de projet'!$I$49,0))/'E1_Données de projet'!$I$49\n+'E1_Données de projet'!$D$50*(1+Eing_allg_Teuerung/100)^('E1_Données de projet'!$I$50*ROUNDDOWN((AD37-1)/'E1_Données de projet'!$I$50,0))/'E1_Données de projet'!$I$50\n+'E1_Données de projet'!$D$51*(1+Eing_allg_Teuerung/100)^('E1_Données de projet'!$I$51*ROUNDDOWN((AD37-1)/'E1_Données de projet'!$I$51,0))/'E1_Données de projet'!$I$51\n+'E1_Données de projet'!$D$52*(1+Eing_allg_Teuerung/100)^('E1_Données de projet'!$I$52*ROUNDDOWN((AD37-1)/'E1_Données de projet'!$I$52,0))/'E1_Données de projet'!$I$52\n+'E1_Données de projet'!$D$53*(1+Eing_allg_Teuerung/100)^('E1_Données de projet'!$I$53*ROUNDDOWN((AD37-1)/'E1_Données de projet'!$I$53,0))/'E1_Données de projet'!$I$53\n)*((AD37)>0)*VLOOKUP(B37,'E1_Données de projet'!$D$58:$I$60,6\n)/100","v":0},{"$f":"IF(L37,SUM(L37:N37),SUM(E37:N37))","v":0},{"$f":"SUM((SUMPRODUCT((E3_Consommateurs!$D$21:$XFD$21<B1_Calculs!B37)*E3_Consommateurs!$D$25:$XFD$25)+SUMPRODUCT((E3_Consommateurs!$D$21:$XFD$21=B1_Calculs!B37)*E3_Consommateurs!$D$25:$XFD$25*E3_Consommateurs!$D$20:$XFD$20))*(1+$G$24)^(B37-B$36),(SUMPRODUCT((E3_Consommateurs!$D$21:$XFD$21<B1_Calculs!B37)*E3_Consommateurs!$D$26:$XFD$26)+SUMPRODUCT((E3_Consommateurs!$D$21:$XFD$21=B1_Calculs!B37)*E3_Consommateurs!$D$26:$XFD$26*E3_Consommateurs!$D$20:$XFD$20))*((1+$G$24)*(1-'E1_Données de projet'!$D$19/100))^(B37-B$36))","v":0},{"$f":"SUMPRODUCT((E3_Consommateurs!$D$21:$XFD$21=B1_Calculs!B37)*E3_Consommateurs!$D$23:$XFD$23)","v":0},{"$f":"SUM(jährlicher_Förderbeitrag*(B37-Erstauszahlung_jährlFörderung<=Eing_Förderung_wiederholend_Laufzeit-1)*(B37>='E1_Données de projet'!$D$83),'E1_Données de projet'!$D$76*(B37='E1_Données de projet'!$D$77),'E1_Données de projet'!$D$78*(B37='E1_Données de projet'!$D$79))","v":0},null,null,{"$f":"IF(T37,T37,SUM(P37:S37))","v":0},{"$f":"U37-O37","v":0},{"$f":"V37+W36","v":0},{"$f":"'E1_Données de projet'!$D$48*(AD37-1='E1_Données de projet'!$I$48)*(1+Eing_allg_Teuerung/100)^'E1_Données de projet'!$I$48\n+'E1_Données de projet'!$D$49*(AD37-1='E1_Données de projet'!$I$49)*(1+Eing_allg_Teuerung/100)^'E1_Données de projet'!$I$49\n+'E1_Données de projet'!$D$50*(AD37-1='E1_Données de projet'!$I$50)*(1+Eing_allg_Teuerung/100)^'E1_Données de projet'!$I$50\n+'E1_Données de projet'!$D$51*(AD37-1='E1_Données de projet'!$I$51)*(1+Eing_allg_Teuerung/100)^'E1_Données de projet'!$I$51\n+'E1_Données de projet'!$D$52*(AD37-1='E1_Données de projet'!$I$52)*(1+Eing_allg_Teuerung/100)^'E1_Données de projet'!$I$52\n+'E1_Données de projet'!$D$53*(AD37-1='E1_Données de projet'!$I$53)*(1+Eing_allg_Teuerung/100)^'E1_Données de projet'!$I$53\n+Gesamtinvestition*SUMPRODUCT(('E1_Données de projet'!$D$58:$D$60=B37)*'E1_Données de projet'!$F$58:$F$60)/100","v":0},0,0,{"$f":"U37-(O37-N37)-X37-Z37+Y37","v":0},{"$f":"AB36+AA37","v":0},null,{"$f":"MAX(B1_Calculs!B37+1-'E1_Données de projet'!$D$22,0)","v":2},0,{"$f":"'E1_Données de projet'!$D$48*(AD37-1='E1_Données de projet'!$I$48)*(1+Eing_allg_Teuerung/100)^'E1_Données de projet'!$I$48\n+'E1_Données de projet'!$D$49*(AD37-1='E1_Données de projet'!$I$49)*(1+Eing_allg_Teuerung/100)^'E1_Données de projet'!$I$49\n+'E1_Données de projet'!$D$50*(AD37-1='E1_Données de projet'!$I$50)*(1+Eing_allg_Teuerung/100)^'E1_Données de projet'!$I$50\n+'E1_Données de projet'!$D$51*(AD37-1='E1_Données de projet'!$I$51)*(1+Eing_allg_Teuerung/100)^'E1_Données de projet'!$I$51\n+'E1_Données de projet'!$D$52*(AD37-1='E1_Données de projet'!$I$52)*(1+Eing_allg_Teuerung/100)^'E1_Données de projet'!$I$52\n+'E1_Données de projet'!$D$53*(AD37-1='E1_Données de projet'!$I$53)*(1+Eing_allg_Teuerung/100)^'E1_Données de projet'!$I$53\n+(Gesamtinvestition-SUM('E1_Données de projet'!$D$54:$D$55))*SUMPRODUCT(('E1_Données de projet'!$D$58:$D$60=B37)*'E1_Données de projet'!$F$58:$F$60)/100+AF36-N37","v":0},{"$f":"IF(ISNUMBER(IRR((AJ$36:AJ36,AI37))),IRR((AJ$36:AJ36,AI37)),\"-\")","v":"-"},1,{"$f":"SUM(-$X37,$V37,$N37,AF37)","v":0},{"$f":"SUM(-$X37,$V37,$N37)","v":0}]
[null,{"$f":"B37+1","v":2},{"$f":"(SUMPRODUCT((E3_Consommateurs!$D$21:$XFD$21<B1_Calculs!B38)*E3_Consommateurs!$D$18:$XFD$18)+SUMPRODUCT((E3_Consommateurs!$D$21:$XFD$21=B1_Calculs!B38)*E3_Consommateurs!$D$18:$XFD$18*E3_Consommateurs!$D$20:$XFD$20))/(100-Eing_Netzverluste)*100*(1-'E1_Données de projet'!$D$19/100)^(B1_Calculs!B38-'E1_Données de projet'!$D$22)","v":0},{"v":0,"d":"0.00"},0,0,0,{"$f":"($F$19*(1+$G$19)^(B38-B$36)+$F$20*(1+$G$20)^(B38-B$36))*(B38>='E1_Données de projet'!$D$22)*VLOOKUP(B38,'E1_Données de projet'!$D$58:$I$60,6)/100","v":0},{"$f":"$F$21*(1+$G$21)^(B38-B$36)*(B38>='E1_Données de projet'!$D$22)*VLOOKUP(B38,'E1_Données de projet'!$D$58:$I$60,6)/100","v":0},0,null,null,0,{"$f":"+('E1_Données de projet'!$D$48*(1+Eing_allg_Teuerung/100)^('E1_Données de projet'!$I$48*ROUNDDOWN((AD38-1)/'E1_Données de projet'!$I$48,0))/'E1_Données de projet'!$I$48\n+'E1_Données de projet'!$D$49*(1+Eing_allg_Teuerung/100)^('E1_Données de projet'!$I$49*ROUNDDOWN((AD38-1)/'E1_Données de projet'!$I$49,0))/'E1_Données de projet'!$I$49\n+'E1_Données de projet'!$D$50*(1+Eing_allg_Teuerung/100)^('E1_Données de projet'!$I$50*ROUNDDOWN((AD38-1)/'E1_Données de projet'!$I$50,0))/'E1_Données de projet'!$I$50\n+'E1_Données de projet'!$D$51*(1+Eing_allg_Teuerung/100)^('E1_Données de projet'!$I$51*ROUNDDOWN((AD38-1)/'E1_Données de projet'!$I$51,0))/'E1_Données de projet'!$I$51\n+'E1_Données de projet'!$D$52*(1+Eing_allg_Teuerung/100)^('E1_Données de projet'!$I$52*ROUNDDOWN((AD38-1)/'E1_Données de projet'!$I$52,0))/'E1_Données de projet'!$I$52\n+'E1_Données de projet'!$D$53*(1+Eing_allg_Teuerung/100)^('E1_Données de projet'!$I$53*ROUNDDOWN((AD38-1)/'E1_Données de projet'!$I$53,0))/'E1_Données de projet'!$I$53\n)*((AD38)>0)*VLOOKUP(B38,'E1_Données de projet'!$D$58:$I$60,6\n)/100","v":0},0,{"$f":"SUM((SUMPRODUCT((E3_Consommateurs!$D$21:$XFD$21<B1_Calculs!B38)*E3_Consommateurs!$D$25:$XFD$25)+SUMPRODUCT((E3_Consommateurs!$D$21:$XFD$21=B1_Calculs!B38)*E3_Consommateurs!$D$25:$XFD$25*E3_Consommateurs!$D$20:$XFD$20))*(1+$G$24)^(B38-B$36),(SUMPRODUCT((E3_Consommateurs!$D$21:$XFD$21<B1_Calculs!B38)*E3_Consommateurs!$D$26:$XFD$26)+SUMPRODUCT((E3_Consommateurs!$D$21:$XFD$21=B1_Calculs!B38)*E3_Consommateurs!$D$26:$XFD$26*E3_Consommateurs!$D$20:$XFD$20))*((1+$G$24)*(1-'E1_Données de projet'!$D$19/100))^(B38-B$36))","v":0},{"$f":"SUMPRODUCT((E3_Consommateurs!$D$21:$XFD$21=B1_Calculs!B38)*E3_Consommateurs!$D$23:$XFD$23)","v":0},{"$f":"SUM(jährlicher_Förderbeitrag*(B38-Erstauszahlung_jährlFörderung<=Eing_Förderung_wiederholend_Laufzeit-1)*(B38>='E1_Données de projet'!$D$83),'E1_Données de projet'!$D$76*(B38='E1_Données de projet'!$D$77),'E1_Données de projet'!$D$78*(B38='E1_Données de projet'!$D$79))","v":0},null,null,0,0,{"$f":"V38+W37","v":0},{"$f":"'E1_Données de projet'!$D$48*(AD38-1='E1_Données de projet'!$I$48)*(1+Eing_allg_Teuerung/100)^'E1_Données de projet'!$I$48\n+'E1_Données de projet'!$D$49*(AD38-1='E1_Données de projet'!$I$49)*(1+Eing_allg_Teuerung/100)^'E1_Données de projet'!$I$49\n+'E1_Données de projet'!$D$50*(AD38-1='E1_Données de projet'!$I$50)*(1+Eing_allg_Teuerung/100)^'E1_Données de projet'!$I$50\n+'E1_Données de projet'!$D$51*(AD38-1='E1_Données de projet'!$I$51)*(1+Eing_allg_Teuerung/100)^'E1_Données de projet'!$I$51\n+'E1_Données de projet'!$D$52*(AD38-1='E1_Données de projet'!$I$52)*(1+Eing_allg_Teuerung/100)^'E1_Données de projet'!$I$52\n+'E1_Données de projet'!$D$53*(AD38-1='E1_Données de projet'!$I$53)*(1+Eing_allg_Teuerung/100)^'E1_Données de projet'!$I$53\n+Gesamtinvestition*SUMPRODUCT(('E1_Données de projet'!$D$58:$D$60=B38)*'E1_Données de projet'!$F$58:$F$60)/100","v":0},0,0,0,0,null,{"$f":"MAX(B1_Calculs!B38+1-'E1_Données de projet'!$D$22,0)","v":3},0,{"$f":"'E1_Données de projet'!$D$48*(AD38-1='E1_Données de projet'!$I$48)*(1+Eing_allg_Teuerung/100)^'E1_Données de projet'!$I$48\n+'E1_Données de projet'!$D$49*(AD38-1='E1_Données de projet'!$I$49)*(1+Eing_allg_Teuerung/100)^'E1_Données de projet'!$I$49\n+'E1_Données de projet'!$D$50*(AD38-1='E1_Données de projet'!$I$50)*(1+Eing_allg_Teuerung/100)^'E1_Données de projet'!$I$50\n+'E1_Données de projet'!$D$51*(AD38-1='E1_Données de projet'!$I$51)*(1+Eing_allg_Teuerung/100)^'E1_Données de projet'!$I$51\n+'E1_Données de projet'!$D$52*(AD38-1='E1_Données de projet'!$I$52)*(1+Eing_allg_Teuerung/100)^'E1_Données de projet'!$I$52\n+'E1_Données de projet'!$D$53*(AD38-1='E1_Données de projet'!$I$53)*(1+Eing_allg_Teuerung/100)^'E1_Données de projet'!$I$53\n+(Gesamtinvestition-SUM('E1_Données de projet'!$D$54:$D$55))*SUMPRODUCT(('E1_Données de projet'!$D$58:$D$60=B38)*'E1_Données de projet'!$F$58:$F$60)/100+AF37-N38","v":0},{"$f":"IF(ISNUMBER(IRR((AJ$36:AJ37,AI38))),IRR((AJ$36:AJ37,AI38)),\"-\")","v":"-"},2,{"$f":"SUM(-$X38,$V38,$N38,AF38)","v":0},0]
[null,3,{"$f":"(SUMPRODUCT((E3_Consommateurs!$D$21:$XFD$21<B1_Calculs!B39)*E3_Consommateurs!$D$18:$XFD$18)+SUMPRODUCT((E3_Consommateurs!$D$21:$XFD$21=B1_Calculs!B39)*E3_Consommateurs!$D$18:$XFD$18*E3_Consommateurs!$D$20:$XFD$20))/(100-Eing_Netzverluste)*100*(1-'E1_Données de projet'!$D$19/100)^(B1_Calculs!B39-'E1_Données de projet'!$D$22)","v":0},{"v":0,"d":"0.00"},0,0,0,{"$f":"($F$19*(1+$G$19)^(B39-B$36)+$F$20*(1+$G$20)^(B39-B$36))*(B39>='E1_Données de projet'!$D$22)*VLOOKUP(B39,'E1_Données de projet'!$D$58:$I$60,6)/100","v":0},{"$f":"$F$21*(1+$G$21)^(B39-B$36)*(B39>='E1_Données de projet'!$D$22)*VLOOKUP(B39,'E1_Données de projet'!$D$58:$I$60,6)/100","v":0},0,null,null,0,{"$f":"+('E1_Données de projet'!$D$48*(1+Eing_allg_Teuerung/100)^('E1_Données de projet'!$I$48*ROUNDDOWN((AD39-1)/'E1_Données de projet'!$I$48,0))/'E1_Données de projet'!$I$48\n+'E1_Données de projet'!$D$49*(1+Eing_allg_Teuerung/100)^('E1_Données de projet'!$I$49*ROUNDDOWN((AD39-1)/'E1_Données de projet'!$I$49,0))/'E1_Données de projet'!$I$49\n+'E1_Données de projet'!$D$50*(1+Eing_allg_Teuerung/100)^('E1_Données de projet'!$I$50*ROUNDDOWN((AD39-1)/'E1_Données de projet'!$I$50,0))/'E1_Données de projet'!$I$50\n+'E1_Données de projet'!$D$51*(1+Eing_allg_Teuerung/100)^('E1_Données de projet'!$I$51*ROUNDDOWN((AD39-1)/'E1_Données de projet'!$I$51,0))/'E1_Données de projet'!$I$51\n+'E1_Données de projet'!$D$52*(1+Eing_allg_Teuerung/100)^('E1_Données de projet'!$I$52*ROUNDDOWN((AD39-1)/'E1_Données de projet'!$I$52,0))/'E1_Données de projet'!$I$52\n+'E1_Données de projet'!$D$53*(1+Eing_allg_Teuerung/100)^('E1_Données de projet'!$I$53*ROUNDDOWN((AD39-1)/'E1_Données de projet'!$I$53,0))/'E1_Données de projet'!$I$53\n)*((AD39)>0)*VLOOKUP(B39,'E1_Données de projet'!$D$58:$I$60,6\n)/100","v":0},0,{"$f":"SUM((SUMPRODUCT((E3_Consommateurs!$D$21:$XFD$21<B1_Calculs!B39)*E3_Consommateurs!$D$25:$XFD$25)+SUMPRODUCT((E3_Consommateurs!$D$21:$XFD$21=B1_Calculs!B39)*E3_Consommateurs!$D$25:$XFD$25*E3_Consommateurs!$D$20:$XFD$20))*(1+$G$24)^(B39-B$36),(SUMPRODUCT((E3_Consommateurs!$D$21:$XFD$21<B1_Calculs!B39)*E3_Consommateurs!$D$26:$XFD$26)+SUMPRODUCT((E3_Consommateurs!$D$21:$XFD$21=B1_Calculs!B39)*E3_Consommateurs!$D$26:$XFD$26*E3_Consommateurs!$D$20:$XFD$20))*((1+$G$24)*(1-'E1_Données de projet'!$D$19/100))^(B39-B$36))","v":0},{"$f":"SUMPRODUCT((E3_Consommateurs!$D$21:$XFD$21=B1_Calculs!B39)*E3_Consommateurs!$D$23:$XFD$23)","v":0},{"$f":"SUM(jährlicher_Förderbeitrag*(B39-Erstauszahlung_jährlFörderung<=Eing_Förderung_wiederholend_Laufzeit-1)*(B39>='E1_Données de projet'!$D$83),'E1_Données de projet'!$D$76*(B39='E1_Données de projet'!$D$77),'E1_Données de projet'!$D$78*(B39='E1_Données de projet'!$D$79))","v":0},null,null,0,0,0,{"$f":"'E1_Données de projet'!$D$48*(AD39-1='E1_Données de projet'!$I$48)*(1+Eing_allg_Teuerung/100)^'E1_Données de projet'!$I$48\n+'E1_Données de projet'!$D$49*(AD39-1='E1_Données de projet'!$I$49)*(1+Eing_allg_Teuerung/100)^'E1_Données de projet'!$I$49\n+'E1_Données de projet'!$D$50*(AD39-1='E1_Données de projet'!$I$50)*(1+Eing_allg_Teuerung/100)^'E1_Données de projet'!$I$50\n+'E1_Données de projet'!$D$51*(AD39-1='E1_Données de projet'!$I$51)*(1+Eing_allg_Teuerung/100)^'E1_Données de projet'!$I$51\n+'E1_Données de projet'!$D$52*(AD39-1='E1_Données de projet'!$I$52)*(1+Eing_allg_Teuerung/100)^'E1_Données de projet'!$I$52\n+'E1_Données de projet'!$D$53*(AD39-1='E1_Données de projet'!$I$53)*(1+Eing_allg_Teuerung/100)^'E1_Données de projet'!$I$53\n+Gesamtinvestition*SUMPRODUCT(('E1_Données de projet'!$D$58:$D$60=B39)*'E1_Données de projet'!$F$58:$F$60)/100","v":0},0,0,0,0,null,{"$f":"MAX(B1_Calculs!B39+1-'E1_Données de projet'!$D$22,0)","v":4},0,{"$f":"'E1_Données de projet'!$D$48*(AD39-1='E1_Données de projet'!$I$48)*(1+Eing_allg_Teuerung/100)^'E1_Données de projet'!$I$48\n+'E1_Données de projet'!$D$49*(AD39-1='E1_Données de projet'!$I$49)*(1+Eing_allg_Teuerung/100)^'E1_Données de projet'!$I$49\n+'E1_Données de projet'!$D$50*(AD39-1='E1_Données de projet'!$I$50)*(1+Eing_allg_Teuerung/100)^'E1_Données de projet'!$I$50\n+'E1_Données de projet'!$D$51*(AD39-1='E1_Données de projet'!$I$51)*(1+Eing_allg_Teuerung/100)^'E1_Données de projet'!$I$51\n+'E1_Données de projet'!$D$52*(AD39-1='E1_Données de projet'!$I$52)*(1+Eing_allg_Teuerung/100)^'E1_Données de projet'!$I$52\n+'E1_Données de projet'!$D$53*(AD39-1='E1_Données de projet'!$I$53)*(1+Eing_allg_Teuerung/100)^'E1_Données de projet'!$I$53\n+(Gesamtinvestition-SUM('E1_Données de projet'!$D$54:$D$55))*SUMPRODUCT(('E1_Données de projet'!$D$58:$D$60=B39)*'E1_Données de projet'!$F$58:$F$60)/100+AF38-N39","v":0},{"$f":"IF(ISNUMBER(IRR((AJ$36:AJ38,AI39))),IRR((AJ$36:AJ38,AI39)),\"-\")","v":"-"},3,0,0]
[null,4,{"$f":"(SUMPRODUCT((E3_Consommateurs!$D$21:$XFD$21<B1_Calculs!B40)*E3_Consommateurs!$D$18:$XFD$18)+SUMPRODUCT((E3_Consommateurs!$D$21:$XFD$21=B1_Calculs!B40)*E3_Consommateurs!$D$18:$XFD$18*E3_Consommateurs!$D$20:$XFD$20))/(100-Eing_Netzverluste)*100*(1-'E1_Données de projet'!$D$19/100)^(B1_Calculs!B40-'E1_Données de projet'!$D$22)","v":0},{"v":0,"d":"0.00"},0,0,0,{"$f":"($F$19*(1+$G$19)^(B40-B$36)+$F$20*(1+$G$20)^(B40-B$36))*(B40>='E1_Données de projet'!$D$22)*VLOOKUP(B40,'E1_Données de projet'!$D$58:$I$60,6)/100","v":0},{"$f":"$F$21*(1+$G$21)^(B40-B$36)*(B40>='E1_Données de projet'!$D$22)*VLOOKUP(B40,'E1_Données de projet'!$D$58:$I$60,6)/100","v":0},0,null,null,0,{"$f":"+('E1_Données de projet'!$D$48*(1+Eing_allg_Teuerung/100)^('E1_Données de projet'!$I$48*ROUNDDOWN((AD40-1)/'E1_Données de projet'!$I$48,0))/'E1_Données de projet'!$I$48\n+'E1_Données de projet'!$D$49*(1+Eing_allg_Teuerung/100)^('E1_Données de projet'!$I$49*ROUNDDOWN((AD40-1)/'E1_Données de projet'!$I$49,0))/'E1_Données de projet'!$I$49\n+'E1_Données de projet'!$D$50*(1+Eing_allg_Teuerung/100)^('E1_Données de projet'!$I$50*ROUNDDOWN((AD40-1)/'E1_Données de projet'!$I$50,0))/'E1_Données de projet'!$I$50\n+'E1_Données de projet'!$D$51*(1+Eing_allg_Teuerung/100)^('E1_Données de projet'!$I$51*ROUNDDOWN((AD40-1)/'E1_Données de projet'!$I$51,0))/'E1_Données de projet'!$I$51\n+'E1_Données de projet'!$D$52*(1+Eing_allg_Teuerung/100)^('E1_Données de projet'!$I$52*ROUNDDOWN((AD40-1)/'E1_Données de projet'!$I$52,0))/'E1_Données de projet'!$I$52\n+'E1_Données de projet'!$D$53*(1+Eing_allg_Teuerung/100)^('E1_Données de projet'!$I$53*ROUNDDOWN((AD40-1)/'E1_Données de projet'!$I$53,0))/'E1_Données de projet'!$I$53\n)*((AD40)>0)*VLOOKUP(B40,'E1_Données de projet'!$D$58:$I$60,6\n)/100","v":0},0,{"$f":"SUM((SUMPRODUCT((E3_Consommateurs!$D$21:$XFD$21<B1_Calculs!B40)*E3_Consommateurs!$D$25:$XFD$25)+SUMPRODUCT((E3_Consommateurs!$D$21:$XFD$21=B1_Calculs!B40)*E3_Consommateurs!$D$25:$XFD$25*E3_Consommateurs!$D$20:$XFD$20))*(1+$G$24)^(B40-B$36),(SUMPRODUCT((E3_Consommateurs!$D$21:$XFD$21<B1_Calculs!B40)*E3_Consommateurs!$D$26:$XFD$26)+SUMPRODUCT((E3_Consommateurs!$D$21:$XFD$21=B1_Calculs!B40)*E3_Consommateurs!$D$26:$XFD$26*E3_Consommateurs!$D$20:$XFD$20))*((1+$G$24)*(1-'E1_Données de projet'!$D$19/100))^(B40-B$36))","v":0},{"$f":"SUMPRODUCT((E3_Consommateurs!$D$21:$XFD$21=B1_Calculs!B40)*E3_Consommateurs!$D$23:$XFD$23)","v":0},{"$f":"SUM(jährlicher_Förderbeitrag*(B40-Erstauszahlung_jährlFörderung<=Eing_Förderung_wiederholend_Laufzeit-1)*(B40>='E1_Données de projet'!$D$83),'E1_Données de projet'!$D$76*(B40='E1_Données de projet'!$D$77),'E1_Données de projet'!$D$78*(B40='E1_Données de projet'!$D$79))","v":0},null,null,0,0,0,{"$f":"'E1_Données de projet'!$D$48*(AD40-1='E1_Données de projet'!$I$48)*(1+Eing_allg_Teuerung/100)^'E1_Données de projet'!$I$48\n+'E1_Données de projet'!$D$49*(AD40-1='E1_Données de projet'!$I$49)*(1+Eing_allg_Teuerung/100)^'E1_Données de projet'!$I$49\n+'E1_Données de projet'!$D$50*(AD40-1='E1_Données de projet'!$I$50)*(1+Eing_allg_Teuerung/100)^'E1_Données de projet'!$I$50\n+'E1_Données de projet'!$D$51*(AD40-1='E1_Données de projet'!$I$51)*(1+Eing_allg_Teuerung/100)^'E1_Données de projet'!$I$51\n+'E1_Données de projet'!$D$52*(AD40-1='E1_Données de projet'!$I$52)*(1+Eing_allg_Teuerung/100)^'E1_Données de projet'!$I$52\n+'E1_Données de projet'!$D$53*(AD40-1='E1_Données de projet'!$I$53)*(1+Eing_allg_Teuerung/100)^'E1_Données de projet'!$I$53\n+Gesamtinvestition*SUMPRODUCT(('E1_Données de projet'!$D$58:$D$60=B40)*'E1_Données de projet'!$F$58:$F$60)/100","v":0},0,0,0,0,null,{"$f":"MAX(B1_Calculs!B40+1-'E1_Données de projet'!$D$22,0)","v":5},0,{"$f":"'E1_Données de projet'!$D$48*(AD40-1='E1_Données de projet'!$I$48)*(1+Eing_allg_Teuerung/100)^'E1_Données de projet'!$I$48\n+'E1_Données de projet'!$D$49*(AD40-1='E1_Données de projet'!$I$49)*(1+Eing_allg_Teuerung/100)^'E1_Données de projet'!$I$49\n+'E1_Données de projet'!$D$50*(AD40-1='E1_Données de projet'!$I$50)*(1+Eing_allg_Teuerung/100)^'E1_Données de projet'!$I$50\n+'E1_Données de projet'!$D$51*(AD40-1='E1_Données de projet'!$I$51)*(1+Eing_allg_Teuerung/100)^'E1_Données de projet'!$I$51\n+'E1_Données de projet'!$D$52*(AD40-1='E1_Données de projet'!$I$52)*(1+Eing_allg_Teuerung/100)^'E1_Données de projet'!$I$52\n+'E1_Données de projet'!$D$53*(AD40-1='E1_Données de projet'!$I$53)*(1+Eing_allg_Teuerung/100)^'E1_Données de projet'!$I$53\n+(Gesamtinvestition-SUM('E1_Données de projet'!$D$54:$D$55))*SUMPRODUCT(('E1_Données de projet'!$D$58:$D$60=B40)*'E1_Données de projet'!$F$58:$F$60)/100+AF39-N40","v":0},{"$f":"IF(ISNUMBER(IRR((AJ$36:AJ39,AI40))),IRR((AJ$36:AJ39,AI40)),\"-\")","v":"-"},4,0,0]
[null,5,{"$f":"(SUMPRODUCT((E3_Consommateurs!$D$21:$XFD$21<B1_Calculs!B41)*E3_Consommateurs!$D$18:$XFD$18)+SUMPRODUCT((E3_Consommateurs!$D$21:$XFD$21=B1_Calculs!B41)*E3_Consommateurs!$D$18:$XFD$18*E3_Consommateurs!$D$20:$XFD$20))/(100-Eing_Netzverluste)*100*(1-'E1_Données de projet'!$D$19/100)^(B1_Calculs!B41-'E1_Données de projet'!$D$22)","v":0},{"v":0,"d":"0.00"},0,0,0,{"$f":"($F$19*(1+$G$19)^(B41-B$36)+$F$20*(1+$G$20)^(B41-B$36))*(B41>='E1_Données de projet'!$D$22)*VLOOKUP(B41,'E1_Données de projet'!$D$58:$I$60,6)/100","v":0},{"$f":"$F$21*(1+$G$21)^(B41-B$36)*(B41>='E1_Données de projet'!$D$22)*VLOOKUP(B41,'E1_Données de projet'!$D$58:$I$60,6)/100","v":0},0,null,null,0,{"$f":"+('E1_Données de projet'!$D$48*(1+Eing_allg_Teuerung/100)^('E1_Données de projet'!$I$48*ROUNDDOWN((AD41-1)/'E1_Données de projet'!$I$48,0))/'E1_Données de projet'!$I$48\n+'E1_Données de projet'!$D$49*(1+Eing_allg_Teuerung/100)^('E1_Données de projet'!$I$49*ROUNDDOWN((AD41-1)/'E1_Données de projet'!$I$49,0))/'E1_Données de projet'!$I$49\n+'E1_Données de projet'!$D$50*(1+Eing_allg_Teuerung/100)^('E1_Données de projet'!$I$50*ROUNDDOWN((AD41-1)/'E1_Données de projet'!$I$50,0))/'E1_Données de projet'!$I$50\n+'E1_Données de projet'!$D$51*(1+Eing_allg_Teuerung/100)^('E1_Données de projet'!$I$51*ROUNDDOWN((AD41-1)/'E1_Données de projet'!$I$51,0))/'E1_Données de projet'!$I$51\n+'E1_Données de projet'!$D$52*(1+Eing_allg_Teuerung/100)^('E1_Données de projet'!$I$52*ROUNDDOWN((AD41-1)/'E1_Données de projet'!$I$52,0))/'E1_Données de projet'!$I$52\n+'E1_Données de projet'!$D$53*(1+Eing_allg_Teuerung/100)^('E1_Données de projet'!$I$53*ROUNDDOWN((AD41-1)/'E1_Données de projet'!$I$53,0))/'E1_Données de projet'!$I$53\n)*((AD41)>0)*VLOOKUP(B41,'E1_Données de projet'!$D$58:$I$60,6\n)/100","v":0},0,{"$f":"SUM((SUMPRODUCT((E3_Consommateurs!$D$21:$XFD$21<B1_Calculs!B41)*E3_Consommateurs!$D$25:$XFD$25)+SUMPRODUCT((E3_Consommateurs!$D$21:$XFD$21=B1_Calculs!B41)*E3_Consommateurs!$D$25:$XFD$25*E3_Consommateurs!$D$20:$XFD$20))*(1+$G$24)^(B41-B$36),(SUMPRODUCT((E3_Consommateurs!$D$21:$XFD$21<B1_Calculs!B41)*E3_Consommateurs!$D$26:$XFD$26)+SUMPRODUCT((E3_Consommateurs!$D$21:$XFD$21=B1_Calculs!B41)*E3_Consommateurs!$D$26:$XFD$26*E3_Consommateurs!$D$20:$XFD$20))*((1+$G$24)*(1-'E1_Données de projet'!$D$19/100))^(B41-B$36))","v":0},{"$f":"SUMPRODUCT((E3_Consommateurs!$D$21:$XFD$21=B1_Calculs!B41)*E3_Consommateurs!$D$23:$XFD$23)","v":0},{"$f":"SUM(jährlicher_Förderbeitrag*(B41-Erstauszahlung_jährlFörderung<=Eing_Förderung_wiederholend_Laufzeit-1)*(B41>='E1_Données de projet'!$D$83),'E1_Données de projet'!$D$76*(B41='E1_Données de projet'!$D$77),'E1_Données de projet'!$D$78*(B41='E1_Données de projet'!$D$79))","v":0},null,null,0,0,0,{"$f":"'E1_Données de projet'!$D$48*(AD41-1='E1_Données de projet'!$I$48)*(1+Eing_allg_Teuerung/100)^'E1_Données de projet'!$I$48\n+'E1_Données de projet'!$D$49*(AD41-1='E1_Données de projet'!$I$49)*(1+Eing_allg_Teuerung/100)^'E1_Données de projet'!$I$49\n+'E1_Données de projet'!$D$50*(AD41-1='E1_Données de projet'!$I$50)*(1+Eing_allg_Teuerung/100)^'E1_Données de projet'!$I$50\n+'E1_Données de projet'!$D$51*(AD41-1='E1_Données de projet'!$I$51)*(1+Eing_allg_Teuerung/100)^'E1_Données de projet'!$I$51\n+'E1_Données de projet'!$D$52*(AD41-1='E1_Données de projet'!$I$52)*(1+Eing_allg_Teuerung/100)^'E1_Données de projet'!$I$52\n+'E1_Données de projet'!$D$53*(AD41-1='E1_Données de projet'!$I$53)*(1+Eing_allg_Teuerung/100)^'E1_Données de projet'!$I$53\n+Gesamtinvestition*SUMPRODUCT(('E1_Données de projet'!$D$58:$D$60=B41)*'E1_Données de projet'!$F$58:$F$60)/100","v":0},0,0,0,0,null,{"$f":"MAX(B1_Calculs!B41+1-'E1_Données de projet'!$D$22,0)","v":6},0,{"$f":"'E1_Données de projet'!$D$48*(AD41-1='E1_Données de projet'!$I$48)*(1+Eing_allg_Teuerung/100)^'E1_Données de projet'!$I$48\n+'E1_Données de projet'!$D$49*(AD41-1='E1_Données de projet'!$I$49)*(1+Eing_allg_Teuerung/100)^'E1_Données de projet'!$I$49\n+'E1_Données de projet'!$D$50*(AD41-1='E1_Données de projet'!$I$50)*(1+Eing_allg_Teuerung/100)^'E1_Données de projet'!$I$50\n+'E1_Données de projet'!$D$51*(AD41-1='E1_Données de projet'!$I$51)*(1+Eing_allg_Teuerung/100)^'E1_Données de projet'!$I$51\n+'E1_Données de projet'!$D$52*(AD41-1='E1_Données de projet'!$I$52)*(1+Eing_allg_Teuerung/100)^'E1_Données de projet'!$I$52\n+'E1_Données de projet'!$D$53*(AD41-1='E1_Données de projet'!$I$53)*(1+Eing_allg_Teuerung/100)^'E1_Données de projet'!$I$53\n+(Gesamtinvestition-SUM('E1_Données de projet'!$D$54:$D$55))*SUMPRODUCT(('E1_Données de projet'!$D$58:$D$60=B41)*'E1_Données de projet'!$F$58:$F$60)/100+AF40-N41","v":0},{"$f":"IF(ISNUMBER(IRR((AJ$36:AJ40,AI41))),IRR((AJ$36:AJ40,AI41)),\"-\")","v":"-"},5,0,0]
[null,6,{"$f":"(SUMPRODUCT((E3_Consommateurs!$D$21:$XFD$21<B1_Calculs!B42)*E3_Consommateurs!$D$18:$XFD$18)+SUMPRODUCT((E3_Consommateurs!$D$21:$XFD$21=B1_Calculs!B42)*E3_Consommateurs!$D$18:$XFD$18*E3_Consommateurs!$D$20:$XFD$20))/(100-Eing_Netzverluste)*100*(1-'E1_Données de projet'!$D$19/100)^(B1_Calculs!B42-'E1_Données de projet'!$D$22)","v":0},{"v":0,"d":"0.00"},0,0,0,{"$f":"($F$19*(1+$G$19)^(B42-B$36)+$F$20*(1+$G$20)^(B42-B$36))*(B42>='E1_Données de projet'!$D$22)*VLOOKUP(B42,'E1_Données de projet'!$D$58:$I$60,6)/100","v":0},{"$f":"$F$21*(1+$G$21)^(B42-B$36)*(B42>='E1_Données de projet'!$D$22)*VLOOKUP(B42,'E1_Données de projet'!$D$58:$I$60,6)/100","v":0},0,null,null,0,{"$f":"+('E1_Données de projet'!$D$48*(1+Eing_allg_Teuerung/100)^('E1_Données de projet'!$I$48*ROUNDDOWN((AD42-1)/'E1_Données de projet'!$I$48,0))/'E1_Données de projet'!$I$48\n+'E1_Données de projet'!$D$49*(1+Eing_allg_Teuerung/100)^('E1_Données de projet'!$I$49*ROUNDDOWN((AD42-1)/'E1_Données de projet'!$I$49,0))/'E1_Données de projet'!$I$49\n+'E1_Données de projet'!$D$50*(1+Eing_allg_Teuerung/100)^('E1_Données de projet'!$I$50*ROUNDDOWN((AD42-1)/'E1_Données de projet'!$I$50,0))/'E1_Données de projet'!$I$50\n+'E1_Données de projet'!$D$51*(1+Eing_allg_Teuerung/100)^('E1_Données de projet'!$I$51*ROUNDDOWN((AD42-1)/'E1_Données de projet'!$I$51,0))/'E1_Données de projet'!$I$51\n+'E1_Données de projet'!$D$52*(1+Eing_allg_Teuerung/100)^('E1_Données de projet'!$I$52*ROUNDDOWN((AD42-1)/'E1_Données de projet'!$I$52,0))/'E1_Données de projet'!$I$52\n+'E1_Données de projet'!$D$53*(1+Eing_allg_Teuerung/100)^('E1_Données de projet'!$I$53*ROUNDDOWN((AD42-1)/'E1_Données de projet'!$I$53,0))/'E1_Données de projet'!$I$53\n)*((AD42)>0)*VLOOKUP(B42,'E1_Données de projet'!$D$58:$I$60,6\n)/100","v":0},0,{"$f":"SUM((SUMPRODUCT((E3_Consommateurs!$D$21:$XFD$21<B1_Calculs!B42)*E3_Consommateurs!$D$25:$XFD$25)+SUMPRODUCT((E3_Consommateurs!$D$21:$XFD$21=B1_Calculs!B42)*E3_Consommateurs!$D$25:$XFD$25*E3_Consommateurs!$D$20:$XFD$20))*(1+$G$24)^(B42-B$36),(SUMPRODUCT((E3_Consommateurs!$D$21:$XFD$21<B1_Calculs!B42)*E3_Consommateurs!$D$26:$XFD$26)+SUMPRODUCT((E3_Consommateurs!$D$21:$XFD$21=B1_Calculs!B42)*E3_Consommateurs!$D$26:$XFD$26*E3_Consommateurs!$D$20:$XFD$20))*((1+$G$24)*(1-'E1_Données de projet'!$D$19/100))^(B42-B$36))","v":0},{"$f":"SUMPRODUCT((E3_Consommateurs!$D$21:$XFD$21=B1_Calculs!B42)*E3_Consommateurs!$D$23:$XFD$23)","v":0},{"$f":"SUM(jährlicher_Förderbeitrag*(B42-Erstauszahlung_jährlFörderung<=Eing_Förderung_wiederholend_Laufzeit-1)*(B42>='E1_Données de projet'!$D$83),'E1_Données de projet'!$D$76*(B42='E1_Données de projet'!$D$77),'E1_Données de projet'!$D$78*(B42='E1_Données de projet'!$D$79))","v":0},null,null,0,0,0,{"$f":"'E1_Données de projet'!$D$48*(AD42-1='E1_Données de projet'!$I$48)*(1+Eing_allg_Teuerung/100)^'E1_Données de projet'!$I$48\n+'E1_Données de projet'!$D$49*(AD42-1='E1_Données de projet'!$I$49)*(1+Eing_allg_Teuerung/100)^'E1_Données de projet'!$I$49\n+'E1_Données de projet'!$D$50*(AD42-1='E1_Données de projet'!$I$50)*(1+Eing_allg_Teuerung/100)^'E1_Données de projet'!$I$50\n+'E1_Données de projet'!$D$51*(AD42-1='E1_Données de projet'!$I$51)*(1+Eing_allg_Teuerung/100)^'E1_Données de projet'!$I$51\n+'E1_Données de projet'!$D$52*(AD42-1='E1_Données de projet'!$I$52)*(1+Eing_allg_Teuerung/100)^'E1_Données de projet'!$I$52\n+'E1_Données de projet'!$D$53*(AD42-1='E1_Données de projet'!$I$53)*(1+Eing_allg_Teuerung/100)^'E1_Données de projet'!$I$53\n+Gesamtinvestition*SUMPRODUCT(('E1_Données de projet'!$D$58:$D$60=B42)*'E1_Données de projet'!$F$58:$F$60)/100","v":0},0,0,0,0,null,{"$f":"MAX(B1_Calculs!B42+1-'E1_Données de projet'!$D$22,0)","v":7},0,{"$f":"'E1_Données de projet'!$D$48*(AD42-1='E1_Données de projet'!$I$48)*(1+Eing_allg_Teuerung/100)^'E1_Données de projet'!$I$48\n+'E1_Données de projet'!$D$49*(AD42-1='E1_Données de projet'!$I$49)*(1+Eing_allg_Teuerung/100)^'E1_Données de projet'!$I$49\n+'E1_Données de projet'!$D$50*(AD42-1='E1_Données de projet'!$I$50)*(1+Eing_allg_Teuerung/100)^'E1_Données de projet'!$I$50\n+'E1_Données de projet'!$D$51*(AD42-1='E1_Données de projet'!$I$51)*(1+Eing_allg_Teuerung/100)^'E1_Données de projet'!$I$51\n+'E1_Données de projet'!$D$52*(AD42-1='E1_Données de projet'!$I$52)*(1+Eing_allg_Teuerung/100)^'E1_Données de projet'!$I$52\n+'E1_Données de projet'!$D$53*(AD42-1='E1_Données de projet'!$I$53)*(1+Eing_allg_Teuerung/100)^'E1_Données de projet'!$I$53\n+(Gesamtinvestition-SUM('E1_Données de projet'!$D$54:$D$55))*SUMPRODUCT(('E1_Données de projet'!$D$58:$D$60=B42)*'E1_Données de projet'!$F$58:$F$60)/100+AF41-N42","v":0},{"$f":"IF(ISNUMBER(IRR((AJ$36:AJ41,AI42))),IRR((AJ$36:AJ41,AI42)),\"-\")","v":"-"},6,0,0]
[null,7,{"$f":"(SUMPRODUCT((E3_Consommateurs!$D$21:$XFD$21<B1_Calculs!B43)*E3_Consommateurs!$D$18:$XFD$18)+SUMPRODUCT((E3_Consommateurs!$D$21:$XFD$21=B1_Calculs!B43)*E3_Consommateurs!$D$18:$XFD$18*E3_Consommateurs!$D$20:$XFD$20))/(100-Eing_Netzverluste)*100*(1-'E1_Données de projet'!$D$19/100)^(B1_Calculs!B43-'E1_Données de projet'!$D$22)","v":0},{"v":0,"d":"0.00"},0,0,0,{"$f":"($F$19*(1+$G$19)^(B43-B$36)+$F$20*(1+$G$20)^(B43-B$36))*(B43>='E1_Données de projet'!$D$22)*VLOOKUP(B43,'E1_Données de projet'!$D$58:$I$60,6)/100","v":0},{"$f":"$F$21*(1+$G$21)^(B43-B$36)*(B43>='E1_Données de projet'!$D$22)*VLOOKUP(B43,'E1_Données de projet'!$D$58:$I$60,6)/100","v":0},0,null,null,0,{"$f":"+('E1_Données de projet'!$D$48*(1+Eing_allg_Teuerung/100)^('E1_Données de projet'!$I$48*ROUNDDOWN((AD43-1)/'E1_Données de projet'!$I$48,0))/'E1_Données de projet'!$I$48\n+'E1_Données de projet'!$D$49*(1+Eing_allg_Teuerung/100)^('E1_Données de projet'!$I$49*ROUNDDOWN((AD43-1)/'E1_Données de projet'!$I$49,0))/'E1_Données de projet'!$I$49\n+'E1_Données de projet'!$D$50*(1+Eing_allg_Teuerung/100)^('E1_Données de projet'!$I$50*ROUNDDOWN((AD43-1)/'E1_Données de projet'!$I$50,0))/'E1_Données de projet'!$I$50\n+'E1_Données de projet'!$D$51*(1+Eing_allg_Teuerung/100)^('E1_Données de projet'!$I$51*ROUNDDOWN((AD43-1)/'E1_Données de projet'!$I$51,0))/'E1_Données de projet'!$I$51\n+'E1_Données de projet'!$D$52*(1+Eing_allg_Teuerung/100)^('E1_Données de projet'!$I$52*ROUNDDOWN((AD43-1)/'E1_Données de projet'!$I$52,0))/'E1_Données de projet'!$I$52\n+'E1_Données de projet'!$D$53*(1+Eing_allg_Teuerung/100)^('E1_Données de projet'!$I$53*ROUNDDOWN((AD43-1)/'E1_Données de projet'!$I$53,0))/'E1_Données de projet'!$I$53\n)*((AD43)>0)*VLOOKUP(B43,'E1_Données de projet'!$D$58:$I$60,6\n)/100","v":0},0,{"$f":"SUM((SUMPRODUCT((E3_Consommateurs!$D$21:$XFD$21<B1_Calculs!B43)*E3_Consommateurs!$D$25:$XFD$25)+SUMPRODUCT((E3_Consommateurs!$D$21:$XFD$21=B1_Calculs!B43)*E3_Consommateurs!$D$25:$XFD$25*E3_Consommateurs!$D$20:$XFD$20))*(1+$G$24)^(B43-B$36),(SUMPRODUCT((E3_Consommateurs!$D$21:$XFD$21<B1_Calculs!B43)*E3_Consommateurs!$D$26:$XFD$26)+SUMPRODUCT((E3_Consommateurs!$D$21:$XFD$21=B1_Calculs!B43)*E3_Consommateurs!$D$26:$XFD$26*E3_Consommateurs!$D$20:$XFD$20))*((1+$G$24)*(1-'E1_Données de projet'!$D$19/100))^(B43-B$36))","v":0},{"$f":"SUMPRODUCT((E3_Consommateurs!$D$21:$XFD$21=B1_Calculs!B43)*E3_Consommateurs!$D$23:$XFD$23)","v":0},{"$f":"SUM(jährlicher_Förderbeitrag*(B43-Erstauszahlung_jährlFörderung<=Eing_Förderung_wiederholend_Laufzeit-1)*(B43>='E1_Données de projet'!$D$83),'E1_Données de projet'!$D$76*(B43='E1_Données de projet'!$D$77),'E1_Données de projet'!$D$78*(B43='E1_Données de projet'!$D$79))","v":0},null,null,0,0,0,{"$f":"'E1_Données de projet'!$D$48*(AD43-1='E1_Données de projet'!$I$48)*(1+Eing_allg_Teuerung/100)^'E1_Données de projet'!$I$48\n+'E1_Données de projet'!$D$49*(AD43-1='E1_Données de projet'!$I$49)*(1+Eing_allg_Teuerung/100)^'E1_Données de projet'!$I$49\n+'E1_Données de projet'!$D$50*(AD43-1='E1_Données de projet'!$I$50)*(1+Eing_allg_Teuerung/100)^'E1_Données de projet'!$I$50\n+'E1_Données de projet'!$D$51*(AD43-1='E1_Données de projet'!$I$51)*(1+Eing_allg_Teuerung/100)^'E1_Données de projet'!$I$51\n+'E1_Données de projet'!$D$52*(AD43-1='E1_Données de projet'!$I$52)*(1+Eing_allg_Teuerung/100)^'E1_Données de projet'!$I$52\n+'E1_Données de projet'!$D$53*(AD43-1='E1_Données de projet'!$I$53)*(1+Eing_allg_Teuerung/100)^'E1_Données de projet'!$I$53\n+Gesamtinvestition*SUMPRODUCT(('E1_Données de projet'!$D$58:$D$60=B43)*'E1_Données de projet'!$F$58:$F$60)/100","v":0},0,0,0,0,null,{"$f":"MAX(B1_Calculs!B43+1-'E1_Données de projet'!$D$22,0)","v":8},0,{"$f":"'E1_Données de projet'!$D$48*(AD43-1='E1_Données de projet'!$I$48)*(1+Eing_allg_Teuerung/100)^'E1_Données de projet'!$I$48\n+'E1_Données de projet'!$D$49*(AD43-1='E1_Données de projet'!$I$49)*(1+Eing_allg_Teuerung/100)^'E1_Données de projet'!$I$49\n+'E1_Données de projet'!$D$50*(AD43-1='E1_Données de projet'!$I$50)*(1+Eing_allg_Teuerung/100)^'E1_Données de projet'!$I$50\n+'E1_Données de projet'!$D$51*(AD43-1='E1_Données de projet'!$I$51)*(1+Eing_allg_Teuerung/100)^'E1_Données de projet'!$I$51\n+'E1_Données de projet'!$D$52*(AD43-1='E1_Données de projet'!$I$52)*(1+Eing_allg_Teuerung/100)^'E1_Données de projet'!$I$52\n+'E1_Données de projet'!$D$53*(AD43-1='E1_Données de projet'!$I$53)*(1+Eing_allg_Teuerung/100)^'E1_Données de projet'!$I$53\n+(Gesamtinvestition-SUM('E1_Données de projet'!$D$54:$D$55))*SUMPRODUCT(('E1_Données de projet'!$D$58:$D$60=B43)*'E1_Données de projet'!$F$58:$F$60)/100+AF42-N43","v":0},{"$f":"IF(ISNUMBER(IRR((AJ$36:AJ42,AI43))),IRR((AJ$36:AJ42,AI43)),\"-\")","v":"-"},7,0,0]
[null,8,{"$f":"(SUMPRODUCT((E3_Consommateurs!$D$21:$XFD$21<B1_Calculs!B44)*E3_Consommateurs!$D$18:$XFD$18)+SUMPRODUCT((E3_Consommateurs!$D$21:$XFD$21=B1_Calculs!B44)*E3_Consommateurs!$D$18:$XFD$18*E3_Consommateurs!$D$20:$XFD$20))/(100-Eing_Netzverluste)*100*(1-'E1_Données de projet'!$D$19/100)^(B1_Calculs!B44-'E1_Données de projet'!$D$22)","v":0},{"v":0,"d":"0.00"},0,0,0,{"$f":"($F$19*(1+$G$19)^(B44-B$36)+$F$20*(1+$G$20)^(B44-B$36))*(B44>='E1_Données de projet'!$D$22)*VLOOKUP(B44,'E1_Données de projet'!$D$58:$I$60,6)/100","v":0},{"$f":"$F$21*(1+$G$21)^(B44-B$36)*(B44>='E1_Données de projet'!$D$22)*VLOOKUP(B44,'E1_Données de projet'!$D$58:$I$60,6)/100","v":0},0,null,null,0,{"$f":"+('E1_Données de projet'!$D$48*(1+Eing_allg_Teuerung/100)^('E1_Données de projet'!$I$48*ROUNDDOWN((AD44-1)/'E1_Données de projet'!$I$48,0))/'E1_Données de projet'!$I$48\n+'E1_Données de projet'!$D$49*(1+Eing_allg_Teuerung/100)^('E1_Données de projet'!$I$49*ROUNDDOWN((AD44-1)/'E1_Données de projet'!$I$49,0))/'E1_Données de projet'!$I$49\n+'E1_Données de projet'!$D$50*(1+Eing_allg_Teuerung/100)^('E1_Données de projet'!$I$50*ROUNDDOWN((AD44-1)/'E1_Données de projet'!$I$50,0))/'E1_Données de projet'!$I$50\n+'E1_Données de projet'!$D$51*(1+Eing_allg_Teuerung/100)^('E1_Données de projet'!$I$51*ROUNDDOWN((AD44-1)/'E1_Données de projet'!$I$51,0))/'E1_Données de projet'!$I$51\n+'E1_Données de projet'!$D$52*(1+Eing_allg_Teuerung/100)^('E1_Données de projet'!$I$52*ROUNDDOWN((AD44-1)/'E1_Données de projet'!$I$52,0))/'E1_Données de projet'!$I$52\n+'E1_Données de projet'!$D$53*(1+Eing_allg_Teuerung/100)^('E1_Données de projet'!$I$53*ROUNDDOWN((AD44-1)/'E1_Données de projet'!$I$53,0))/'E1_Données de projet'!$I$53\n)*((AD44)>0)*VLOOKUP(B44,'E1_Données de projet'!$D$58:$I$60,6\n)/100","v":0},0,{"$f":"SUM((SUMPRODUCT((E3_Consommateurs!$D$21:$XFD$21<B1_Calculs!B44)*E3_Consommateurs!$D$25:$XFD$25)+SUMPRODUCT((E3_Consommateurs!$D$21:$XFD$21=B1_Calculs!B44)*E3_Consommateurs!$D$25:$XFD$25*E3_Consommateurs!$D$20:$XFD$20))*(1+$G$24)^(B44-B$36),(SUMPRODUCT((E3_Consommateurs!$D$21:$XFD$21<B1_Calculs!B44)*E3_Consommateurs!$D$26:$XFD$26)+SUMPRODUCT((E3_Consommateurs!$D$21:$XFD$21=B1_Calculs!B44)*E3_Consommateurs!$D$26:$XFD$26*E3_Consommateurs!$D$20:$XFD$20))*((1+$G$24)*(1-'E1_Données de projet'!$D$19/100))^(B44-B$36))","v":0},{"$f":"SUMPRODUCT((E3_Consommateurs!$D$21:$XFD$21=B1_Calculs!B44)*E3_Consommateurs!$D$23:$XFD$23)","v":0},{"$f":"SUM(jährlicher_Förderbeitrag*(B44-Erstauszahlung_jährlFörderung<=Eing_Förderung_wiederholend_Laufzeit-1)*(B44>='E1_Données de projet'!$D$83),'E1_Données de projet'!$D$76*(B44='E1_Données de projet'!$D$77),'E1_Données de projet'!$D$78*(B44='E1_Données de projet'!$D$79))","v":0},null,null,0,0,0,{"$f":"'E1_Données de projet'!$D$48*(AD44-1='E1_Données de projet'!$I$48)*(1+Eing_allg_Teuerung/100)^'E1_Données de projet'!$I$48\n+'E1_Données de projet'!$D$49*(AD44-1='E1_Données de projet'!$I$49)*(1+Eing_allg_Teuerung/100)^'E1_Données de projet'!$I$49\n+'E1_Données de projet'!$D$50*(AD44-1='E1_Données de projet'!$I$50)*(1+Eing_allg_Teuerung/100)^'E1_Données de projet'!$I$50\n+'E1_Données de projet'!$D$51*(AD44-1='E1_Données de projet'!$I$51)*(1+Eing_allg_Teuerung/100)^'E1_Données de projet'!$I$51\n+'E1_Données de projet'!$D$52*(AD44-1='E1_Données de projet'!$I$52)*(1+Eing_allg_Teuerung/100)^'E1_Données de projet'!$I$52\n+'E1_Données de projet'!$D$53*(AD44-1='E1_Données de projet'!$I$53)*(1+Eing_allg_Teuerung/100)^'E1_Données de projet'!$I$53\n+Gesamtinvestition*SUMPRODUCT(('E1_Données de projet'!$D$58:$D$60=B44)*'E1_Données de projet'!$F$58:$F$60)/100","v":0},0,0,0,0,null,{"$f":"MAX(B1_Calculs!B44+1-'E1_Données de projet'!$D$22,0)","v":9},0,{"$f":"'E1_Données de projet'!$D$48*(AD44-1='E1_Données de projet'!$I$48)*(1+Eing_allg_Teuerung/100)^'E1_Données de projet'!$I$48\n+'E1_Données de projet'!$D$49*(AD44-1='E1_Données de projet'!$I$49)*(1+Eing_allg_Teuerung/100)^'E1_Données de projet'!$I$49\n+'E1_Données de projet'!$D$50*(AD44-1='E1_Données de projet'!$I$50)*(1+Eing_allg_Teuerung/100)^'E1_Données de projet'!$I$50\n+'E1_Données de projet'!$D$51*(AD44-1='E1_Données de projet'!$I$51)*(1+Eing_allg_Teuerung/100)^'E1_Données de projet'!$I$51\n+'E1_Données de projet'!$D$52*(AD44-1='E1_Données de projet'!$I$52)*(1+Eing_allg_Teuerung/100)^'E1_Données de projet'!$I$52\n+'E1_Données de projet'!$D$53*(AD44-1='E1_Données de projet'!$I$53)*(1+Eing_allg_Teuerung/100)^'E1_Données de projet'!$I$53\n+(Gesamtinvestition-SUM('E1_Données de projet'!$D$54:$D$55))*SUMPRODUCT(('E1_Données de projet'!$D$58:$D$60=B44)*'E1_Données de projet'!$F$58:$F$60)/100+AF43-N44","v":0},{"$f":"IF(ISNUMBER(IRR((AJ$36:AJ43,AI44))),IRR((AJ$36:AJ43,AI44)),\"-\")","v":"-"},8,0,0]
[null,9,{"$f":"(SUMPRODUCT((E3_Consommateurs!$D$21:$XFD$21<B1_Calculs!B45)*E3_Consommateurs!$D$18:$XFD$18)+SUMPRODUCT((E3_Consommateurs!$D$21:$XFD$21=B1_Calculs!B45)*E3_Consommateurs!$D$18:$XFD$18*E3_Consommateurs!$D$20:$XFD$20))/(100-Eing_Netzverluste)*100*(1-'E1_Données de projet'!$D$19/100)^(B1_Calculs!B45-'E1_Données de projet'!$D$22)","v":0},{"v":0,"d":"0.00"},0,0,0,{"$f":"($F$19*(1+$G$19)^(B45-B$36)+$F$20*(1+$G$20)^(B45-B$36))*(B45>='E1_Données de projet'!$D$22)*VLOOKUP(B45,'E1_Données de projet'!$D$58:$I$60,6)/100","v":0},{"$f":"$F$21*(1+$G$21)^(B45-B$36)*(B45>='E1_Données de projet'!$D$22)*VLOOKUP(B45,'E1_Données de projet'!$D$58:$I$60,6)/100","v":0},0,null,null,0,{"$f":"+('E1_Données de projet'!$D$48*(1+Eing_allg_Teuerung/100)^('E1_Données de projet'!$I$48*ROUNDDOWN((AD45-1)/'E1_Données de projet'!$I$48,0))/'E1_Données de projet'!$I$48\n+'E1_Données de projet'!$D$49*(1+Eing_allg_Teuerung/100)^('E1_Données de projet'!$I$49*ROUNDDOWN((AD45-1)/'E1_Données de projet'!$I$49,0))/'E1_Données de projet'!$I$49\n+'E1_Données de projet'!$D$50*(1+Eing_allg_Teuerung/100)^('E1_Données de projet'!$I$50*ROUNDDOWN((AD45-1)/'E1_Données de projet'!$I$50,0))/'E1_Données de projet'!$I$50\n+'E1_Données de projet'!$D$51*(1+Eing_allg_Teuerung/100)^('E1_Données de projet'!$I$51*ROUNDDOWN((AD45-1)/'E1_Données de projet'!$I$51,0))/'E1_Données de projet'!$I$51\n+'E1_Données de projet'!$D$52*(1+Eing_allg_Teuerung/100)^('E1_Données de projet'!$I$52*ROUNDDOWN((AD45-1)/'E1_Données de projet'!$I$52,0))/'E1_Données de projet'!$I$52\n+'E1_Données de projet'!$D$53*(1+Eing_allg_Teuerung/100)^('E1_Données de projet'!$I$53*ROUNDDOWN((AD45-1)/'E1_Données de projet'!$I$53,0))/'E1_Données de projet'!$I$53\n)*((AD45)>0)*VLOOKUP(B45,'E1_Données de projet'!$D$58:$I$60,6\n)/100","v":0},0,{"$f":"SUM((SUMPRODUCT((E3_Consommateurs!$D$21:$XFD$21<B1_Calculs!B45)*E3_Consommateurs!$D$25:$XFD$25)+SUMPRODUCT((E3_Consommateurs!$D$21:$XFD$21=B1_Calculs!B45)*E3_Consommateurs!$D$25:$XFD$25*E3_Consommateurs!$D$20:$XFD$20))*(1+$G$24)^(B45-B$36),(SUMPRODUCT((E3_Consommateurs!$D$21:$XFD$21<B1_Calculs!B45)*E3_Consommateurs!$D$26:$XFD$26)+SUMPRODUCT((E3_Consommateurs!$D$21:$XFD$21=B1_Calculs!B45)*E3_Consommateurs!$D$26:$XFD$26*E3_Consommateurs!$D$20:$XFD$20))*((1+$G$24)*(1-'E1_Données de projet'!$D$19/100))^(B45-B$36))","v":0},{"$f":"SUMPRODUCT((E3_Consommateurs!$D$21:$XFD$21=B1_Calculs!B45)*E3_Consommateurs!$D$23:$XFD$23)","v":0},{"$f":"SUM(jährlicher_Förderbeitrag*(B45-Erstauszahlung_jährlFörderung<=Eing_Förderung_wiederholend_Laufzeit-1)*(B45>='E1_Données de projet'!$D$83),'E1_Données de projet'!$D$76*(B45='E1_Données de projet'!$D$77),'E1_Données de projet'!$D$78*(B45='E1_Données de projet'!$D$79))","v":0},null,null,0,0,0,{"$f":"'E1_Données de projet'!$D$48*(AD45-1='E1_Données de projet'!$I$48)*(1+Eing_allg_Teuerung/100)^'E1_Données de projet'!$I$48\n+'E1_Données de projet'!$D$49*(AD45-1='E1_Données de projet'!$I$49)*(1+Eing_allg_Teuerung/100)^'E1_Données de projet'!$I$49\n+'E1_Données de projet'!$D$50*(AD45-1='E1_Données de projet'!$I$50)*(1+Eing_allg_Teuerung/100)^'E1_Données de projet'!$I$50\n+'E1_Données de projet'!$D$51*(AD45-1='E1_Données de projet'!$I$51)*(1+Eing_allg_Teuerung/100)^'E1_Données de projet'!$I$51\n+'E1_Données de projet'!$D$52*(AD45-1='E1_Données de projet'!$I$52)*(1+Eing_allg_Teuerung/100)^'E1_Données de projet'!$I$52\n+'E1_Données de projet'!$D$53*(AD45-1='E1_Données de projet'!$I$53)*(1+Eing_allg_Teuerung/100)^'E1_Données de projet'!$I$53\n+Gesamtinvestition*SUMPRODUCT(('E1_Données de projet'!$D$58:$D$60=B45)*'E1_Données de projet'!$F$58:$F$60)/100","v":0},0,0,0,0,null,{"$f":"MAX(B1_Calculs!B45+1-'E1_Données de projet'!$D$22,0)","v":10},0,{"$f":"'E1_Données de projet'!$D$48*(AD45-1='E1_Données de projet'!$I$48)*(1+Eing_allg_Teuerung/100)^'E1_Données de projet'!$I$48\n+'E1_Données de projet'!$D$49*(AD45-1='E1_Données de projet'!$I$49)*(1+Eing_allg_Teuerung/100)^'E1_Données de projet'!$I$49\n+'E1_Données de projet'!$D$50*(AD45-1='E1_Données de projet'!$I$50)*(1+Eing_allg_Teuerung/100)^'E1_Données de projet'!$I$50\n+'E1_Données de projet'!$D$51*(AD45-1='E1_Données de projet'!$I$51)*(1+Eing_allg_Teuerung/100)^'E1_Données de projet'!$I$51\n+'E1_Données de projet'!$D$52*(AD45-1='E1_Données de projet'!$I$52)*(1+Eing_allg_Teuerung/100)^'E1_Données de projet'!$I$52\n+'E1_Données de projet'!$D$53*(AD45-1='E1_Données de projet'!$I$53)*(1+Eing_allg_Teuerung/100)^'E1_Données de projet'!$I$53\n+(Gesamtinvestition-SUM('E1_Données de projet'!$D$54:$D$55))*SUMPRODUCT(('E1_Données de projet'!$D$58:$D$60=B45)*'E1_Données de projet'!$F$58:$F$60)/100+AF44-N45","v":0},{"$f":"IF(ISNUMBER(IRR((AJ$36:AJ44,AI45))),IRR((AJ$36:AJ44,AI45)),\"-\")","v":"-"},9,0,0]
[null,10,{"$f":"(SUMPRODUCT((E3_Consommateurs!$D$21:$XFD$21<B1_Calculs!B46)*E3_Consommateurs!$D$18:$XFD$18)+SUMPRODUCT((E3_Consommateurs!$D$21:$XFD$21=B1_Calculs!B46)*E3_Consommateurs!$D$18:$XFD$18*E3_Consommateurs!$D$20:$XFD$20))/(100-Eing_Netzverluste)*100*(1-'E1_Données de projet'!$D$19/100)^(B1_Calculs!B46-'E1_Données de projet'!$D$22)","v":0},{"v":0,"d":"0.00"},0,0,0,{"$f":"($F$19*(1+$G$19)^(B46-B$36)+$F$20*(1+$G$20)^(B46-B$36))*(B46>='E1_Données de projet'!$D$22)*VLOOKUP(B46,'E1_Données de projet'!$D$58:$I$60,6)/100","v":0},{"$f":"$F$21*(1+$G$21)^(B46-B$36)*(B46>='E1_Données de projet'!$D$22)*VLOOKUP(B46,'E1_Données de projet'!$D$58:$I$60,6)/100","v":0},0,null,null,0,{"$f":"+('E1_Données de projet'!$D$48*(1+Eing_allg_Teuerung/100)^('E1_Données de projet'!$I$48*ROUNDDOWN((AD46-1)/'E1_Données de projet'!$I$48,0))/'E1_Données de projet'!$I$48\n+'E1_Données de projet'!$D$49*(1+Eing_allg_Teuerung/100)^('E1_Données de projet'!$I$49*ROUNDDOWN((AD46-1)/'E1_Données de projet'!$I$49,0))/'E1_Données de projet'!$I$49\n+'E1_Données de projet'!$D$50*(1+Eing_allg_Teuerung/100)^('E1_Données de projet'!$I$50*ROUNDDOWN((AD46-1)/'E1_Données de projet'!$I$50,0))/'E1_Données de projet'!$I$50\n+'E1_Données de projet'!$D$51*(1+Eing_allg_Teuerung/100)^('E1_Données de projet'!$I$51*ROUNDDOWN((AD46-1)/'E1_Données de projet'!$I$51,0))/'E1_Données de projet'!$I$51\n+'E1_Données de projet'!$D$52*(1+Eing_allg_Teuerung/100)^('E1_Données de projet'!$I$52*ROUNDDOWN((AD46-1)/'E1_Données de projet'!$I$52,0))/'E1_Données de projet'!$I$52\n+'E1_Données de projet'!$D$53*(1+Eing_allg_Teuerung/100)^('E1_Données de projet'!$I$53*ROUNDDOWN((AD46-1)/'E1_Données de projet'!$I$53,0))/'E1_Données de projet'!$I$53\n)*((AD46)>0)*VLOOKUP(B46,'E1_Données de projet'!$D$58:$I$60,6\n)/100","v":0},0,{"$f":"SUM((SUMPRODUCT((E3_Consommateurs!$D$21:$XFD$21<B1_Calculs!B46)*E3_Consommateurs!$D$25:$XFD$25)+SUMPRODUCT((E3_Consommateurs!$D$21:$XFD$21=B1_Calculs!B46)*E3_Consommateurs!$D$25:$XFD$25*E3_Consommateurs!$D$20:$XFD$20))*(1+$G$24)^(B46-B$36),(SUMPRODUCT((E3_Consommateurs!$D$21:$XFD$21<B1_Calculs!B46)*E3_Consommateurs!$D$26:$XFD$26)+SUMPRODUCT((E3_Consommateurs!$D$21:$XFD$21=B1_Calculs!B46)*E3_Consommateurs!$D$26:$XFD$26*E3_Consommateurs!$D$20:$XFD$20))*((1+$G$24)*(1-'E1_Données de projet'!$D$19/100))^(B46-B$36))","v":0},{"$f":"SUMPRODUCT((E3_Consommateurs!$D$21:$XFD$21=B1_Calculs!B46)*E3_Consommateurs!$D$23:$XFD$23)","v":0},{"$f":"SUM(jährlicher_Förderbeitrag*(B46-Erstauszahlung_jährlFörderung<=Eing_Förderung_wiederholend_Laufzeit-1)*(B46>='E1_Données de projet'!$D$83),'E1_Données de projet'!$D$76*(B46='E1_Données de projet'!$D$77),'E1_Données de projet'!$D$78*(B46='E1_Données de projet'!$D$79))","v":0},null,null,0,0,0,{"$f":"'E1_Données de projet'!$D$48*(AD46-1='E1_Données de projet'!$I$48)*(1+Eing_allg_Teuerung/100)^'E1_Données de projet'!$I$48\n+'E1_Données de projet'!$D$49*(AD46-1='E1_Données de projet'!$I$49)*(1+Eing_allg_Teuerung/100)^'E1_Données de projet'!$I$49\n+'E1_Données de projet'!$D$50*(AD46-1='E1_Données de projet'!$I$50)*(1+Eing_allg_Teuerung/100)^'E1_Données de projet'!$I$50\n+'E1_Données de projet'!$D$51*(AD46-1='E1_Données de projet'!$I$51)*(1+Eing_allg_Teuerung/100)^'E1_Données de projet'!$I$51\n+'E1_Données de projet'!$D$52*(AD46-1='E1_Données de projet'!$I$52)*(1+Eing_allg_Teuerung/100)^'E1_Données de projet'!$I$52\n+'E1_Données de projet'!$D$53*(AD46-1='E1_Données de projet'!$I$53)*(1+Eing_allg_Teuerung/100)^'E1_Données de projet'!$I$53\n+Gesamtinvestition*SUMPRODUCT(('E1_Données de projet'!$D$58:$D$60=B46)*'E1_Données de projet'!$F$58:$F$60)/100","v":0},0,0,0,0,null,{"$f":"MAX(B1_Calculs!B46+1-'E1_Données de projet'!$D$22,0)","v":11},0,{"$f":"'E1_Données de projet'!$D$48*(AD46-1='E1_Données de projet'!$I$48)*(1+Eing_allg_Teuerung/100)^'E1_Données de projet'!$I$48\n+'E1_Données de projet'!$D$49*(AD46-1='E1_Données de projet'!$I$49)*(1+Eing_allg_Teuerung/100)^'E1_Données de projet'!$I$49\n+'E1_Données de projet'!$D$50*(AD46-1='E1_Données de projet'!$I$50)*(1+Eing_allg_Teuerung/100)^'E1_Données de projet'!$I$50\n+'E1_Données de projet'!$D$51*(AD46-1='E1_Données de projet'!$I$51)*(1+Eing_allg_Teuerung/100)^'E1_Données de projet'!$I$51\n+'E1_Données de projet'!$D$52*(AD46-1='E1_Données de projet'!$I$52)*(1+Eing_allg_Teuerung/100)^'E1_Données de projet'!$I$52\n+'E1_Données de projet'!$D$53*(AD46-1='E1_Données de projet'!$I$53)*(1+Eing_allg_Teuerung/100)^'E1_Données de projet'!$I$53\n+(Gesamtinvestition-SUM('E1_Données de projet'!$D$54:$D$55))*SUMPRODUCT(('E1_Données de projet'!$D$58:$D$60=B46)*'E1_Données de projet'!$F$58:$F$60)/100+AF45-N46","v":0},{"$f":"IF(ISNUMBER(IRR((AJ$36:AJ45,AI46))),IRR((AJ$36:AJ45,AI46)),\"-\")","v":"-"},10,0,0]
[null,11,{"$f":"(SUMPRODUCT((E3_Consommateurs!$D$21:$XFD$21<B1_Calculs!B47)*E3_Consommateurs!$D$18:$XFD$18)+SUMPRODUCT((E3_Consommateurs!$D$21:$XFD$21=B1_Calculs!B47)*E3_Consommateurs!$D$18:$XFD$18*E3_Consommateurs!$D$20:$XFD$20))/(100-Eing_Netzverluste)*100*(1-'E1_Données de projet'!$D$19/100)^(B1_Calculs!B47-'E1_Données de projet'!$D$22)","v":0},{"v":0,"d":"0.00"},0,0,0,{"$f":"($F$19*(1+$G$19)^(B47-B$36)+$F$20*(1+$G$20)^(B47-B$36))*(B47>='E1_Données de projet'!$D$22)*VLOOKUP(B47,'E1_Données de projet'!$D$58:$I$60,6)/100","v":0},{"$f":"$F$21*(1+$G$21)^(B47-B$36)*(B47>='E1_Données de projet'!$D$22)*VLOOKUP(B47,'E1_Données de projet'!$D$58:$I$60,6)/100","v":0},0,null,null,0,{"$f":"+('E1_Données de projet'!$D$48*(1+Eing_allg_Teuerung/100)^('E1_Données de projet'!$I$48*ROUNDDOWN((AD47-1)/'E1_Données de projet'!$I$48,0))/'E1_Données de projet'!$I$48\n+'E1_Données de projet'!$D$49*(1+Eing_allg_Teuerung/100)^('E1_Données de projet'!$I$49*ROUNDDOWN((AD47-1)/'E1_Données de projet'!$I$49,0))/'E1_Données de projet'!$I$49\n+'E1_Données de projet'!$D$50*(1+Eing_allg_Teuerung/100)^('E1_Données de projet'!$I$50*ROUNDDOWN((AD47-1)/'E1_Données de projet'!$I$50,0))/'E1_Données de projet'!$I$50\n+'E1_Données de projet'!$D$51*(1+Eing_allg_Teuerung/100)^('E1_Données de projet'!$I$51*ROUNDDOWN((AD47-1)/'E1_Données de projet'!$I$51,0))/'E1_Données de projet'!$I$51\n+'E1_Données de projet'!$D$52*(1+Eing_allg_Teuerung/100)^('E1_Données de projet'!$I$52*ROUNDDOWN((AD47-1)/'E1_Données de projet'!$I$52,0))/'E1_Données de projet'!$I$52\n+'E1_Données de projet'!$D$53*(1+Eing_allg_Teuerung/100)^('E1_Données de projet'!$I$53*ROUNDDOWN((AD47-1)/'E1_Données de projet'!$I$53,0))/'E1_Données de projet'!$I$53\n)*((AD47)>0)*VLOOKUP(B47,'E1_Données de projet'!$D$58:$I$60,6\n)/100","v":0},0,{"$f":"SUM((SUMPRODUCT((E3_Consommateurs!$D$21:$XFD$21<B1_Calculs!B47)*E3_Consommateurs!$D$25:$XFD$25)+SUMPRODUCT((E3_Consommateurs!$D$21:$XFD$21=B1_Calculs!B47)*E3_Consommateurs!$D$25:$XFD$25*E3_Consommateurs!$D$20:$XFD$20))*(1+$G$24)^(B47-B$36),(SUMPRODUCT((E3_Consommateurs!$D$21:$XFD$21<B1_Calculs!B47)*E3_Consommateurs!$D$26:$XFD$26)+SUMPRODUCT((E3_Consommateurs!$D$21:$XFD$21=B1_Calculs!B47)*E3_Consommateurs!$D$26:$XFD$26*E3_Consommateurs!$D$20:$XFD$20))*((1+$G$24)*(1-'E1_Données de projet'!$D$19/100))^(B47-B$36))","v":0},{"$f":"SUMPRODUCT((E3_Consommateurs!$D$21:$XFD$21=B1_Calculs!B47)*E3_Consommateurs!$D$23:$XFD$23)","v":0},{"$f":"SUM(jährlicher_Förderbeitrag*(B47-Erstauszahlung_jährlFörderung<=Eing_Förderung_wiederholend_Laufzeit-1)*(B47>='E1_Données de projet'!$D$83),'E1_Données de projet'!$D$76*(B47='E1_Données de projet'!$D$77),'E1_Données de projet'!$D$78*(B47='E1_Données de projet'!$D$79))","v":0},null,null,0,0,0,{"$f":"'E1_Données de projet'!$D$48*(AD47-1='E1_Données de projet'!$I$48)*(1+Eing_allg_Teuerung/100)^'E1_Données de projet'!$I$48\n+'E1_Données de projet'!$D$49*(AD47-1='E1_Données de projet'!$I$49)*(1+Eing_allg_Teuerung/100)^'E1_Données de projet'!$I$49\n+'E1_Données de projet'!$D$50*(AD47-1='E1_Données de projet'!$I$50)*(1+Eing_allg_Teuerung/100)^'E1_Données de projet'!$I$50\n+'E1_Données de projet'!$D$51*(AD47-1='E1_Données de projet'!$I$51)*(1+Eing_allg_Teuerung/100)^'E1_Données de projet'!$I$51\n+'E1_Données de projet'!$D$52*(AD47-1='E1_Données de projet'!$I$52)*(1+Eing_allg_Teuerung/100)^'E1_Données de projet'!$I$52\n+'E1_Données de projet'!$D$53*(AD47-1='E1_Données de projet'!$I$53)*(1+Eing_allg_Teuerung/100)^'E1_Données de projet'!$I$53\n+Gesamtinvestition*SUMPRODUCT(('E1_Données de projet'!$D$58:$D$60=B47)*'E1_Données de projet'!$F$58:$F$60)/100","v":0},0,0,0,0,null,{"$f":"MAX(B1_Calculs!B47+1-'E1_Données de projet'!$D$22,0)","v":12},0,{"$f":"'E1_Données de projet'!$D$48*(AD47-1='E1_Données de projet'!$I$48)*(1+Eing_allg_Teuerung/100)^'E1_Données de projet'!$I$48\n+'E1_Données de projet'!$D$49*(AD47-1='E1_Données de projet'!$I$49)*(1+Eing_allg_Teuerung/100)^'E1_Données de projet'!$I$49\n+'E1_Données de projet'!$D$50*(AD47-1='E1_Données de projet'!$I$50)*(1+Eing_allg_Teuerung/100)^'E1_Données de projet'!$I$50\n+'E1_Données de projet'!$D$51*(AD47-1='E1_Données de projet'!$I$51)*(1+Eing_allg_Teuerung/100)^'E1_Données de projet'!$I$51\n+'E1_Données de projet'!$D$52*(AD47-1='E1_Données de projet'!$I$52)*(1+Eing_allg_Teuerung/100)^'E1_Données de projet'!$I$52\n+'E1_Données de projet'!$D$53*(AD47-1='E1_Données de projet'!$I$53)*(1+Eing_allg_Teuerung/100)^'E1_Données de projet'!$I$53\n+(Gesamtinvestition-SUM('E1_Données de projet'!$D$54:$D$55))*SUMPRODUCT(('E1_Données de projet'!$D$58:$D$60=B47)*'E1_Données de projet'!$F$58:$F$60)/100+AF46-N47","v":0},{"$f":"IF(ISNUMBER(IRR((AJ$36:AJ46,AI47))),IRR((AJ$36:AJ46,AI47)),\"-\")","v":"-"},11,0,0]
[null,12,{"$f":"(SUMPRODUCT((E3_Consommateurs!$D$21:$XFD$21<B1_Calculs!B48)*E3_Consommateurs!$D$18:$XFD$18)+SUMPRODUCT((E3_Consommateurs!$D$21:$XFD$21=B1_Calculs!B48)*E3_Consommateurs!$D$18:$XFD$18*E3_Consommateurs!$D$20:$XFD$20))/(100-Eing_Netzverluste)*100*(1-'E1_Données de projet'!$D$19/100)^(B1_Calculs!B48-'E1_Données de projet'!$D$22)","v":0},{"v":0,"d":"0.00"},0,0,0,{"$f":"($F$19*(1+$G$19)^(B48-B$36)+$F$20*(1+$G$20)^(B48-B$36))*(B48>='E1_Données de projet'!$D$22)*VLOOKUP(B48,'E1_Données de projet'!$D$58:$I$60,6)/100","v":0},{"$f":"$F$21*(1+$G$21)^(B48-B$36)*(B48>='E1_Données de projet'!$D$22)*VLOOKUP(B48,'E1_Données de projet'!$D$58:$I$60,6)/100","v":0},0,null,null,0,{"$f":"+('E1_Données de projet'!$D$48*(1+Eing_allg_Teuerung/100)^('E1_Données de projet'!$I$48*ROUNDDOWN((AD48-1)/'E1_Données de projet'!$I$48,0))/'E1_Données de projet'!$I$48\n+'E1_Données de projet'!$D$49*(1+Eing_allg_Teuerung/100)^('E1_Données de projet'!$I$49*ROUNDDOWN((AD48-1)/'E1_Données de projet'!$I$49,0))/'E1_Données de projet'!$I$49\n+'E1_Données de projet'!$D$50*(1+Eing_allg_Teuerung/100)^('E1_Données de projet'!$I$50*ROUNDDOWN((AD48-1)/'E1_Données de projet'!$I$50,0))/'E1_Données de projet'!$I$50\n+'E1_Données de projet'!$D$51*(1+Eing_allg_Teuerung/100)^('E1_Données de projet'!$I$51*ROUNDDOWN((AD48-1)/'E1_Données de projet'!$I$51,0))/'E1_Données de projet'!$I$51\n+'E1_Données de projet'!$D$52*(1+Eing_allg_Teuerung/100)^('E1_Données de projet'!$I$52*ROUNDDOWN((AD48-1)/'E1_Données de projet'!$I$52,0))/'E1_Données de projet'!$I$52\n+'E1_Données de projet'!$D$53*(1+Eing_allg_Teuerung/100)^('E1_Données de projet'!$I$53*ROUNDDOWN((AD48-1)/'E1_Données de projet'!$I$53,0))/'E1_Données de projet'!$I$53\n)*((AD48)>0)*VLOOKUP(B48,'E1_Données de projet'!$D$58:$I$60,6\n)/100","v":0},0,{"$f":"SUM((SUMPRODUCT((E3_Consommateurs!$D$21:$XFD$21<B1_Calculs!B48)*E3_Consommateurs!$D$25:$XFD$25)+SUMPRODUCT((E3_Consommateurs!$D$21:$XFD$21=B1_Calculs!B48)*E3_Consommateurs!$D$25:$XFD$25*E3_Consommateurs!$D$20:$XFD$20))*(1+$G$24)^(B48-B$36),(SUMPRODUCT((E3_Consommateurs!$D$21:$XFD$21<B1_Calculs!B48)*E3_Consommateurs!$D$26:$XFD$26)+SUMPRODUCT((E3_Consommateurs!$D$21:$XFD$21=B1_Calculs!B48)*E3_Consommateurs!$D$26:$XFD$26*E3_Consommateurs!$D$20:$XFD$20))*((1+$G$24)*(1-'E1_Données de projet'!$D$19/100))^(B48-B$36))","v":0},{"$f":"SUMPRODUCT((E3_Consommateurs!$D$21:$XFD$21=B1_Calculs!B48)*E3_Consommateurs!$D$23:$XFD$23)","v":0},{"$f":"SUM(jährlicher_Förderbeitrag*(B48-Erstauszahlung_jährlFörderung<=Eing_Förderung_wiederholend_Laufzeit-1)*(B48>='E1_Données de projet'!$D$83),'E1_Données de projet'!$D$76*(B48='E1_Données de projet'!$D$77),'E1_Données de projet'!$D$78*(B48='E1_Données de projet'!$D$79))","v":0},null,null,0,0,0,{"$f":"'E1_Données de projet'!$D$48*(AD48-1='E1_Données de projet'!$I$48)*(1+Eing_allg_Teuerung/100)^'E1_Données de projet'!$I$48\n+'E1_Données de projet'!$D$49*(AD48-1='E1_Données de projet'!$I$49)*(1+Eing_allg_Teuerung/100)^'E1_Données de projet'!$I$49\n+'E1_Données de projet'!$D$50*(AD48-1='E1_Données de projet'!$I$50)*(1+Eing_allg_Teuerung/100)^'E1_Données de projet'!$I$50\n+'E1_Données de projet'!$D$51*(AD48-1='E1_Données de projet'!$I$51)*(1+Eing_allg_Teuerung/100)^'E1_Données de projet'!$I$51\n+'E1_Données de projet'!$D$52*(AD48-1='E1_Données de projet'!$I$52)*(1+Eing_allg_Teuerung/100)^'E1_Données de projet'!$I$52\n+'E1_Données de projet'!$D$53*(AD48-1='E1_Données de projet'!$I$53)*(1+Eing_allg_Teuerung/100)^'E1_Données de projet'!$I$53\n+Gesamtinvestition*SUMPRODUCT(('E1_Données de projet'!$D$58:$D$60=B48)*'E1_Données de projet'!$F$58:$F$60)/100","v":0},0,0,0,0,null,{"$f":"MAX(B1_Calculs!B48+1-'E1_Données de projet'!$D$22,0)","v":13},0,{"$f":"'E1_Données de projet'!$D$48*(AD48-1='E1_Données de projet'!$I$48)*(1+Eing_allg_Teuerung/100)^'E1_Données de projet'!$I$48\n+'E1_Données de projet'!$D$49*(AD48-1='E1_Données de projet'!$I$49)*(1+Eing_allg_Teuerung/100)^'E1_Données de projet'!$I$49\n+'E1_Données de projet'!$D$50*(AD48-1='E1_Données de projet'!$I$50)*(1+Eing_allg_Teuerung/100)^'E1_Données de projet'!$I$50\n+'E1_Données de projet'!$D$51*(AD48-1='E1_Données de projet'!$I$51)*(1+Eing_allg_Teuerung/100)^'E1_Données de projet'!$I$51\n+'E1_Données de projet'!$D$52*(AD48-1='E1_Données de projet'!$I$52)*(1+Eing_allg_Teuerung/100)^'E1_Données de projet'!$I$52\n+'E1_Données de projet'!$D$53*(AD48-1='E1_Données de projet'!$I$53)*(1+Eing_allg_Teuerung/100)^'E1_Données de projet'!$I$53\n+(Gesamtinvestition-SUM('E1_Données de projet'!$D$54:$D$55))*SUMPRODUCT(('E1_Données de projet'!$D$58:$D$60=B48)*'E1_Données de projet'!$F$58:$F$60)/100+AF47-N48","v":0},{"$f":"IF(ISNUMBER(IRR((AJ$36:AJ47,AI48))),IRR((AJ$36:AJ47,AI48)),\"-\")","v":"-"},12,0,0]
[null,13,{"$f":"(SUMPRODUCT((E3_Consommateurs!$D$21:$XFD$21<B1_Calculs!B49)*E3_Consommateurs!$D$18:$XFD$18)+SUMPRODUCT((E3_Consommateurs!$D$21:$XFD$21=B1_Calculs!B49)*E3_Consommateurs!$D$18:$XFD$18*E3_Consommateurs!$D$20:$XFD$20))/(100-Eing_Netzverluste)*100*(1-'E1_Données de projet'!$D$19/100)^(B1_Calculs!B49-'E1_Données de projet'!$D$22)","v":0},{"v":0,"d":"0.00"},0,0,0,{"$f":"($F$19*(1+$G$19)^(B49-B$36)+$F$20*(1+$G$20)^(B49-B$36))*(B49>='E1_Données de projet'!$D$22)*VLOOKUP(B49,'E1_Données de projet'!$D$58:$I$60,6)/100","v":0},{"$f":"$F$21*(1+$G$21)^(B49-B$36)*(B49>='E1_Données de projet'!$D$22)*VLOOKUP(B49,'E1_Données de projet'!$D$58:$I$60,6)/100","v":0},0,null,null,0,{"$f":"+('E1_Données de projet'!$D$48*(1+Eing_allg_Teuerung/100)^('E1_Données de projet'!$I$48*ROUNDDOWN((AD49-1)/'E1_Données de projet'!$I$48,0))/'E1_Données de projet'!$I$48\n+'E1_Données de projet'!$D$49*(1+Eing_allg_Teuerung/100)^('E1_Données de projet'!$I$49*ROUNDDOWN((AD49-1)/'E1_Données de projet'!$I$49,0))/'E1_Données de projet'!$I$49\n+'E1_Données de projet'!$D$50*(1+Eing_allg_Teuerung/100)^('E1_Données de projet'!$I$50*ROUNDDOWN((AD49-1)/'E1_Données de projet'!$I$50,0))/'E1_Données de projet'!$I$50\n+'E1_Données de projet'!$D$51*(1+Eing_allg_Teuerung/100)^('E1_Données de projet'!$I$51*ROUNDDOWN((AD49-1)/'E1_Données de projet'!$I$51,0))/'E1_Données de projet'!$I$51\n+'E1_Données de projet'!$D$52*(1+Eing_allg_Teuerung/100)^('E1_Données de projet'!$I$52*ROUNDDOWN((AD49-1)/'E1_Données de projet'!$I$52,0))/'E1_Données de projet'!$I$52\n+'E1_Données de projet'!$D$53*(1+Eing_allg_Teuerung/100)^('E1_Données de projet'!$I$53*ROUNDDOWN((AD49-1)/'E1_Données de projet'!$I$53,0))/'E1_Données de projet'!$I$53\n)*((AD49)>0)*VLOOKUP(B49,'E1_Données de projet'!$D$58:$I$60,6\n)/100","v":0},0,{"$f":"SUM((SUMPRODUCT((E3_Consommateurs!$D$21:$XFD$21<B1_Calculs!B49)*E3_Consommateurs!$D$25:$XFD$25)+SUMPRODUCT((E3_Consommateurs!$D$21:$XFD$21=B1_Calculs!B49)*E3_Consommateurs!$D$25:$XFD$25*E3_Consommateurs!$D$20:$XFD$20))*(1+$G$24)^(B49-B$36),(SUMPRODUCT((E3_Consommateurs!$D$21:$XFD$21<B1_Calculs!B49)*E3_Consommateurs!$D$26:$XFD$26)+SUMPRODUCT((E3_Consommateurs!$D$21:$XFD$21=B1_Calculs!B49)*E3_Consommateurs!$D$26:$XFD$26*E3_Consommateurs!$D$20:$XFD$20))*((1+$G$24)*(1-'E1_Données de projet'!$D$19/100))^(B49-B$36))","v":0},{"$f":"SUMPRODUCT((E3_Consommateurs!$D$21:$XFD$21=B1_Calculs!B49)*E3_Consommateurs!$D$23:$XFD$23)","v":0},{"$f":"SUM(jährlicher_Förderbeitrag*(B49-Erstauszahlung_jährlFörderung<=Eing_Förderung_wiederholend_Laufzeit-1)*(B49>='E1_Données de projet'!$D$83),'E1_Données de projet'!$D$76*(B49='E1_Données de projet'!$D$77),'E1_Données de projet'!$D$78*(B49='E1_Données de projet'!$D$79))","v":0},null,null,0,0,0,{"$f":"'E1_Données de projet'!$D$48*(AD49-1='E1_Données de projet'!$I$48)*(1+Eing_allg_Teuerung/100)^'E1_Données de projet'!$I$48\n+'E1_Données de projet'!$D$49*(AD49-1='E1_Données de projet'!$I$49)*(1+Eing_allg_Teuerung/100)^'E1_Données de projet'!$I$49\n+'E1_Données de projet'!$D$50*(AD49-1='E1_Données de projet'!$I$50)*(1+Eing_allg_Teuerung/100)^'E1_Données de projet'!$I$50\n+'E1_Données de projet'!$D$51*(AD49-1='E1_Données de projet'!$I$51)*(1+Eing_allg_Teuerung/100)^'E1_Données de projet'!$I$51\n+'E1_Données de projet'!$D$52*(AD49-1='E1_Données de projet'!$I$52)*(1+Eing_allg_Teuerung/100)^'E1_Données de projet'!$I$52\n+'E1_Données de projet'!$D$53*(AD49-1='E1_Données de projet'!$I$53)*(1+Eing_allg_Teuerung/100)^'E1_Données de projet'!$I$53\n+Gesamtinvestition*SUMPRODUCT(('E1_Données de projet'!$D$58:$D$60=B49)*'E1_Données de projet'!$F$58:$F$60)/100","v":0},0,0,0,0,null,{"$f":"MAX(B1_Calculs!B49+1-'E1_Données de projet'!$D$22,0)","v":14},0,{"$f":"'E1_Données de projet'!$D$48*(AD49-1='E1_Données de projet'!$I$48)*(1+Eing_allg_Teuerung/100)^'E1_Données de projet'!$I$48\n+'E1_Données de projet'!$D$49*(AD49-1='E1_Données de projet'!$I$49)*(1+Eing_allg_Teuerung/100)^'E1_Données de projet'!$I$49\n+'E1_Données de projet'!$D$50*(AD49-1='E1_Données de projet'!$I$50)*(1+Eing_allg_Teuerung/100)^'E1_Données de projet'!$I$50\n+'E1_Données de projet'!$D$51*(AD49-1='E1_Données de projet'!$I$51)*(1+Eing_allg_Teuerung/100)^'E1_Données de projet'!$I$51\n+'E1_Données de projet'!$D$52*(AD49-1='E1_Données de projet'!$I$52)*(1+Eing_allg_Teuerung/100)^'E1_Données de projet'!$I$52\n+'E1_Données de projet'!$D$53*(AD49-1='E1_Données de projet'!$I$53)*(1+Eing_allg_Teuerung/100)^'E1_Données de projet'!$I$53\n+(Gesamtinvestition-SUM('E1_Données de projet'!$D$54:$D$55))*SUMPRODUCT(('E1_Données de projet'!$D$58:$D$60=B49)*'E1_Données de projet'!$F$58:$F$60)/100+AF48-N49","v":0},{"$f":"IF(ISNUMBER(IRR((AJ$36:AJ48,AI49))),IRR((AJ$36:AJ48,AI49)),\"-\")","v":"-"},13,0,0]
[null,14,{"$f":"(SUMPRODUCT((E3_Consommateurs!$D$21:$XFD$21<B1_Calculs!B50)*E3_Consommateurs!$D$18:$XFD$18)+SUMPRODUCT((E3_Consommateurs!$D$21:$XFD$21=B1_Calculs!B50)*E3_Consommateurs!$D$18:$XFD$18*E3_Consommateurs!$D$20:$XFD$20))/(100-Eing_Netzverluste)*100*(1-'E1_Données de projet'!$D$19/100)^(B1_Calculs!B50-'E1_Données de projet'!$D$22)","v":0},{"v":0,"d":"0.00"},0,0,0,{"$f":"($F$19*(1+$G$19)^(B50-B$36)+$F$20*(1+$G$20)^(B50-B$36))*(B50>='E1_Données de projet'!$D$22)*VLOOKUP(B50,'E1_Données de projet'!$D$58:$I$60,6)/100","v":0},{"$f":"$F$21*(1+$G$21)^(B50-B$36)*(B50>='E1_Données de projet'!$D$22)*VLOOKUP(B50,'E1_Données de projet'!$D$58:$I$60,6)/100","v":0},0,null,null,0,{"$f":"+('E1_Données de projet'!$D$48*(1+Eing_allg_Teuerung/100)^('E1_Données de projet'!$I$48*ROUNDDOWN((AD50-1)/'E1_Données de projet'!$I$48,0))/'E1_Données de projet'!$I$48\n+'E1_Données de projet'!$D$49*(1+Eing_allg_Teuerung/100)^('E1_Données de projet'!$I$49*ROUNDDOWN((AD50-1)/'E1_Données de projet'!$I$49,0))/'E1_Données de projet'!$I$49\n+'E1_Données de projet'!$D$50*(1+Eing_allg_Teuerung/100)^('E1_Données de projet'!$I$50*ROUNDDOWN((AD50-1)/'E1_Données de projet'!$I$50,0))/'E1_Données de projet'!$I$50\n+'E1_Données de projet'!$D$51*(1+Eing_allg_Teuerung/100)^('E1_Données de projet'!$I$51*ROUNDDOWN((AD50-1)/'E1_Données de projet'!$I$51,0))/'E1_Données de projet'!$I$51\n+'E1_Données de projet'!$D$52*(1+Eing_allg_Teuerung/100)^('E1_Données de projet'!$I$52*ROUNDDOWN((AD50-1)/'E1_Données de projet'!$I$52,0))/'E1_Données de projet'!$I$52\n+'E1_Données de projet'!$D$53*(1+Eing_allg_Teuerung/100)^('E1_Données de projet'!$I$53*ROUNDDOWN((AD50-1)/'E1_Données de projet'!$I$53,0))/'E1_Données de projet'!$I$53\n)*((AD50)>0)*VLOOKUP(B50,'E1_Données de projet'!$D$58:$I$60,6\n)/100","v":0},0,{"$f":"SUM((SUMPRODUCT((E3_Consommateurs!$D$21:$XFD$21<B1_Calculs!B50)*E3_Consommateurs!$D$25:$XFD$25)+SUMPRODUCT((E3_Consommateurs!$D$21:$XFD$21=B1_Calculs!B50)*E3_Consommateurs!$D$25:$XFD$25*E3_Consommateurs!$D$20:$XFD$20))*(1+$G$24)^(B50-B$36),(SUMPRODUCT((E3_Consommateurs!$D$21:$XFD$21<B1_Calculs!B50)*E3_Consommateurs!$D$26:$XFD$26)+SUMPRODUCT((E3_Consommateurs!$D$21:$XFD$21=B1_Calculs!B50)*E3_Consommateurs!$D$26:$XFD$26*E3_Consommateurs!$D$20:$XFD$20))*((1+$G$24)*(1-'E1_Données de projet'!$D$19/100))^(B50-B$36))","v":0},{"$f":"SUMPRODUCT((E3_Consommateurs!$D$21:$XFD$21=B1_Calculs!B50)*E3_Consommateurs!$D$23:$XFD$23)","v":0},{"$f":"SUM(jährlicher_Förderbeitrag*(B50-Erstauszahlung_jährlFörderung<=Eing_Förderung_wiederholend_Laufzeit-1)*(B50>='E1_Données de projet'!$D$83),'E1_Données de projet'!$D$76*(B50='E1_Données de projet'!$D$77),'E1_Données de projet'!$D$78*(B50='E1_Données de projet'!$D$79))","v":0},null,null,0,0,0,{"$f":"'E1_Données de projet'!$D$48*(AD50-1='E1_Données de projet'!$I$48)*(1+Eing_allg_Teuerung/100)^'E1_Données de projet'!$I$48\n+'E1_Données de projet'!$D$49*(AD50-1='E1_Données de projet'!$I$49)*(1+Eing_allg_Teuerung/100)^'E1_Données de projet'!$I$49\n+'E1_Données de projet'!$D$50*(AD50-1='E1_Données de projet'!$I$50)*(1+Eing_allg_Teuerung/100)^'E1_Données de projet'!$I$50\n+'E1_Données de projet'!$D$51*(AD50-1='E1_Données de projet'!$I$51)*(1+Eing_allg_Teuerung/100)^'E1_Données de projet'!$I$51\n+'E1_Données de projet'!$D$52*(AD50-1='E1_Données de projet'!$I$52)*(1+Eing_allg_Teuerung/100)^'E1_Données de projet'!$I$52\n+'E1_Données de projet'!$D$53*(AD50-1='E1_Données de projet'!$I$53)*(1+Eing_allg_Teuerung/100)^'E1_Données de projet'!$I$53\n+Gesamtinvestition*SUMPRODUCT(('E1_Données de projet'!$D$58:$D$60=B50)*'E1_Données de projet'!$F$58:$F$60)/100","v":0},0,0,0,0,null,{"$f":"MAX(B1_Calculs!B50+1-'E1_Données de projet'!$D$22,0)","v":15},0,{"$f":"'E1_Données de projet'!$D$48*(AD50-1='E1_Données de projet'!$I$48)*(1+Eing_allg_Teuerung/100)^'E1_Données de projet'!$I$48\n+'E1_Données de projet'!$D$49*(AD50-1='E1_Données de projet'!$I$49)*(1+Eing_allg_Teuerung/100)^'E1_Données de projet'!$I$49\n+'E1_Données de projet'!$D$50*(AD50-1='E1_Données de projet'!$I$50)*(1+Eing_allg_Teuerung/100)^'E1_Données de projet'!$I$50\n+'E1_Données de projet'!$D$51*(AD50-1='E1_Données de projet'!$I$51)*(1+Eing_allg_Teuerung/100)^'E1_Données de projet'!$I$51\n+'E1_Données de projet'!$D$52*(AD50-1='E1_Données de projet'!$I$52)*(1+Eing_allg_Teuerung/100)^'E1_Données de projet'!$I$52\n+'E1_Données de projet'!$D$53*(AD50-1='E1_Données de projet'!$I$53)*(1+Eing_allg_Teuerung/100)^'E1_Données de projet'!$I$53\n+(Gesamtinvestition-SUM('E1_Données de projet'!$D$54:$D$55))*SUMPRODUCT(('E1_Données de projet'!$D$58:$D$60=B50)*'E1_Données de projet'!$F$58:$F$60)/100+AF49-N50","v":0},{"$f":"IF(ISNUMBER(IRR((AJ$36:AJ49,AI50))),IRR((AJ$36:AJ49,AI50)),\"-\")","v":"-"},14,0,0]
[null,15,{"$f":"(SUMPRODUCT((E3_Consommateurs!$D$21:$XFD$21<B1_Calculs!B51)*E3_Consommateurs!$D$18:$XFD$18)+SUMPRODUCT((E3_Consommateurs!$D$21:$XFD$21=B1_Calculs!B51)*E3_Consommateurs!$D$18:$XFD$18*E3_Consommateurs!$D$20:$XFD$20))/(100-Eing_Netzverluste)*100*(1-'E1_Données de projet'!$D$19/100)^(B1_Calculs!B51-'E1_Données de projet'!$D$22)","v":0},{"v":0,"d":"0.00"},0,0,0,{"$f":"($F$19*(1+$G$19)^(B51-B$36)+$F$20*(1+$G$20)^(B51-B$36))*(B51>='E1_Données de projet'!$D$22)*VLOOKUP(B51,'E1_Données de projet'!$D$58:$I$60,6)/100","v":0},{"$f":"$F$21*(1+$G$21)^(B51-B$36)*(B51>='E1_Données de projet'!$D$22)*VLOOKUP(B51,'E1_Données de projet'!$D$58:$I$60,6)/100","v":0},0,null,null,0,{"$f":"+('E1_Données de projet'!$D$48*(1+Eing_allg_Teuerung/100)^('E1_Données de projet'!$I$48*ROUNDDOWN((AD51-1)/'E1_Données de projet'!$I$48,0))/'E1_Données de projet'!$I$48\n+'E1_Données de projet'!$D$49*(1+Eing_allg_Teuerung/100)^('E1_Données de projet'!$I$49*ROUNDDOWN((AD51-1)/'E1_Données de projet'!$I$49,0))/'E1_Données de projet'!$I$49\n+'E1_Données de projet'!$D$50*(1+Eing_allg_Teuerung/100)^('E1_Données de projet'!$I$50*ROUNDDOWN((AD51-1)/'E1_Données de projet'!$I$50,0))/'E1_Données de projet'!$I$50\n+'E1_Données de projet'!$D$51*(1+Eing_allg_Teuerung/100)^('E1_Données de projet'!$I$51*ROUNDDOWN((AD51-1)/'E1_Données de projet'!$I$51,0))/'E1_Données de projet'!$I$51\n+'E1_Données de projet'!$D$52*(1+Eing_allg_Teuerung/100)^('E1_Données de projet'!$I$52*ROUNDDOWN((AD51-1)/'E1_Données de projet'!$I$52,0))/'E1_Données de projet'!$I$52\n+'E1_Données de projet'!$D$53*(1+Eing_allg_Teuerung/100)^('E1_Données de projet'!$I$53*ROUNDDOWN((AD51-1)/'E1_Données de projet'!$I$53,0))/'E1_Données de projet'!$I$53\n)*((AD51)>0)*VLOOKUP(B51,'E1_Données de projet'!$D$58:$I$60,6\n)/100","v":0},0,{"$f":"SUM((SUMPRODUCT((E3_Consommateurs!$D$21:$XFD$21<B1_Calculs!B51)*E3_Consommateurs!$D$25:$XFD$25)+SUMPRODUCT((E3_Consommateurs!$D$21:$XFD$21=B1_Calculs!B51)*E3_Consommateurs!$D$25:$XFD$25*E3_Consommateurs!$D$20:$XFD$20))*(1+$G$24)^(B51-B$36),(SUMPRODUCT((E3_Consommateurs!$D$21:$XFD$21<B1_Calculs!B51)*E3_Consommateurs!$D$26:$XFD$26)+SUMPRODUCT((E3_Consommateurs!$D$21:$XFD$21=B1_Calculs!B51)*E3_Consommateurs!$D$26:$XFD$26*E3_Consommateurs!$D$20:$XFD$20))*((1+$G$24)*(1-'E1_Données de projet'!$D$19/100))^(B51-B$36))","v":0},{"$f":"SUMPRODUCT((E3_Consommateurs!$D$21:$XFD$21=B1_Calculs!B51)*E3_Consommateurs!$D$23:$XFD$23)","v":0},{"$f":"SUM(jährlicher_Förderbeitrag*(B51-Erstauszahlung_jährlFörderung<=Eing_Förderung_wiederholend_Laufzeit-1)*(B51>='E1_Données de projet'!$D$83),'E1_Données de projet'!$D$76*(B51='E1_Données de projet'!$D$77),'E1_Données de projet'!$D$78*(B51='E1_Données de projet'!$D$79))","v":0},null,null,0,0,0,{"$f":"'E1_Données de projet'!$D$48*(AD51-1='E1_Données de projet'!$I$48)*(1+Eing_allg_Teuerung/100)^'E1_Données de projet'!$I$48\n+'E1_Données de projet'!$D$49*(AD51-1='E1_Données de projet'!$I$49)*(1+Eing_allg_Teuerung/100)^'E1_Données de projet'!$I$49\n+'E1_Données de projet'!$D$50*(AD51-1='E1_Données de projet'!$I$50)*(1+Eing_allg_Teuerung/100)^'E1_Données de projet'!$I$50\n+'E1_Données de projet'!$D$51*(AD51-1='E1_Données de projet'!$I$51)*(1+Eing_allg_Teuerung/100)^'E1_Données de projet'!$I$51\n+'E1_Données de projet'!$D$52*(AD51-1='E1_Données de projet'!$I$52)*(1+Eing_allg_Teuerung/100)^'E1_Données de projet'!$I$52\n+'E1_Données de projet'!$D$53*(AD51-1='E1_Données de projet'!$I$53)*(1+Eing_allg_Teuerung/100)^'E1_Données de projet'!$I$53\n+Gesamtinvestition*SUMPRODUCT(('E1_Données de projet'!$D$58:$D$60=B51)*'E1_Données de projet'!$F$58:$F$60)/100","v":0},0,0,0,0,null,{"$f":"MAX(B1_Calculs!B51+1-'E1_Données de projet'!$D$22,0)","v":16},0,{"$f":"'E1_Données de projet'!$D$48*(AD51-1='E1_Données de projet'!$I$48)*(1+Eing_allg_Teuerung/100)^'E1_Données de projet'!$I$48\n+'E1_Données de projet'!$D$49*(AD51-1='E1_Données de projet'!$I$49)*(1+Eing_allg_Teuerung/100)^'E1_Données de projet'!$I$49\n+'E1_Données de projet'!$D$50*(AD51-1='E1_Données de projet'!$I$50)*(1+Eing_allg_Teuerung/100)^'E1_Données de projet'!$I$50\n+'E1_Données de projet'!$D$51*(AD51-1='E1_Données de projet'!$I$51)*(1+Eing_allg_Teuerung/100)^'E1_Données de projet'!$I$51\n+'E1_Données de projet'!$D$52*(AD51-1='E1_Données de projet'!$I$52)*(1+Eing_allg_Teuerung/100)^'E1_Données de projet'!$I$52\n+'E1_Données de projet'!$D$53*(AD51-1='E1_Données de projet'!$I$53)*(1+Eing_allg_Teuerung/100)^'E1_Données de projet'!$I$53\n+(Gesamtinvestition-SUM('E1_Données de projet'!$D$54:$D$55))*SUMPRODUCT(('E1_Données de projet'!$D$58:$D$60=B51)*'E1_Données de projet'!$F$58:$F$60)/100+AF50-N51","v":0},{"$f":"IF(ISNUMBER(IRR((AJ$36:AJ50,AI51))),IRR((AJ$36:AJ50,AI51)),\"-\")","v":"-"},15,0,0]
[null,16,{"$f":"(SUMPRODUCT((E3_Consommateurs!$D$21:$XFD$21<B1_Calculs!B52)*E3_Consommateurs!$D$18:$XFD$18)+SUMPRODUCT((E3_Consommateurs!$D$21:$XFD$21=B1_Calculs!B52)*E3_Consommateurs!$D$18:$XFD$18*E3_Consommateurs!$D$20:$XFD$20))/(100-Eing_Netzverluste)*100*(1-'E1_Données de projet'!$D$19/100)^(B1_Calculs!B52-'E1_Données de projet'!$D$22)","v":0},{"v":0,"d":"0.00"},0,0,0,{"$f":"($F$19*(1+$G$19)^(B52-B$36)+$F$20*(1+$G$20)^(B52-B$36))*(B52>='E1_Données de projet'!$D$22)*VLOOKUP(B52,'E1_Données de projet'!$D$58:$I$60,6)/100","v":0},{"$f":"$F$21*(1+$G$21)^(B52-B$36)*(B52>='E1_Données de projet'!$D$22)*VLOOKUP(B52,'E1_Données de projet'!$D$58:$I$60,6)/100","v":0},0,null,null,0,{"$f":"+('E1_Données de projet'!$D$48*(1+Eing_allg_Teuerung/100)^('E1_Données de projet'!$I$48*ROUNDDOWN((AD52-1)/'E1_Données de projet'!$I$48,0))/'E1_Données de projet'!$I$48\n+'E1_Données de projet'!$D$49*(1+Eing_allg_Teuerung/100)^('E1_Données de projet'!$I$49*ROUNDDOWN((AD52-1)/'E1_Données de projet'!$I$49,0))/'E1_Données de projet'!$I$49\n+'E1_Données de projet'!$D$50*(1+Eing_allg_Teuerung/100)^('E1_Données de projet'!$I$50*ROUNDDOWN((AD52-1)/'E1_Données de projet'!$I$50,0))/'E1_Données de projet'!$I$50\n+'E1_Données de projet'!$D$51*(1+Eing_allg_Teuerung/100)^('E1_Données de projet'!$I$51*ROUNDDOWN((AD52-1)/'E1_Données de projet'!$I$51,0))/'E1_Données de projet'!$I$51\n+'E1_Données de projet'!$D$52*(1+Eing_allg_Teuerung/100)^('E1_Données de projet'!$I$52*ROUNDDOWN((AD52-1)/'E1_Données de projet'!$I$52,0))/'E1_Données de projet'!$I$52\n+'E1_Données de projet'!$D$53*(1+Eing_allg_Teuerung/100)^('E1_Données de projet'!$I$53*ROUNDDOWN((AD52-1)/'E1_Données de projet'!$I$53,0))/'E1_Données de projet'!$I$53\n)*((AD52)>0)*VLOOKUP(B52,'E1_Données de projet'!$D$58:$I$60,6\n)/100","v":0},0,{"$f":"SUM((SUMPRODUCT((E3_Consommateurs!$D$21:$XFD$21<B1_Calculs!B52)*E3_Consommateurs!$D$25:$XFD$25)+SUMPRODUCT((E3_Consommateurs!$D$21:$XFD$21=B1_Calculs!B52)*E3_Consommateurs!$D$25:$XFD$25*E3_Consommateurs!$D$20:$XFD$20))*(1+$G$24)^(B52-B$36),(SUMPRODUCT((E3_Consommateurs!$D$21:$XFD$21<B1_Calculs!B52)*E3_Consommateurs!$D$26:$XFD$26)+SUMPRODUCT((E3_Consommateurs!$D$21:$XFD$21=B1_Calculs!B52)*E3_Consommateurs!$D$26:$XFD$26*E3_Consommateurs!$D$20:$XFD$20))*((1+$G$24)*(1-'E1_Données de projet'!$D$19/100))^(B52-B$36))","v":0},{"$f":"SUMPRODUCT((E3_Consommateurs!$D$21:$XFD$21=B1_Calculs!B52)*E3_Consommateurs!$D$23:$XFD$23)","v":0},{"$f":"SUM(jährlicher_Förderbeitrag*(B52-Erstauszahlung_jährlFörderung<=Eing_Förderung_wiederholend_Laufzeit-1)*(B52>='E1_Données de projet'!$D$83),'E1_Données de projet'!$D$76*(B52='E1_Données de projet'!$D$77),'E1_Données de projet'!$D$78*(B52='E1_Données de projet'!$D$79))","v":0},null,null,0,0,0,{"$f":"'E1_Données de projet'!$D$48*(AD52-1='E1_Données de projet'!$I$48)*(1+Eing_allg_Teuerung/100)^'E1_Données de projet'!$I$48\n+'E1_Données de projet'!$D$49*(AD52-1='E1_Données de projet'!$I$49)*(1+Eing_allg_Teuerung/100)^'E1_Données de projet'!$I$49\n+'E1_Données de projet'!$D$50*(AD52-1='E1_Données de projet'!$I$50)*(1+Eing_allg_Teuerung/100)^'E1_Données de projet'!$I$50\n+'E1_Données de projet'!$D$51*(AD52-1='E1_Données de projet'!$I$51)*(1+Eing_allg_Teuerung/100)^'E1_Données de projet'!$I$51\n+'E1_Données de projet'!$D$52*(AD52-1='E1_Données de projet'!$I$52)*(1+Eing_allg_Teuerung/100)^'E1_Données de projet'!$I$52\n+'E1_Données de projet'!$D$53*(AD52-1='E1_Données de projet'!$I$53)*(1+Eing_allg_Teuerung/100)^'E1_Données de projet'!$I$53\n+Gesamtinvestition*SUMPRODUCT(('E1_Données de projet'!$D$58:$D$60=B52)*'E1_Données de projet'!$F$58:$F$60)/100","v":0},0,0,0,0,null,{"$f":"MAX(B1_Calculs!B52+1-'E1_Données de projet'!$D$22,0)","v":17},0,{"$f":"'E1_Données de projet'!$D$48*(AD52-1='E1_Données de projet'!$I$48)*(1+Eing_allg_Teuerung/100)^'E1_Données de projet'!$I$48\n+'E1_Données de projet'!$D$49*(AD52-1='E1_Données de projet'!$I$49)*(1+Eing_allg_Teuerung/100)^'E1_Données de projet'!$I$49\n+'E1_Données de projet'!$D$50*(AD52-1='E1_Données de projet'!$I$50)*(1+Eing_allg_Teuerung/100)^'E1_Données de projet'!$I$50\n+'E1_Données de projet'!$D$51*(AD52-1='E1_Données de projet'!$I$51)*(1+Eing_allg_Teuerung/100)^'E1_Données de projet'!$I$51\n+'E1_Données de projet'!$D$52*(AD52-1='E1_Données de projet'!$I$52)*(1+Eing_allg_Teuerung/100)^'E1_Données de projet'!$I$52\n+'E1_Données de projet'!$D$53*(AD52-1='E1_Données de projet'!$I$53)*(1+Eing_allg_Teuerung/100)^'E1_Données de projet'!$I$53\n+(Gesamtinvestition-SUM('E1_Données de projet'!$D$54:$D$55))*SUMPRODUCT(('E1_Données de projet'!$D$58:$D$60=B52)*'E1_Données de projet'!$F$58:$F$60)/100+AF51-N52","v":0},{"$f":"IF(ISNUMBER(IRR((AJ$36:AJ51,AI52))),IRR((AJ$36:AJ51,AI52)),\"-\")","v":"-"},16,0,0]
[null,17,{"$f":"(SUMPRODUCT((E3_Consommateurs!$D$21:$XFD$21<B1_Calculs!B53)*E3_Consommateurs!$D$18:$XFD$18)+SUMPRODUCT((E3_Consommateurs!$D$21:$XFD$21=B1_Calculs!B53)*E3_Consommateurs!$D$18:$XFD$18*E3_Consommateurs!$D$20:$XFD$20))/(100-Eing_Netzverluste)*100*(1-'E1_Données de projet'!$D$19/100)^(B1_Calculs!B53-'E1_Données de projet'!$D$22)","v":0},{"v":0,"d":"0.00"},0,0,0,{"$f":"($F$19*(1+$G$19)^(B53-B$36)+$F$20*(1+$G$20)^(B53-B$36))*(B53>='E1_Données de projet'!$D$22)*VLOOKUP(B53,'E1_Données de projet'!$D$58:$I$60,6)/100","v":0},{"$f":"$F$21*(1+$G$21)^(B53-B$36)*(B53>='E1_Données de projet'!$D$22)*VLOOKUP(B53,'E1_Données de projet'!$D$58:$I$60,6)/100","v":0},0,null,null,0,{"$f":"+('E1_Données de projet'!$D$48*(1+Eing_allg_Teuerung/100)^('E1_Données de projet'!$I$48*ROUNDDOWN((AD53-1)/'E1_Données de projet'!$I$48,0))/'E1_Données de projet'!$I$48\n+'E1_Données de projet'!$D$49*(1+Eing_allg_Teuerung/100)^('E1_Données de projet'!$I$49*ROUNDDOWN((AD53-1)/'E1_Données de projet'!$I$49,0))/'E1_Données de projet'!$I$49\n+'E1_Données de projet'!$D$50*(1+Eing_allg_Teuerung/100)^('E1_Données de projet'!$I$50*ROUNDDOWN((AD53-1)/'E1_Données de projet'!$I$50,0))/'E1_Données de projet'!$I$50\n+'E1_Données de projet'!$D$51*(1+Eing_allg_Teuerung/100)^('E1_Données de projet'!$I$51*ROUNDDOWN((AD53-1)/'E1_Données de projet'!$I$51,0))/'E1_Données de projet'!$I$51\n+'E1_Données de projet'!$D$52*(1+Eing_allg_Teuerung/100)^('E1_Données de projet'!$I$52*ROUNDDOWN((AD53-1)/'E1_Données de projet'!$I$52,0))/'E1_Données de projet'!$I$52\n+'E1_Données de projet'!$D$53*(1+Eing_allg_Teuerung/100)^('E1_Données de projet'!$I$53*ROUNDDOWN((AD53-1)/'E1_Données de projet'!$I$53,0))/'E1_Données de projet'!$I$53\n)*((AD53)>0)*VLOOKUP(B53,'E1_Données de projet'!$D$58:$I$60,6\n)/100","v":0},0,{"$f":"SUM((SUMPRODUCT((E3_Consommateurs!$D$21:$XFD$21<B1_Calculs!B53)*E3_Consommateurs!$D$25:$XFD$25)+SUMPRODUCT((E3_Consommateurs!$D$21:$XFD$21=B1_Calculs!B53)*E3_Consommateurs!$D$25:$XFD$25*E3_Consommateurs!$D$20:$XFD$20))*(1+$G$24)^(B53-B$36),(SUMPRODUCT((E3_Consommateurs!$D$21:$XFD$21<B1_Calculs!B53)*E3_Consommateurs!$D$26:$XFD$26)+SUMPRODUCT((E3_Consommateurs!$D$21:$XFD$21=B1_Calculs!B53)*E3_Consommateurs!$D$26:$XFD$26*E3_Consommateurs!$D$20:$XFD$20))*((1+$G$24)*(1-'E1_Données de projet'!$D$19/100))^(B53-B$36))","v":0},{"$f":"SUMPRODUCT((E3_Consommateurs!$D$21:$XFD$21=B1_Calculs!B53)*E3_Consommateurs!$D$23:$XFD$23)","v":0},{"$f":"SUM(jährlicher_Förderbeitrag*(B53-Erstauszahlung_jährlFörderung<=Eing_Förderung_wiederholend_Laufzeit-1)*(B53>='E1_Données de projet'!$D$83),'E1_Données de projet'!$D$76*(B53='E1_Données de projet'!$D$77),'E1_Données de projet'!$D$78*(B53='E1_Données de projet'!$D$79))","v":0},null,null,0,0,0,{"$f":"'E1_Données de projet'!$D$48*(AD53-1='E1_Données de projet'!$I$48)*(1+Eing_allg_Teuerung/100)^'E1_Données de projet'!$I$48\n+'E1_Données de projet'!$D$49*(AD53-1='E1_Données de projet'!$I$49)*(1+Eing_allg_Teuerung/100)^'E1_Données de projet'!$I$49\n+'E1_Données de projet'!$D$50*(AD53-1='E1_Données de projet'!$I$50)*(1+Eing_allg_Teuerung/100)^'E1_Données de projet'!$I$50\n+'E1_Données de projet'!$D$51*(AD53-1='E1_Données de projet'!$I$51)*(1+Eing_allg_Teuerung/100)^'E1_Données de projet'!$I$51\n+'E1_Données de projet'!$D$52*(AD53-1='E1_Données de projet'!$I$52)*(1+Eing_allg_Teuerung/100)^'E1_Données de projet'!$I$52\n+'E1_Données de projet'!$D$53*(AD53-1='E1_Données de projet'!$I$53)*(1+Eing_allg_Teuerung/100)^'E1_Données de projet'!$I$53\n+Gesamtinvestition*SUMPRODUCT(('E1_Données de projet'!$D$58:$D$60=B53)*'E1_Données de projet'!$F$58:$F$60)/100","v":0},0,0,0,0,null,{"$f":"MAX(B1_Calculs!B53+1-'E1_Données de projet'!$D$22,0)","v":18},0,{"$f":"'E1_Données de projet'!$D$48*(AD53-1='E1_Données de projet'!$I$48)*(1+Eing_allg_Teuerung/100)^'E1_Données de projet'!$I$48\n+'E1_Données de projet'!$D$49*(AD53-1='E1_Données de projet'!$I$49)*(1+Eing_allg_Teuerung/100)^'E1_Données de projet'!$I$49\n+'E1_Données de projet'!$D$50*(AD53-1='E1_Données de projet'!$I$50)*(1+Eing_allg_Teuerung/100)^'E1_Données de projet'!$I$50\n+'E1_Données de projet'!$D$51*(AD53-1='E1_Données de projet'!$I$51)*(1+Eing_allg_Teuerung/100)^'E1_Données de projet'!$I$51\n+'E1_Données de projet'!$D$52*(AD53-1='E1_Données de projet'!$I$52)*(1+Eing_allg_Teuerung/100)^'E1_Données de projet'!$I$52\n+'E1_Données de projet'!$D$53*(AD53-1='E1_Données de projet'!$I$53)*(1+Eing_allg_Teuerung/100)^'E1_Données de projet'!$I$53\n+(Gesamtinvestition-SUM('E1_Données de projet'!$D$54:$D$55))*SUMPRODUCT(('E1_Données de projet'!$D$58:$D$60=B53)*'E1_Données de projet'!$F$58:$F$60)/100+AF52-N53","v":0},{"$f":"IF(ISNUMBER(IRR((AJ$36:AJ52,AI53))),IRR((AJ$36:AJ52,AI53)),\"-\")","v":"-"},17,0,0]
[null,18,{"$f":"(SUMPRODUCT((E3_Consommateurs!$D$21:$XFD$21<B1_Calculs!B54)*E3_Consommateurs!$D$18:$XFD$18)+SUMPRODUCT((E3_Consommateurs!$D$21:$XFD$21=B1_Calculs!B54)*E3_Consommateurs!$D$18:$XFD$18*E3_Consommateurs!$D$20:$XFD$20))/(100-Eing_Netzverluste)*100*(1-'E1_Données de projet'!$D$19/100)^(B1_Calculs!B54-'E1_Données de projet'!$D$22)","v":0},{"v":0,"d":"0.00"},0,0,0,{"$f":"($F$19*(1+$G$19)^(B54-B$36)+$F$20*(1+$G$20)^(B54-B$36))*(B54>='E1_Données de projet'!$D$22)*VLOOKUP(B54,'E1_Données de projet'!$D$58:$I$60,6)/100","v":0},{"$f":"$F$21*(1+$G$21)^(B54-B$36)*(B54>='E1_Données de projet'!$D$22)*VLOOKUP(B54,'E1_Données de projet'!$D$58:$I$60,6)/100","v":0},0,null,null,0,{"$f":"+('E1_Données de projet'!$D$48*(1+Eing_allg_Teuerung/100)^('E1_Données de projet'!$I$48*ROUNDDOWN((AD54-1)/'E1_Données de projet'!$I$48,0))/'E1_Données de projet'!$I$48\n+'E1_Données de projet'!$D$49*(1+Eing_allg_Teuerung/100)^('E1_Données de projet'!$I$49*ROUNDDOWN((AD54-1)/'E1_Données de projet'!$I$49,0))/'E1_Données de projet'!$I$49\n+'E1_Données de projet'!$D$50*(1+Eing_allg_Teuerung/100)^('E1_Données de projet'!$I$50*ROUNDDOWN((AD54-1)/'E1_Données de projet'!$I$50,0))/'E1_Données de projet'!$I$50\n+'E1_Données de projet'!$D$51*(1+Eing_allg_Teuerung/100)^('E1_Données de projet'!$I$51*ROUNDDOWN((AD54-1)/'E1_Données de projet'!$I$51,0))/'E1_Données de projet'!$I$51\n+'E1_Données de projet'!$D$52*(1+Eing_allg_Teuerung/100)^('E1_Données de projet'!$I$52*ROUNDDOWN((AD54-1)/'E1_Données de projet'!$I$52,0))/'E1_Données de projet'!$I$52\n+'E1_Données de projet'!$D$53*(1+Eing_allg_Teuerung/100)^('E1_Données de projet'!$I$53*ROUNDDOWN((AD54-1)/'E1_Données de projet'!$I$53,0))/'E1_Données de projet'!$I$53\n)*((AD54)>0)*VLOOKUP(B54,'E1_Données de projet'!$D$58:$I$60,6\n)/100","v":0},0,{"$f":"SUM((SUMPRODUCT((E3_Consommateurs!$D$21:$XFD$21<B1_Calculs!B54)*E3_Consommateurs!$D$25:$XFD$25)+SUMPRODUCT((E3_Consommateurs!$D$21:$XFD$21=B1_Calculs!B54)*E3_Consommateurs!$D$25:$XFD$25*E3_Consommateurs!$D$20:$XFD$20))*(1+$G$24)^(B54-B$36),(SUMPRODUCT((E3_Consommateurs!$D$21:$XFD$21<B1_Calculs!B54)*E3_Consommateurs!$D$26:$XFD$26)+SUMPRODUCT((E3_Consommateurs!$D$21:$XFD$21=B1_Calculs!B54)*E3_Consommateurs!$D$26:$XFD$26*E3_Consommateurs!$D$20:$XFD$20))*((1+$G$24)*(1-'E1_Données de projet'!$D$19/100))^(B54-B$36))","v":0},{"$f":"SUMPRODUCT((E3_Consommateurs!$D$21:$XFD$21=B1_Calculs!B54)*E3_Consommateurs!$D$23:$XFD$23)","v":0},{"$f":"SUM(jährlicher_Förderbeitrag*(B54-Erstauszahlung_jährlFörderung<=Eing_Förderung_wiederholend_Laufzeit-1)*(B54>='E1_Données de projet'!$D$83),'E1_Données de projet'!$D$76*(B54='E1_Données de projet'!$D$77),'E1_Données de projet'!$D$78*(B54='E1_Données de projet'!$D$79))","v":0},null,null,0,0,0,{"$f":"'E1_Données de projet'!$D$48*(AD54-1='E1_Données de projet'!$I$48)*(1+Eing_allg_Teuerung/100)^'E1_Données de projet'!$I$48\n+'E1_Données de projet'!$D$49*(AD54-1='E1_Données de projet'!$I$49)*(1+Eing_allg_Teuerung/100)^'E1_Données de projet'!$I$49\n+'E1_Données de projet'!$D$50*(AD54-1='E1_Données de projet'!$I$50)*(1+Eing_allg_Teuerung/100)^'E1_Données de projet'!$I$50\n+'E1_Données de projet'!$D$51*(AD54-1='E1_Données de projet'!$I$51)*(1+Eing_allg_Teuerung/100)^'E1_Données de projet'!$I$51\n+'E1_Données de projet'!$D$52*(AD54-1='E1_Données de projet'!$I$52)*(1+Eing_allg_Teuerung/100)^'E1_Données de projet'!$I$52\n+'E1_Données de projet'!$D$53*(AD54-1='E1_Données de projet'!$I$53)*(1+Eing_allg_Teuerung/100)^'E1_Données de projet'!$I$53\n+Gesamtinvestition*SUMPRODUCT(('E1_Données de projet'!$D$58:$D$60=B54)*'E1_Données de projet'!$F$58:$F$60)/100","v":0},0,0,0,0,null,{"$f":"MAX(B1_Calculs!B54+1-'E1_Données de projet'!$D$22,0)","v":19},0,{"$f":"'E1_Données de projet'!$D$48*(AD54-1='E1_Données de projet'!$I$48)*(1+Eing_allg_Teuerung/100)^'E1_Données de projet'!$I$48\n+'E1_Données de projet'!$D$49*(AD54-1='E1_Données de projet'!$I$49)*(1+Eing_allg_Teuerung/100)^'E1_Données de projet'!$I$49\n+'E1_Données de projet'!$D$50*(AD54-1='E1_Données de projet'!$I$50)*(1+Eing_allg_Teuerung/100)^'E1_Données de projet'!$I$50\n+'E1_Données de projet'!$D$51*(AD54-1='E1_Données de projet'!$I$51)*(1+Eing_allg_Teuerung/100)^'E1_Données de projet'!$I$51\n+'E1_Données de projet'!$D$52*(AD54-1='E1_Données de projet'!$I$52)*(1+Eing_allg_Teuerung/100)^'E1_Données de projet'!$I$52\n+'E1_Données de projet'!$D$53*(AD54-1='E1_Données de projet'!$I$53)*(1+Eing_allg_Teuerung/100)^'E1_Données de projet'!$I$53\n+(Gesamtinvestition-SUM('E1_Données de projet'!$D$54:$D$55))*SUMPRODUCT(('E1_Données de projet'!$D$58:$D$60=B54)*'E1_Données de projet'!$F$58:$F$60)/100+AF53-N54","v":0},{"$f":"IF(ISNUMBER(IRR((AJ$36:AJ53,AI54))),IRR((AJ$36:AJ53,AI54)),\"-\")","v":"-"},18,0,0]
[null,19,{"$f":"(SUMPRODUCT((E3_Consommateurs!$D$21:$XFD$21<B1_Calculs!B55)*E3_Consommateurs!$D$18:$XFD$18)+SUMPRODUCT((E3_Consommateurs!$D$21:$XFD$21=B1_Calculs!B55)*E3_Consommateurs!$D$18:$XFD$18*E3_Consommateurs!$D$20:$XFD$20))/(100-Eing_Netzverluste)*100*(1-'E1_Données de projet'!$D$19/100)^(B1_Calculs!B55-'E1_Données de projet'!$D$22)","v":0},{"v":0,"d":"0.00"},0,0,0,{"$f":"($F$19*(1+$G$19)^(B55-B$36)+$F$20*(1+$G$20)^(B55-B$36))*(B55>='E1_Données de projet'!$D$22)*VLOOKUP(B55,'E1_Données de projet'!$D$58:$I$60,6)/100","v":0},{"$f":"$F$21*(1+$G$21)^(B55-B$36)*(B55>='E1_Données de projet'!$D$22)*VLOOKUP(B55,'E1_Données de projet'!$D$58:$I$60,6)/100","v":0},0,null,null,0,{"$f":"+('E1_Données de projet'!$D$48*(1+Eing_allg_Teuerung/100)^('E1_Données de projet'!$I$48*ROUNDDOWN((AD55-1)/'E1_Données de projet'!$I$48,0))/'E1_Données de projet'!$I$48\n+'E1_Données de projet'!$D$49*(1+Eing_allg_Teuerung/100)^('E1_Données de projet'!$I$49*ROUNDDOWN((AD55-1)/'E1_Données de projet'!$I$49,0))/'E1_Données de projet'!$I$49\n+'E1_Données de projet'!$D$50*(1+Eing_allg_Teuerung/100)^('E1_Données de projet'!$I$50*ROUNDDOWN((AD55-1)/'E1_Données de projet'!$I$50,0))/'E1_Données de projet'!$I$50\n+'E1_Données de projet'!$D$51*(1+Eing_allg_Teuerung/100)^('E1_Données de projet'!$I$51*ROUNDDOWN((AD55-1)/'E1_Données de projet'!$I$51,0))/'E1_Données de projet'!$I$51\n+'E1_Données de projet'!$D$52*(1+Eing_allg_Teuerung/100)^('E1_Données de projet'!$I$52*ROUNDDOWN((AD55-1)/'E1_Données de projet'!$I$52,0))/'E1_Données de projet'!$I$52\n+'E1_Données de projet'!$D$53*(1+Eing_allg_Teuerung/100)^('E1_Données de projet'!$I$53*ROUNDDOWN((AD55-1)/'E1_Données de projet'!$I$53,0))/'E1_Données de projet'!$I$53\n)*((AD55)>0)*VLOOKUP(B55,'E1_Données de projet'!$D$58:$I$60,6\n)/100","v":0},0,{"$f":"SUM((SUMPRODUCT((E3_Consommateurs!$D$21:$XFD$21<B1_Calculs!B55)*E3_Consommateurs!$D$25:$XFD$25)+SUMPRODUCT((E3_Consommateurs!$D$21:$XFD$21=B1_Calculs!B55)*E3_Consommateurs!$D$25:$XFD$25*E3_Consommateurs!$D$20:$XFD$20))*(1+$G$24)^(B55-B$36),(SUMPRODUCT((E3_Consommateurs!$D$21:$XFD$21<B1_Calculs!B55)*E3_Consommateurs!$D$26:$XFD$26)+SUMPRODUCT((E3_Consommateurs!$D$21:$XFD$21=B1_Calculs!B55)*E3_Consommateurs!$D$26:$XFD$26*E3_Consommateurs!$D$20:$XFD$20))*((1+$G$24)*(1-'E1_Données de projet'!$D$19/100))^(B55-B$36))","v":0},{"$f":"SUMPRODUCT((E3_Consommateurs!$D$21:$XFD$21=B1_Calculs!B55)*E3_Consommateurs!$D$23:$XFD$23)","v":0},{"$f":"SUM(jährlicher_Förderbeitrag*(B55-Erstauszahlung_jährlFörderung<=Eing_Förderung_wiederholend_Laufzeit-1)*(B55>='E1_Données de projet'!$D$83),'E1_Données de projet'!$D$76*(B55='E1_Données de projet'!$D$77),'E1_Données de projet'!$D$78*(B55='E1_Données de projet'!$D$79))","v":0},null,null,0,0,0,{"$f":"'E1_Données de projet'!$D$48*(AD55-1='E1_Données de projet'!$I$48)*(1+Eing_allg_Teuerung/100)^'E1_Données de projet'!$I$48\n+'E1_Données de projet'!$D$49*(AD55-1='E1_Données de projet'!$I$49)*(1+Eing_allg_Teuerung/100)^'E1_Données de projet'!$I$49\n+'E1_Données de projet'!$D$50*(AD55-1='E1_Données de projet'!$I$50)*(1+Eing_allg_Teuerung/100)^'E1_Données de projet'!$I$50\n+'E1_Données de projet'!$D$51*(AD55-1='E1_Données de projet'!$I$51)*(1+Eing_allg_Teuerung/100)^'E1_Données de projet'!$I$51\n+'E1_Données de projet'!$D$52*(AD55-1='E1_Données de projet'!$I$52)*(1+Eing_allg_Teuerung/100)^'E1_Données de projet'!$I$52\n+'E1_Données de projet'!$D$53*(AD55-1='E1_Données de projet'!$I$53)*(1+Eing_allg_Teuerung/100)^'E1_Données de projet'!$I$53\n+Gesamtinvestition*SUMPRODUCT(('E1_Données de projet'!$D$58:$D$60=B55)*'E1_Données de projet'!$F$58:$F$60)/100","v":0},0,0,0,0,null,{"$f":"MAX(B1_Calculs!B55+1-'E1_Données de projet'!$D$22,0)","v":20},0,{"$f":"'E1_Données de projet'!$D$48*(AD55-1='E1_Données de projet'!$I$48)*(1+Eing_allg_Teuerung/100)^'E1_Données de projet'!$I$48\n+'E1_Données de projet'!$D$49*(AD55-1='E1_Données de projet'!$I$49)*(1+Eing_allg_Teuerung/100)^'E1_Données de projet'!$I$49\n+'E1_Données de projet'!$D$50*(AD55-1='E1_Données de projet'!$I$50)*(1+Eing_allg_Teuerung/100)^'E1_Données de projet'!$I$50\n+'E1_Données de projet'!$D$51*(AD55-1='E1_Données de projet'!$I$51)*(1+Eing_allg_Teuerung/100)^'E1_Données de projet'!$I$51\n+'E1_Données de projet'!$D$52*(AD55-1='E1_Données de projet'!$I$52)*(1+Eing_allg_Teuerung/100)^'E1_Données de projet'!$I$52\n+'E1_Données de projet'!$D$53*(AD55-1='E1_Données de projet'!$I$53)*(1+Eing_allg_Teuerung/100)^'E1_Données de projet'!$I$53\n+(Gesamtinvestition-SUM('E1_Données de projet'!$D$54:$D$55))*SUMPRODUCT(('E1_Données de projet'!$D$58:$D$60=B55)*'E1_Données de projet'!$F$58:$F$60)/100+AF54-N55","v":0},{"$f":"IF(ISNUMBER(IRR((AJ$36:AJ54,AI55))),IRR((AJ$36:AJ54,AI55)),\"-\")","v":"-"},19,0,0]
[null,20,{"$f":"(SUMPRODUCT((E3_Consommateurs!$D$21:$XFD$21<B1_Calculs!B56)*E3_Consommateurs!$D$18:$XFD$18)+SUMPRODUCT((E3_Consommateurs!$D$21:$XFD$21=B1_Calculs!B56)*E3_Consommateurs!$D$18:$XFD$18*E3_Consommateurs!$D$20:$XFD$20))/(100-Eing_Netzverluste)*100*(1-'E1_Données de projet'!$D$19/100)^(B1_Calculs!B56-'E1_Données de projet'!$D$22)","v":0},{"v":0,"d":"0.00"},0,0,0,{"$f":"($F$19*(1+$G$19)^(B56-B$36)+$F$20*(1+$G$20)^(B56-B$36))*(B56>='E1_Données de projet'!$D$22)*VLOOKUP(B56,'E1_Données de projet'!$D$58:$I$60,6)/100","v":0},{"$f":"$F$21*(1+$G$21)^(B56-B$36)*(B56>='E1_Données de projet'!$D$22)*VLOOKUP(B56,'E1_Données de projet'!$D$58:$I$60,6)/100","v":0},0,null,null,0,{"$f":"+('E1_Données de projet'!$D$48*(1+Eing_allg_Teuerung/100)^('E1_Données de projet'!$I$48*ROUNDDOWN((AD56-1)/'E1_Données de projet'!$I$48,0))/'E1_Données de projet'!$I$48\n+'E1_Données de projet'!$D$49*(1+Eing_allg_Teuerung/100)^('E1_Données de projet'!$I$49*ROUNDDOWN((AD56-1)/'E1_Données de projet'!$I$49,0))/'E1_Données de projet'!$I$49\n+'E1_Données de projet'!$D$50*(1+Eing_allg_Teuerung/100)^('E1_Données de projet'!$I$50*ROUNDDOWN((AD56-1)/'E1_Données de projet'!$I$50,0))/'E1_Données de projet'!$I$50\n+'E1_Données de projet'!$D$51*(1+Eing_allg_Teuerung/100)^('E1_Données de projet'!$I$51*ROUNDDOWN((AD56-1)/'E1_Données de projet'!$I$51,0))/'E1_Données de projet'!$I$51\n+'E1_Données de projet'!$D$52*(1+Eing_allg_Teuerung/100)^('E1_Données de projet'!$I$52*ROUNDDOWN((AD56-1)/'E1_Données de projet'!$I$52,0))/'E1_Données de projet'!$I$52\n+'E1_Données de projet'!$D$53*(1+Eing_allg_Teuerung/100)^('E1_Données de projet'!$I$53*ROUNDDOWN((AD56-1)/'E1_Données de projet'!$I$53,0))/'E1_Données de projet'!$I$53\n)*((AD56)>0)*VLOOKUP(B56,'E1_Données de projet'!$D$58:$I$60,6\n)/100","v":0},0,{"$f":"SUM((SUMPRODUCT((E3_Consommateurs!$D$21:$XFD$21<B1_Calculs!B56)*E3_Consommateurs!$D$25:$XFD$25)+SUMPRODUCT((E3_Consommateurs!$D$21:$XFD$21=B1_Calculs!B56)*E3_Consommateurs!$D$25:$XFD$25*E3_Consommateurs!$D$20:$XFD$20))*(1+$G$24)^(B56-B$36),(SUMPRODUCT((E3_Consommateurs!$D$21:$XFD$21<B1_Calculs!B56)*E3_Consommateurs!$D$26:$XFD$26)+SUMPRODUCT((E3_Consommateurs!$D$21:$XFD$21=B1_Calculs!B56)*E3_Consommateurs!$D$26:$XFD$26*E3_Consommateurs!$D$20:$XFD$20))*((1+$G$24)*(1-'E1_Données de projet'!$D$19/100))^(B56-B$36))","v":0},{"$f":"SUMPRODUCT((E3_Consommateurs!$D$21:$XFD$21=B1_Calculs!B56)*E3_Consommateurs!$D$23:$XFD$23)","v":0},{"$f":"SUM(jährlicher_Förderbeitrag*(B56-Erstauszahlung_jährlFörderung<=Eing_Förderung_wiederholend_Laufzeit-1)*(B56>='E1_Données de projet'!$D$83),'E1_Données de projet'!$D$76*(B56='E1_Données de projet'!$D$77),'E1_Données de projet'!$D$78*(B56='E1_Données de projet'!$D$79))","v":0},null,null,0,0,0,{"$f":"'E1_Données de projet'!$D$48*(AD56-1='E1_Données de projet'!$I$48)*(1+Eing_allg_Teuerung/100)^'E1_Données de projet'!$I$48\n+'E1_Données de projet'!$D$49*(AD56-1='E1_Données de projet'!$I$49)*(1+Eing_allg_Teuerung/100)^'E1_Données de projet'!$I$49\n+'E1_Données de projet'!$D$50*(AD56-1='E1_Données de projet'!$I$50)*(1+Eing_allg_Teuerung/100)^'E1_Données de projet'!$I$50\n+'E1_Données de projet'!$D$51*(AD56-1='E1_Données de projet'!$I$51)*(1+Eing_allg_Teuerung/100)^'E1_Données de projet'!$I$51\n+'E1_Données de projet'!$D$52*(AD56-1='E1_Données de projet'!$I$52)*(1+Eing_allg_Teuerung/100)^'E1_Données de projet'!$I$52\n+'E1_Données de projet'!$D$53*(AD56-1='E1_Données de projet'!$I$53)*(1+Eing_allg_Teuerung/100)^'E1_Données de projet'!$I$53\n+Gesamtinvestition*SUMPRODUCT(('E1_Données de projet'!$D$58:$D$60=B56)*'E1_Données de projet'!$F$58:$F$60)/100","v":0},0,0,0,0,null,{"$f":"MAX(B1_Calculs!B56+1-'E1_Données de projet'!$D$22,0)","v":21},0,{"$f":"'E1_Données de projet'!$D$48*(AD56-1='E1_Données de projet'!$I$48)*(1+Eing_allg_Teuerung/100)^'E1_Données de projet'!$I$48\n+'E1_Données de projet'!$D$49*(AD56-1='E1_Données de projet'!$I$49)*(1+Eing_allg_Teuerung/100)^'E1_Données de projet'!$I$49\n+'E1_Données de projet'!$D$50*(AD56-1='E1_Données de projet'!$I$50)*(1+Eing_allg_Teuerung/100)^'E1_Données de projet'!$I$50\n+'E1_Données de projet'!$D$51*(AD56-1='E1_Données de projet'!$I$51)*(1+Eing_allg_Teuerung/100)^'E1_Données de projet'!$I$51\n+'E1_Données de projet'!$D$52*(AD56-1='E1_Données de projet'!$I$52)*(1+Eing_allg_Teuerung/100)^'E1_Données de projet'!$I$52\n+'E1_Données de projet'!$D$53*(AD56-1='E1_Données de projet'!$I$53)*(1+Eing_allg_Teuerung/100)^'E1_Données de projet'!$I$53\n+(Gesamtinvestition-SUM('E1_Données de projet'!$D$54:$D$55))*SUMPRODUCT(('E1_Données de projet'!$D$58:$D$60=B56)*'E1_Données de projet'!$F$58:$F$60)/100+AF55-N56","v":0},{"$f":"IF(ISNUMBER(IRR((AJ$36:AJ55,AI56))),IRR((AJ$36:AJ55,AI56)),\"-\")","v":"-"},20,0,0]
[null,21,{"$f":"(SUMPRODUCT((E3_Consommateurs!$D$21:$XFD$21<B1_Calculs!B57)*E3_Consommateurs!$D$18:$XFD$18)+SUMPRODUCT((E3_Consommateurs!$D$21:$XFD$21=B1_Calculs!B57)*E3_Consommateurs!$D$18:$XFD$18*E3_Consommateurs!$D$20:$XFD$20))/(100-Eing_Netzverluste)*100*(1-'E1_Données de projet'!$D$19/100)^(B1_Calculs!B57-'E1_Données de projet'!$D$22)","v":0},{"v":0,"d":"0.00"},0,0,0,{"$f":"($F$19*(1+$G$19)^(B57-B$36)+$F$20*(1+$G$20)^(B57-B$36))*(B57>='E1_Données de projet'!$D$22)*VLOOKUP(B57,'E1_Données de projet'!$D$58:$I$60,6)/100","v":0},{"$f":"$F$21*(1+$G$21)^(B57-B$36)*(B57>='E1_Données de projet'!$D$22)*VLOOKUP(B57,'E1_Données de projet'!$D$58:$I$60,6)/100","v":0},0,null,null,0,{"$f":"+('E1_Données de projet'!$D$48*(1+Eing_allg_Teuerung/100)^('E1_Données de projet'!$I$48*ROUNDDOWN((AD57-1)/'E1_Données de projet'!$I$48,0))/'E1_Données de projet'!$I$48\n+'E1_Données de projet'!$D$49*(1+Eing_allg_Teuerung/100)^('E1_Données de projet'!$I$49*ROUNDDOWN((AD57-1)/'E1_Données de projet'!$I$49,0))/'E1_Données de projet'!$I$49\n+'E1_Données de projet'!$D$50*(1+Eing_allg_Teuerung/100)^('E1_Données de projet'!$I$50*ROUNDDOWN((AD57-1)/'E1_Données de projet'!$I$50,0))/'E1_Données de projet'!$I$50\n+'E1_Données de projet'!$D$51*(1+Eing_allg_Teuerung/100)^('E1_Données de projet'!$I$51*ROUNDDOWN((AD57-1)/'E1_Données de projet'!$I$51,0))/'E1_Données de projet'!$I$51\n+'E1_Données de projet'!$D$52*(1+Eing_allg_Teuerung/100)^('E1_Données de projet'!$I$52*ROUNDDOWN((AD57-1)/'E1_Données de projet'!$I$52,0))/'E1_Données de projet'!$I$52\n+'E1_Données de projet'!$D$53*(1+Eing_allg_Teuerung/100)^('E1_Données de projet'!$I$53*ROUNDDOWN((AD57-1)/'E1_Données de projet'!$I$53,0))/'E1_Données de projet'!$I$53\n)*((AD57)>0)*VLOOKUP(B57,'E1_Données de projet'!$D$58:$I$60,6\n)/100","v":0},0,{"$f":"SUM((SUMPRODUCT((E3_Consommateurs!$D$21:$XFD$21<B1_Calculs!B57)*E3_Consommateurs!$D$25:$XFD$25)+SUMPRODUCT((E3_Consommateurs!$D$21:$XFD$21=B1_Calculs!B57)*E3_Consommateurs!$D$25:$XFD$25*E3_Consommateurs!$D$20:$XFD$20))*(1+$G$24)^(B57-B$36),(SUMPRODUCT((E3_Consommateurs!$D$21:$XFD$21<B1_Calculs!B57)*E3_Consommateurs!$D$26:$XFD$26)+SUMPRODUCT((E3_Consommateurs!$D$21:$XFD$21=B1_Calculs!B57)*E3_Consommateurs!$D$26:$XFD$26*E3_Consommateurs!$D$20:$XFD$20))*((1+$G$24)*(1-'E1_Données de projet'!$D$19/100))^(B57-B$36))","v":0},{"$f":"SUMPRODUCT((E3_Consommateurs!$D$21:$XFD$21=B1_Calculs!B57)*E3_Consommateurs!$D$23:$XFD$23)","v":0},{"$f":"SUM(jährlicher_Förderbeitrag*(B57-Erstauszahlung_jährlFörderung<=Eing_Förderung_wiederholend_Laufzeit-1)*(B57>='E1_Données de projet'!$D$83),'E1_Données de projet'!$D$76*(B57='E1_Données de projet'!$D$77),'E1_Données de projet'!$D$78*(B57='E1_Données de projet'!$D$79))","v":0},null,null,0,0,0,{"$f":"'E1_Données de projet'!$D$48*(AD57-1='E1_Données de projet'!$I$48)*(1+Eing_allg_Teuerung/100)^'E1_Données de projet'!$I$48\n+'E1_Données de projet'!$D$49*(AD57-1='E1_Données de projet'!$I$49)*(1+Eing_allg_Teuerung/100)^'E1_Données de projet'!$I$49\n+'E1_Données de projet'!$D$50*(AD57-1='E1_Données de projet'!$I$50)*(1+Eing_allg_Teuerung/100)^'E1_Données de projet'!$I$50\n+'E1_Données de projet'!$D$51*(AD57-1='E1_Données de projet'!$I$51)*(1+Eing_allg_Teuerung/100)^'E1_Données de projet'!$I$51\n+'E1_Données de projet'!$D$52*(AD57-1='E1_Données de projet'!$I$52)*(1+Eing_allg_Teuerung/100)^'E1_Données de projet'!$I$52\n+'E1_Données de projet'!$D$53*(AD57-1='E1_Données de projet'!$I$53)*(1+Eing_allg_Teuerung/100)^'E1_Données de projet'!$I$53\n+Gesamtinvestition*SUMPRODUCT(('E1_Données de projet'!$D$58:$D$60=B57)*'E1_Données de projet'!$F$58:$F$60)/100","v":0},0,0,0,0,null,{"$f":"MAX(B1_Calculs!B57+1-'E1_Données de projet'!$D$22,0)","v":22},0,{"$f":"'E1_Données de projet'!$D$48*(AD57-1='E1_Données de projet'!$I$48)*(1+Eing_allg_Teuerung/100)^'E1_Données de projet'!$I$48\n+'E1_Données de projet'!$D$49*(AD57-1='E1_Données de projet'!$I$49)*(1+Eing_allg_Teuerung/100)^'E1_Données de projet'!$I$49\n+'E1_Données de projet'!$D$50*(AD57-1='E1_Données de projet'!$I$50)*(1+Eing_allg_Teuerung/100)^'E1_Données de projet'!$I$50\n+'E1_Données de projet'!$D$51*(AD57-1='E1_Données de projet'!$I$51)*(1+Eing_allg_Teuerung/100)^'E1_Données de projet'!$I$51\n+'E1_Données de projet'!$D$52*(AD57-1='E1_Données de projet'!$I$52)*(1+Eing_allg_Teuerung/100)^'E1_Données de projet'!$I$52\n+'E1_Données de projet'!$D$53*(AD57-1='E1_Données de projet'!$I$53)*(1+Eing_allg_Teuerung/100)^'E1_Données de projet'!$I$53\n+(Gesamtinvestition-SUM('E1_Données de projet'!$D$54:$D$55))*SUMPRODUCT(('E1_Données de projet'!$D$58:$D$60=B57)*'E1_Données de projet'!$F$58:$F$60)/100+AF56-N57","v":0},{"$f":"IF(ISNUMBER(IRR((AJ$36:AJ56,AI57))),IRR((AJ$36:AJ56,AI57)),\"-\")","v":"-"},21,0,0]
[null,22,{"$f":"(SUMPRODUCT((E3_Consommateurs!$D$21:$XFD$21<B1_Calculs!B58)*E3_Consommateurs!$D$18:$XFD$18)+SUMPRODUCT((E3_Consommateurs!$D$21:$XFD$21=B1_Calculs!B58)*E3_Consommateurs!$D$18:$XFD$18*E3_Consommateurs!$D$20:$XFD$20))/(100-Eing_Netzverluste)*100*(1-'E1_Données de projet'!$D$19/100)^(B1_Calculs!B58-'E1_Données de projet'!$D$22)","v":0},{"v":0,"d":"0.00"},0,0,0,{"$f":"($F$19*(1+$G$19)^(B58-B$36)+$F$20*(1+$G$20)^(B58-B$36))*(B58>='E1_Données de projet'!$D$22)*VLOOKUP(B58,'E1_Données de projet'!$D$58:$I$60,6)/100","v":0},{"$f":"$F$21*(1+$G$21)^(B58-B$36)*(B58>='E1_Données de projet'!$D$22)*VLOOKUP(B58,'E1_Données de projet'!$D$58:$I$60,6)/100","v":0},0,null,null,0,{"$f":"+('E1_Données de projet'!$D$48*(1+Eing_allg_Teuerung/100)^('E1_Données de projet'!$I$48*ROUNDDOWN((AD58-1)/'E1_Données de projet'!$I$48,0))/'E1_Données de projet'!$I$48\n+'E1_Données de projet'!$D$49*(1+Eing_allg_Teuerung/100)^('E1_Données de projet'!$I$49*ROUNDDOWN((AD58-1)/'E1_Données de projet'!$I$49,0))/'E1_Données de projet'!$I$49\n+'E1_Données de projet'!$D$50*(1+Eing_allg_Teuerung/100)^('E1_Données de projet'!$I$50*ROUNDDOWN((AD58-1)/'E1_Données de projet'!$I$50,0))/'E1_Données de projet'!$I$50\n+'E1_Données de projet'!$D$51*(1+Eing_allg_Teuerung/100)^('E1_Données de projet'!$I$51*ROUNDDOWN((AD58-1)/'E1_Données de projet'!$I$51,0))/'E1_Données de projet'!$I$51\n+'E1_Données de projet'!$D$52*(1+Eing_allg_Teuerung/100)^('E1_Données de projet'!$I$52*ROUNDDOWN((AD58-1)/'E1_Données de projet'!$I$52,0))/'E1_Données de projet'!$I$52\n+'E1_Données de projet'!$D$53*(1+Eing_allg_Teuerung/100)^('E1_Données de projet'!$I$53*ROUNDDOWN((AD58-1)/'E1_Données de projet'!$I$53,0))/'E1_Données de projet'!$I$53\n)*((AD58)>0)*VLOOKUP(B58,'E1_Données de projet'!$D$58:$I$60,6\n)/100","v":0},0,{"$f":"SUM((SUMPRODUCT((E3_Consommateurs!$D$21:$XFD$21<B1_Calculs!B58)*E3_Consommateurs!$D$25:$XFD$25)+SUMPRODUCT((E3_Consommateurs!$D$21:$XFD$21=B1_Calculs!B58)*E3_Consommateurs!$D$25:$XFD$25*E3_Consommateurs!$D$20:$XFD$20))*(1+$G$24)^(B58-B$36),(SUMPRODUCT((E3_Consommateurs!$D$21:$XFD$21<B1_Calculs!B58)*E3_Consommateurs!$D$26:$XFD$26)+SUMPRODUCT((E3_Consommateurs!$D$21:$XFD$21=B1_Calculs!B58)*E3_Consommateurs!$D$26:$XFD$26*E3_Consommateurs!$D$20:$XFD$20))*((1+$G$24)*(1-'E1_Données de projet'!$D$19/100))^(B58-B$36))","v":0},{"$f":"SUMPRODUCT((E3_Consommateurs!$D$21:$XFD$21=B1_Calculs!B58)*E3_Consommateurs!$D$23:$XFD$23)","v":0},{"$f":"SUM(jährlicher_Förderbeitrag*(B58-Erstauszahlung_jährlFörderung<=Eing_Förderung_wiederholend_Laufzeit-1)*(B58>='E1_Données de projet'!$D$83),'E1_Données de projet'!$D$76*(B58='E1_Données de projet'!$D$77),'E1_Données de projet'!$D$78*(B58='E1_Données de projet'!$D$79))","v":0},null,null,0,0,0,{"$f":"'E1_Données de projet'!$D$48*(AD58-1='E1_Données de projet'!$I$48)*(1+Eing_allg_Teuerung/100)^'E1_Données de projet'!$I$48\n+'E1_Données de projet'!$D$49*(AD58-1='E1_Données de projet'!$I$49)*(1+Eing_allg_Teuerung/100)^'E1_Données de projet'!$I$49\n+'E1_Données de projet'!$D$50*(AD58-1='E1_Données de projet'!$I$50)*(1+Eing_allg_Teuerung/100)^'E1_Données de projet'!$I$50\n+'E1_Données de projet'!$D$51*(AD58-1='E1_Données de projet'!$I$51)*(1+Eing_allg_Teuerung/100)^'E1_Données de projet'!$I$51\n+'E1_Données de projet'!$D$52*(AD58-1='E1_Données de projet'!$I$52)*(1+Eing_allg_Teuerung/100)^'E1_Données de projet'!$I$52\n+'E1_Données de projet'!$D$53*(AD58-1='E1_Données de projet'!$I$53)*(1+Eing_allg_Teuerung/100)^'E1_Données de projet'!$I$53\n+Gesamtinvestition*SUMPRODUCT(('E1_Données de projet'!$D$58:$D$60=B58)*'E1_Données de projet'!$F$58:$F$60)/100","v":0},0,0,0,0,null,{"$f":"MAX(B1_Calculs!B58+1-'E1_Données de projet'!$D$22,0)","v":23},0,{"$f":"'E1_Données de projet'!$D$48*(AD58-1='E1_Données de projet'!$I$48)*(1+Eing_allg_Teuerung/100)^'E1_Données de projet'!$I$48\n+'E1_Données de projet'!$D$49*(AD58-1='E1_Données de projet'!$I$49)*(1+Eing_allg_Teuerung/100)^'E1_Données de projet'!$I$49\n+'E1_Données de projet'!$D$50*(AD58-1='E1_Données de projet'!$I$50)*(1+Eing_allg_Teuerung/100)^'E1_Données de projet'!$I$50\n+'E1_Données de projet'!$D$51*(AD58-1='E1_Données de projet'!$I$51)*(1+Eing_allg_Teuerung/100)^'E1_Données de projet'!$I$51\n+'E1_Données de projet'!$D$52*(AD58-1='E1_Données de projet'!$I$52)*(1+Eing_allg_Teuerung/100)^'E1_Données de projet'!$I$52\n+'E1_Données de projet'!$D$53*(AD58-1='E1_Données de projet'!$I$53)*(1+Eing_allg_Teuerung/100)^'E1_Données de projet'!$I$53\n+(Gesamtinvestition-SUM('E1_Données de projet'!$D$54:$D$55))*SUMPRODUCT(('E1_Données de projet'!$D$58:$D$60=B58)*'E1_Données de projet'!$F$58:$F$60)/100+AF57-N58","v":0},{"$f":"IF(ISNUMBER(IRR((AJ$36:AJ57,AI58))),IRR((AJ$36:AJ57,AI58)),\"-\")","v":"-"},22,0,0]
[null,23,{"$f":"(SUMPRODUCT((E3_Consommateurs!$D$21:$XFD$21<B1_Calculs!B59)*E3_Consommateurs!$D$18:$XFD$18)+SUMPRODUCT((E3_Consommateurs!$D$21:$XFD$21=B1_Calculs!B59)*E3_Consommateurs!$D$18:$XFD$18*E3_Consommateurs!$D$20:$XFD$20))/(100-Eing_Netzverluste)*100*(1-'E1_Données de projet'!$D$19/100)^(B1_Calculs!B59-'E1_Données de projet'!$D$22)","v":0},{"v":0,"d":"0.00"},0,0,0,{"$f":"($F$19*(1+$G$19)^(B59-B$36)+$F$20*(1+$G$20)^(B59-B$36))*(B59>='E1_Données de projet'!$D$22)*VLOOKUP(B59,'E1_Données de projet'!$D$58:$I$60,6)/100","v":0},{"$f":"$F$21*(1+$G$21)^(B59-B$36)*(B59>='E1_Données de projet'!$D$22)*VLOOKUP(B59,'E1_Données de projet'!$D$58:$I$60,6)/100","v":0},0,null,null,0,{"$f":"+('E1_Données de projet'!$D$48*(1+Eing_allg_Teuerung/100)^('E1_Données de projet'!$I$48*ROUNDDOWN((AD59-1)/'E1_Données de projet'!$I$48,0))/'E1_Données de projet'!$I$48\n+'E1_Données de projet'!$D$49*(1+Eing_allg_Teuerung/100)^('E1_Données de projet'!$I$49*ROUNDDOWN((AD59-1)/'E1_Données de projet'!$I$49,0))/'E1_Données de projet'!$I$49\n+'E1_Données de projet'!$D$50*(1+Eing_allg_Teuerung/100)^('E1_Données de projet'!$I$50*ROUNDDOWN((AD59-1)/'E1_Données de projet'!$I$50,0))/'E1_Données de projet'!$I$50\n+'E1_Données de projet'!$D$51*(1+Eing_allg_Teuerung/100)^('E1_Données de projet'!$I$51*ROUNDDOWN((AD59-1)/'E1_Données de projet'!$I$51,0))/'E1_Données de projet'!$I$51\n+'E1_Données de projet'!$D$52*(1+Eing_allg_Teuerung/100)^('E1_Données de projet'!$I$52*ROUNDDOWN((AD59-1)/'E1_Données de projet'!$I$52,0))/'E1_Données de projet'!$I$52\n+'E1_Données de projet'!$D$53*(1+Eing_allg_Teuerung/100)^('E1_Données de projet'!$I$53*ROUNDDOWN((AD59-1)/'E1_Données de projet'!$I$53,0))/'E1_Données de projet'!$I$53\n)*((AD59)>0)*VLOOKUP(B59,'E1_Données de projet'!$D$58:$I$60,6\n)/100","v":0},0,{"$f":"SUM((SUMPRODUCT((E3_Consommateurs!$D$21:$XFD$21<B1_Calculs!B59)*E3_Consommateurs!$D$25:$XFD$25)+SUMPRODUCT((E3_Consommateurs!$D$21:$XFD$21=B1_Calculs!B59)*E3_Consommateurs!$D$25:$XFD$25*E3_Consommateurs!$D$20:$XFD$20))*(1+$G$24)^(B59-B$36),(SUMPRODUCT((E3_Consommateurs!$D$21:$XFD$21<B1_Calculs!B59)*E3_Consommateurs!$D$26:$XFD$26)+SUMPRODUCT((E3_Consommateurs!$D$21:$XFD$21=B1_Calculs!B59)*E3_Consommateurs!$D$26:$XFD$26*E3_Consommateurs!$D$20:$XFD$20))*((1+$G$24)*(1-'E1_Données de projet'!$D$19/100))^(B59-B$36))","v":0},{"$f":"SUMPRODUCT((E3_Consommateurs!$D$21:$XFD$21=B1_Calculs!B59)*E3_Consommateurs!$D$23:$XFD$23)","v":0},{"$f":"SUM(jährlicher_Förderbeitrag*(B59-Erstauszahlung_jährlFörderung<=Eing_Förderung_wiederholend_Laufzeit-1)*(B59>='E1_Données de projet'!$D$83),'E1_Données de projet'!$D$76*(B59='E1_Données de projet'!$D$77),'E1_Données de projet'!$D$78*(B59='E1_Données de projet'!$D$79))","v":0},null,null,0,0,0,{"$f":"'E1_Données de projet'!$D$48*(AD59-1='E1_Données de projet'!$I$48)*(1+Eing_allg_Teuerung/100)^'E1_Données de projet'!$I$48\n+'E1_Données de projet'!$D$49*(AD59-1='E1_Données de projet'!$I$49)*(1+Eing_allg_Teuerung/100)^'E1_Données de projet'!$I$49\n+'E1_Données de projet'!$D$50*(AD59-1='E1_Données de projet'!$I$50)*(1+Eing_allg_Teuerung/100)^'E1_Données de projet'!$I$50\n+'E1_Données de projet'!$D$51*(AD59-1='E1_Données de projet'!$I$51)*(1+Eing_allg_Teuerung/100)^'E1_Données de projet'!$I$51\n+'E1_Données de projet'!$D$52*(AD59-1='E1_Données de projet'!$I$52)*(1+Eing_allg_Teuerung/100)^'E1_Données de projet'!$I$52\n+'E1_Données de projet'!$D$53*(AD59-1='E1_Données de projet'!$I$53)*(1+Eing_allg_Teuerung/100)^'E1_Données de projet'!$I$53\n+Gesamtinvestition*SUMPRODUCT(('E1_Données de projet'!$D$58:$D$60=B59)*'E1_Données de projet'!$F$58:$F$60)/100","v":0},0,0,0,0,null,{"$f":"MAX(B1_Calculs!B59+1-'E1_Données de projet'!$D$22,0)","v":24},0,{"$f":"'E1_Données de projet'!$D$48*(AD59-1='E1_Données de projet'!$I$48)*(1+Eing_allg_Teuerung/100)^'E1_Données de projet'!$I$48\n+'E1_Données de projet'!$D$49*(AD59-1='E1_Données de projet'!$I$49)*(1+Eing_allg_Teuerung/100)^'E1_Données de projet'!$I$49\n+'E1_Données de projet'!$D$50*(AD59-1='E1_Données de projet'!$I$50)*(1+Eing_allg_Teuerung/100)^'E1_Données de projet'!$I$50\n+'E1_Données de projet'!$D$51*(AD59-1='E1_Données de projet'!$I$51)*(1+Eing_allg_Teuerung/100)^'E1_Données de projet'!$I$51\n+'E1_Données de projet'!$D$52*(AD59-1='E1_Données de projet'!$I$52)*(1+Eing_allg_Teuerung/100)^'E1_Données de projet'!$I$52\n+'E1_Données de projet'!$D$53*(AD59-1='E1_Données de projet'!$I$53)*(1+Eing_allg_Teuerung/100)^'E1_Données de projet'!$I$53\n+(Gesamtinvestition-SUM('E1_Données de projet'!$D$54:$D$55))*SUMPRODUCT(('E1_Données de projet'!$D$58:$D$60=B59)*'E1_Données de projet'!$F$58:$F$60)/100+AF58-N59","v":0},{"$f":"IF(ISNUMBER(IRR((AJ$36:AJ58,AI59))),IRR((AJ$36:AJ58,AI59)),\"-\")","v":"-"},23,0,0]
[null,24,{"$f":"(SUMPRODUCT((E3_Consommateurs!$D$21:$XFD$21<B1_Calculs!B60)*E3_Consommateurs!$D$18:$XFD$18)+SUMPRODUCT((E3_Consommateurs!$D$21:$XFD$21=B1_Calculs!B60)*E3_Consommateurs!$D$18:$XFD$18*E3_Consommateurs!$D$20:$XFD$20))/(100-Eing_Netzverluste)*100*(1-'E1_Données de projet'!$D$19/100)^(B1_Calculs!B60-'E1_Données de projet'!$D$22)","v":0},{"v":0,"d":"0.00"},0,0,0,{"$f":"($F$19*(1+$G$19)^(B60-B$36)+$F$20*(1+$G$20)^(B60-B$36))*(B60>='E1_Données de projet'!$D$22)*VLOOKUP(B60,'E1_Données de projet'!$D$58:$I$60,6)/100","v":0},{"$f":"$F$21*(1+$G$21)^(B60-B$36)*(B60>='E1_Données de projet'!$D$22)*VLOOKUP(B60,'E1_Données de projet'!$D$58:$I$60,6)/100","v":0},0,null,null,0,{"$f":"+('E1_Données de projet'!$D$48*(1+Eing_allg_Teuerung/100)^('E1_Données de projet'!$I$48*ROUNDDOWN((AD60-1)/'E1_Données de projet'!$I$48,0))/'E1_Données de projet'!$I$48\n+'E1_Données de projet'!$D$49*(1+Eing_allg_Teuerung/100)^('E1_Données de projet'!$I$49*ROUNDDOWN((AD60-1)/'E1_Données de projet'!$I$49,0))/'E1_Données de projet'!$I$49\n+'E1_Données de projet'!$D$50*(1+Eing_allg_Teuerung/100)^('E1_Données de projet'!$I$50*ROUNDDOWN((AD60-1)/'E1_Données de projet'!$I$50,0))/'E1_Données de projet'!$I$50\n+'E1_Données de projet'!$D$51*(1+Eing_allg_Teuerung/100)^('E1_Données de projet'!$I$51*ROUNDDOWN((AD60-1)/'E1_Données de projet'!$I$51,0))/'E1_Données de projet'!$I$51\n+'E1_Données de projet'!$D$52*(1+Eing_allg_Teuerung/100)^('E1_Données de projet'!$I$52*ROUNDDOWN((AD60-1)/'E1_Données de projet'!$I$52,0))/'E1_Données de projet'!$I$52\n+'E1_Données de projet'!$D$53*(1+Eing_allg_Teuerung/100)^('E1_Données de projet'!$I$53*ROUNDDOWN((AD60-1)/'E1_Données de projet'!$I$53,0))/'E1_Données de projet'!$I$53\n)*((AD60)>0)*VLOOKUP(B60,'E1_Données de projet'!$D$58:$I$60,6\n)/100","v":0},0,{"$f":"SUM((SUMPRODUCT((E3_Consommateurs!$D$21:$XFD$21<B1_Calculs!B60)*E3_Consommateurs!$D$25:$XFD$25)+SUMPRODUCT((E3_Consommateurs!$D$21:$XFD$21=B1_Calculs!B60)*E3_Consommateurs!$D$25:$XFD$25*E3_Consommateurs!$D$20:$XFD$20))*(1+$G$24)^(B60-B$36),(SUMPRODUCT((E3_Consommateurs!$D$21:$XFD$21<B1_Calculs!B60)*E3_Consommateurs!$D$26:$XFD$26)+SUMPRODUCT((E3_Consommateurs!$D$21:$XFD$21=B1_Calculs!B60)*E3_Consommateurs!$D$26:$XFD$26*E3_Consommateurs!$D$20:$XFD$20))*((1+$G$24)*(1-'E1_Données de projet'!$D$19/100))^(B60-B$36))","v":0},{"$f":"SUMPRODUCT((E3_Consommateurs!$D$21:$XFD$21=B1_Calculs!B60)*E3_Consommateurs!$D$23:$XFD$23)","v":0},{"$f":"SUM(jährlicher_Förderbeitrag*(B60-Erstauszahlung_jährlFörderung<=Eing_Förderung_wiederholend_Laufzeit-1)*(B60>='E1_Données de projet'!$D$83),'E1_Données de projet'!$D$76*(B60='E1_Données de projet'!$D$77),'E1_Données de projet'!$D$78*(B60='E1_Données de projet'!$D$79))","v":0},null,null,0,0,0,{"$f":"'E1_Données de projet'!$D$48*(AD60-1='E1_Données de projet'!$I$48)*(1+Eing_allg_Teuerung/100)^'E1_Données de projet'!$I$48\n+'E1_Données de projet'!$D$49*(AD60-1='E1_Données de projet'!$I$49)*(1+Eing_allg_Teuerung/100)^'E1_Données de projet'!$I$49\n+'E1_Données de projet'!$D$50*(AD60-1='E1_Données de projet'!$I$50)*(1+Eing_allg_Teuerung/100)^'E1_Données de projet'!$I$50\n+'E1_Données de projet'!$D$51*(AD60-1='E1_Données de projet'!$I$51)*(1+Eing_allg_Teuerung/100)^'E1_Données de projet'!$I$51\n+'E1_Données de projet'!$D$52*(AD60-1='E1_Données de projet'!$I$52)*(1+Eing_allg_Teuerung/100)^'E1_Données de projet'!$I$52\n+'E1_Données de projet'!$D$53*(AD60-1='E1_Données de projet'!$I$53)*(1+Eing_allg_Teuerung/100)^'E1_Données de projet'!$I$53\n+Gesamtinvestition*SUMPRODUCT(('E1_Données de projet'!$D$58:$D$60=B60)*'E1_Données de projet'!$F$58:$F$60)/100","v":0},0,0,0,0,null,{"$f":"MAX(B1_Calculs!B60+1-'E1_Données de projet'!$D$22,0)","v":25},0,{"$f":"'E1_Données de projet'!$D$48*(AD60-1='E1_Données de projet'!$I$48)*(1+Eing_allg_Teuerung/100)^'E1_Données de projet'!$I$48\n+'E1_Données de projet'!$D$49*(AD60-1='E1_Données de projet'!$I$49)*(1+Eing_allg_Teuerung/100)^'E1_Données de projet'!$I$49\n+'E1_Données de projet'!$D$50*(AD60-1='E1_Données de projet'!$I$50)*(1+Eing_allg_Teuerung/100)^'E1_Données de projet'!$I$50\n+'E1_Données de projet'!$D$51*(AD60-1='E1_Données de projet'!$I$51)*(1+Eing_allg_Teuerung/100)^'E1_Données de projet'!$I$51\n+'E1_Données de projet'!$D$52*(AD60-1='E1_Données de projet'!$I$52)*(1+Eing_allg_Teuerung/100)^'E1_Données de projet'!$I$52\n+'E1_Données de projet'!$D$53*(AD60-1='E1_Données de projet'!$I$53)*(1+Eing_allg_Teuerung/100)^'E1_Données de projet'!$I$53\n+(Gesamtinvestition-SUM('E1_Données de projet'!$D$54:$D$55))*SUMPRODUCT(('E1_Données de projet'!$D$58:$D$60=B60)*'E1_Données de projet'!$F$58:$F$60)/100+AF59-N60","v":0},{"$f":"IF(ISNUMBER(IRR((AJ$36:AJ59,AI60))),IRR((AJ$36:AJ59,AI60)),\"-\")","v":"-"},24,0,0]

{"sheet":"A1_Résultats","index":5,"n_rows":42,"n_cols":14,"rows_kept":42,"merged":[[11,2,11,6],[42,7,58,12]]}
[600,"QM Chauffages au bois - Modèle de rentabilité - Résultats",{"$nulls":5},"QM Chauffages au bois - Modèle de rentabilité - Résultats"]
[]
[101,null,"Champ de saisie",{"$nulls":4},"Énergie",null,{"$f":"D32","v":0},{"$f":"E32","v":0},{"$f":"\"jusqu'à \"&B1_Calculs!B60","v":"jusqu'à 24"},null,650]
[105,"(hors TVA)",{"$nulls":6},"Charge du réseau",{"$f":"VLOOKUP(A1_Résultats!J$3,B1_Calculs!$B$36:$AH$60,3)/100","v":{"v":0,"d":"0%"}},{"$f":"VLOOKUP(A1_Résultats!K$3,B1_Calculs!$B$36:$AH$60,3)/100","v":{"v":0,"d":"0%"}},null,null,553]
[{"$nulls":8},"Quantité de chaleur fournie",{"$f":"(VLOOKUP(A1_Résultats!J$3,B1_Calculs!$B$36:$AH$60,2))*((100-Eing_Netzverluste))/100","v":0},{"$f":"(VLOOKUP(A1_Résultats!K$3,B1_Calculs!$B$36:$AH$60,2))*((100-Eing_Netzverluste))/100","v":0},{"$f":"SUM(B1_Calculs!C36:C60)*((100-Eing_Netzverluste))/100","v":0},"MWh/an",651]
[106,"Projet/Variante :",{"$f":"IF('E1_Données de projet'!C7=0,\"\",'E1_Données de projet'!C7)","v":""},{"$nulls":5},"Coût moyen sur la base des ventes de chaleur",{"$f":"(VLOOKUP(A1_Résultats!J$3,B1_Calculs!$B$36:$AH$60,14))/J5","v":{"$error":"#DIV/0!"}},{"$f":"(VLOOKUP(A1_Résultats!K$3,B1_Calculs!$B$36:$AH$60,14))/K5","v":{"$error":"#DIV/0!"}},{"$f":"SUM(B1_Calculs!O36:O60)/L5","v":{"$error":"#DIV/0!"}},"CHF/MWh",652]
[null,null,{"$f":"IF('E1_Données de projet'!C8=0,\"\",'E1_Données de projet'!C8)","v":""}]
[null,null,{"$f":"IF('E1_Données de projet'!C9=0,\"\",'E1_Données de projet'!C9)","v":""},{"$nulls":4},"Évolution de la charge du réseau",{"$nulls":5},653]
[]
[107,"Saisi par :",{"$f":"IF('E1_Données de projet'!C11=0,\"\",'E1_Données de projet'!C11)","v":""}]
[]
[501,"Avertissements :",{"$f":"IF('E1_Données de projet'!C13<>\"\",\"Il y a des avertissements dans le registre 'E1_Données de projet'!\",\"\")","v":"Il y a des avertissements dans le registre 'E1_Données de projet'!"}]
[]
[110,"Quantité de chaleur, réseau, lancement du projet"]
[111,null,"Consommation de chaleur totale des utilisateurs",{"$f":"Eing_verkaufteWM","v":0},"MWh/an"]
[112,null,"Déperditions du réseau",{"$f":"Eing_Netzverluste","v":10},"%"]
[]
[114,null,"Année de démarrage du projet",{"$f":"Eing_Beginnjahr","v":0}]
[115,null,"Année de mise en service / première fourniture de chaleur",{"$f":"'E1_Données de projet'!D22","v":0}]
[]
[610,"Coûts d'investissement"]
[151,null,"Coûts de construction Bâtiments Environs",{"$f":"Eing_Kosten_Bau","v":0},"CHF",{"$nulls":4},{"$f":"D32","v":0},{"$f":"E32","v":0},{"$f":"B1_Calculs!B60","v":24}]
[612,null,"Chaudières et installations",{"$f":"SUM('E1_Données de projet'!D49:D51)","v":0},"CHF",null,null,"Bilan","Solde du crédit",{"$f":"(VLOOKUP(A1_Résultats!J$22,B1_Calculs!$B$36:$AH$60,30))","v":0},{"$f":"(VLOOKUP(A1_Résultats!K$22,B1_Calculs!$B$36:$AH$60,30))","v":0},{"$f":"(VLOOKUP(A1_Résultats!L$22,B1_Calculs!$B$36:$AH$60,30))","v":0},null,587]
[613,null,"Réseau de chaleur, avec génie civil et postes intérieurs",{"$f":"SUM('E1_Données de projet'!D52:D54)","v":0},"CHF",{"$nulls":3},"Valeur résiduelle de l'installation",{"$f":"(VLOOKUP(A1_Résultats!J$22,B1_Calculs!$B$36:$AH$60,31))","v":0},{"$f":"(VLOOKUP(A1_Résultats!K$22,B1_Calculs!$B$36:$AH$60,31))","v":0},{"$f":"(VLOOKUP(A1_Résultats!L$22,B1_Calculs!$B$36:$AH$60,31))","v":0},null,588]
[157,null,"Planification et imprévus",{"$f":"Eing_Kosten_Planung_QM","v":0},"CHF",{"$nulls":3},"Rémunération de l'investissement",{"$f":"(VLOOKUP(A1_Résultats!J$22,B1_Calculs!$B$36:$AH$60,32))","v":"-"},{"$f":"(VLOOKUP(A1_Résultats!K$22,B1_Calculs!$B$36:$AH$60,32))","v":"-"},{"$f":"(VLOOKUP(A1_Résultats!L$22,B1_Calculs!$B$36:$AH$60,32))","v":"-"},null,589]
[158,null,"Coût d'investissement total",{"$f":"Gesamtinvestition","v":0},"CHF"]
[615,"Financement externe / subventions",{"$nulls":11},591]
[161,null,"Crédits/prêts",{"$f":"SUM(Eing_Kredit_1,Eing_Kredit_2)","v":0},"CHF"]
[191,null,"Montant total des subventions",{"$f":"SUM(Einmaliger_Förderbeitrag_1,Einmaliger_Förderbeitrag_2,(jährlicher_Förderbeitrag*Eing_Förderung_wiederholend_Laufzeit))","v":0},"CHF"]
[531,null,"Fonds propres max. requis",{"$f":"maxEigenkapital","v":0},"CHF","im Jahr",{"$f":"B1_Calculs!I29","v":0}]
[]
[620,"Coûts annuels",null,{"$f":"D19","v":0},null,{"$f":"\"jusqu'à \"&B1_Calculs!B60","v":"jusqu'à 24"}]
[{"$nulls":3},"[CHF/an]","[CHF/an]","[CHF]"]
[621,"Charges","Coûts énergétiques",{"$f":"SUM(VLOOKUP(A1_Résultats!D32,B1_Calculs!$B$36:$AH$60,4),VLOOKUP(A1_Résultats!D32,B1_Calculs!$B$36:$AH$60,5),VLOOKUP(A1_Résultats!D32,B1_Calculs!$B$36:$AH$60,6))","v":0},{"$f":"SUM(VLOOKUP(A1_Résultats!E32,B1_Calculs!$B$36:$AH$60,4),VLOOKUP(A1_Résultats!E32,B1_Calculs!$B$36:$AH$60,5),VLOOKUP(A1_Résultats!E32,B1_Calculs!$B$36:$AH$60,6))","v":0},{"$f":"SUM(B1_Calculs!E36:G60)","v":0}]
[622,null,"Exploitation, entretien, autres",{"$f":"SUM(VLOOKUP(A1_Résultats!D$32,B1_Calculs!$B$36:$AH$60,7),VLOOKUP(A1_Résultats!D$32,B1_Calculs!$B$36:$AH$60,8),VLOOKUP(A1_Résultats!D$32,B1_Calculs!$B$36:$AH$60,9),VLOOKUP(A1_Résultats!D$32,B1_Calculs!$B$36:$AH$60,10))","v":0},{"$f":"SUM(VLOOKUP(A1_Résultats!E$32,B1_Calculs!$B$36:$AH$60,7),VLOOKUP(A1_Résultats!E$32,B1_Calculs!$B$36:$AH$60,8),VLOOKUP(A1_Résultats!E$32,B1_Calculs!$B$36:$AH$60,9),VLOOKUP(A1_Résultats!E$32,B1_Calculs!$B$36:$AH$60,10))","v":0},{"$f":"SUM(B1_Calculs!H36:J60,B1_Calculs!K36:K60)","v":0}]
[623,null,"Intérêts, amortissement",{"$f":"SUM(VLOOKUP(A1_Résultats!D$32,B1_Calculs!$B$36:$AH$60,12),VLOOKUP(A1_Résultats!D$32,B1_Calculs!$B$36:$AH$60,13))","v":0},{"$f":"SUM(VLOOKUP(A1_Résultats!E$32,B1_Calculs!$B$36:$AH$60,12),VLOOKUP(A1_Résultats!E$32,B1_Calculs!$B$36:$AH$60,13))","v":0},{"$f":"SUM(B1_Calculs!M36:N60)","v":0}]
[624,null,"Total des charges",{"$f":"SUM(D34:D36)","v":0},{"$f":"SUM(E34:E36)","v":0},0]
[625,"Recettes","Vente de chaleur + contribution de raccordement",{"$f":"SUM(VLOOKUP(A1_Résultats!D$32,B1_Calculs!$B$36:$AH$60,15),VLOOKUP(A1_Résultats!D$32,B1_Calculs!$B$36:$AH$60,16))","v":0},{"$f":"SUM(VLOOKUP(A1_Résultats!E$32,B1_Calculs!$B$36:$AH$60,15),VLOOKUP(A1_Résultats!E$32,B1_Calculs!$B$36:$AH$60,16))","v":0},{"$f":"SUM(B1_Calculs!P36:Q60)","v":0}]
[626,null,"Subventions, autres",{"$f":"SUM(VLOOKUP(A1_Résultats!D$32,B1_Calculs!$B$36:$AH$60,17),VLOOKUP(A1_Résultats!D$32,B1_Calculs!$B$36:$AH$60,18))","v":0},{"$f":"SUM(VLOOKUP(A1_Résultats!E$32,B1_Calculs!$B$36:$AH$60,17),VLOOKUP(A1_Résultats!E$32,B1_Calculs!$B$36:$AH$60,18))","v":0},{"$f":"SUM(B1_Calculs!R36:S60)","v":0}]
[627,null,"Total des recettes",{"$f":"SUM(D38:D39)","v":0},{"$f":"SUM(E38:E39)","v":0},{"$f":"SUM(F38:F39)","v":0}]
[]
[590,{"$nulls":6},"Remarques",{"$nulls":5},690]

{"sheet":"A2_Données VAN","index":6,"n_rows":80,"n_cols":22,"rows_kept":80,"merged":[[6,2,7,2],[6,3,7,3],[6,4,7,4],[6,5,7,5]]}
[900,"QM Chauffages au bois - Synthèse pour KliK-Tool \"Justification de l’additionnalité de projets de chaleur à distance\""]
[]
[104,null,"Champs de résultat"]
[]
[910,"Onglet Paramètres de saisie ; section Évolution de référence"]
[911,null,"Clients clé (ou groupe de clients clé présentant les mêmes caractéristiques)"]
[null,null,"Désignation","Type de bâtiment & caractéristiques de consommation","Puissance [kW]","Besoins annuels de chaleur [MWh/an]"]
[]
[null,null,{"$f":"E3_Consommateurs!$D15","v":0},null,{"$f":"E3_Consommateurs!$D19","v":0},{"$f":"E3_Consommateurs!$D18","v":0}]
[null,null,{"$f":"E3_Consommateurs!$E15","v":0},null,{"$f":"E3_Consommateurs!$E19","v":0},{"$f":"E3_Consommateurs!$E18","v":0}]
[null,null,{"$f":"E3_Consommateurs!$F15","v":0},null,{"$f":"E3_Consommateurs!$F19","v":0},{"$f":"E3_Consommateurs!$F18","v":0}]
[null,null,{"$f":"E3_Consommateurs!$G15","v":0},null,{"$f":"E3_Consommateurs!$G19","v":0},{"$f":"E3_Consommateurs!$G18","v":0}]
[null,null,{"$f":"E3_Consommateurs!$H15","v":0},null,{"$f":"E3_Consommateurs!$H19","v":0},{"$f":"E3_Consommateurs!$H18","v":0}]
[null,null,{"$f":"E3_Consommateurs!$I15","v":0},null,{"$f":"E3_Consommateurs!$I19","v":0},{"$f":"E3_Consommateurs!$I18","v":0}]
[null,null,{"$f":"E3_Consommateurs!$J15","v":0},null,{"$f":"E3_Consommateurs!$J19","v":0},{"$f":"E3_Consommateurs!$J18","v":0}]
[null,null,{"$f":"E3_Consommateurs!$K15","v":0},null,{"$f":"E3_Consommateurs!$K19","v":0},{"$f":"E3_Consommateurs!$K18","v":0}]
[null,null,{"$f":"E3_Consommateurs!$L15","v":0},null,{"$f":"E3_Consommateurs!$L19","v":0},{"$f":"E3_Consommateurs!$L18","v":0}]
[null,null,{"$f":"E3_Consommateurs!$M15","v":0},null,{"$f":"E3_Consommateurs!$M19","v":0},{"$f":"E3_Consommateurs!$M18","v":0}]
[null,null,{"$f":"E3_Consommateurs!$N15","v":0},null,{"$f":"E3_Consommateurs!$N19","v":0},{"$f":"E3_Consommateurs!$N18","v":0}]
[null,null,{"$f":"E3_Consommateurs!$O15","v":0},null,{"$f":"E3_Consommateurs!$O19","v":0},{"$f":"E3_Consommateurs!$O18","v":0}]
[null,null,{"$f":"E3_Consommateurs!$P15","v":0},null,{"$f":"E3_Consommateurs!$P19","v":0},{"$f":"E3_Consommateurs!$P18","v":0}]
[null,null,{"$f":"E3_Consommateurs!$Q15","v":0},null,{"$f":"E3_Consommateurs!$Q19","v":0},{"$f":"E3_Consommateurs!$Q18","v":0}]
[null,null,{"$f":"E3_Consommateurs!$R15","v":0},null,{"$f":"E3_Consommateurs!$R19","v":0},{"$f":"E3_Consommateurs!$R18","v":0}]
[null,null,"Clients clé (ou groupe de clients clé présentant les mêmes caractéristiques)"]
[912,null,null,"Année de raccordement","Puissance en pleine configuration [kW] "]
[null,null,{"$f":"C9","v":0},{"$f":"E3_Consommateurs!$D21","v":0},{"$f":"E9","v":0}]
[null,null,{"$f":"C10","v":0},{"$f":"E3_Consommateurs!$E21","v":0},0]
[null,null,0,{"$f":"E3_Consommateurs!$F21","v":0},0]
[null,null,0,{"$f":"E3_Consommateurs!$G21","v":0},0]
[null,null,0,{"$f":"E3_Consommateurs!$H21","v":0},0]
[null,null,0,{"$f":"E3_Consommateurs!$I21","v":0},0]
[null,null,0,{"$f":"E3_Consommateurs!$J21","v":0},0]
[null,null,0,{"$f":"E3_Consommateurs!$K21","v":0},0]
[null,null,0,{"$f":"E3_Consommateurs!$L21","v":0},0]
[null,null,0,{"$f":"E3_Consommateurs!$M21","v":0},0]
[null,null,0,{"$f":"E3_Consommateurs!$N21","v":0},0]
[null,null,0,{"$f":"E3_Consommateurs!$O21","v":0},0]
[null,null,0,{"$f":"E3_Consommateurs!$P21","v":0},0]
[null,null,0,{"$f":"E3_Consommateurs!$Q21","v":0},0]
[null,null,0,{"$f":"E3_Consommateurs!$R21","v":0},0]
[]
[920,"Onglet Consommation de chaleur ; section Évolution de référence",null,{"$f":"'E1_Données de projet'!D22","v":0},{"$f":"D42+1","v":1},{"$f":"E42+1","v":2},3,4,5,6,7,8,9,10,11,12,13,14,15]
[null,"Client clé"]
[921,"Consommation de chaleur (énergie utile) (y compris effets des rénovations de bâtiment)"]
[null,{"$f":"C9","v":0},"[MWh/an]",{"$f":"E3_Consommateurs!$D18*(E3_Consommateurs!$D21<D$42)+E3_Consommateurs!$D18*(E3_Consommateurs!$D21=D$42)*E3_Consommateurs!$D20","v":0},{"$f":"E3_Consommateurs!$D18*(E3_Consommateurs!$D21<E$42)+E3_Consommateurs!$D18*(E3_Consommateurs!$D21=E$42)*E3_Consommateurs!$D20","v":0},{"$f":"E3_Consommateurs!$D18*(E3_Consommateurs!$D21<F$42)+E3_Consommateurs!$D18*(E3_Consommateurs!$D21=F$42)*E3_Consommateurs!$D20","v":0},{"$f":"E3_Consommateurs!$D18*(E3_Consommateurs!$D21<G$42)+E3_Consommateurs!$D18*(E3_Consommateurs!$D21=G$42)*E3_Consommateurs!$D20","v":0},{"$f":"E3_Consommateurs!$D18*(E3_Consommateurs!$D21<H$42)+E3_Consommateurs!$D18*(E3_Consommateurs!$D21=H$42)*E3_Consommateurs!$D20","v":0},{"$f":"E3_Consommateurs!$D18*(E3_Consommateurs!$D21<I$42)+E3_Consommateurs!$D18*(E3_Consommateurs!$D21=I$42)*E3_Consommateurs!$D20","v":0},{"$f":"E3_Consommateurs!$D18*(E3_Consommateurs!$D21<J$42)+E3_Consommateurs!$D18*(E3_Consommateurs!$D21=J$42)*E3_Consommateurs!$D20","v":0},{"$f":"E3_Consommateurs!$D18*(E3_Consommateurs!$D21<K$42)+E3_Consommateurs!$D18*(E3_Consommateurs!$D21=K$42)*E3_Consommateurs!$D20","v":0},{"$f":"E3_Consommateurs!$D18*(E3_Consommateurs!$D21<L$42)+E3_Consommateurs!$D18*(E3_Consommateurs!$D21=L$42)*E3_Consommateurs!$D20","v":0},{"$f":"E3_Consommateurs!$D18*(E3_Consommateurs!$D21<M$42)+E3_Consommateurs!$D18*(E3_Consommateurs!$D21=M$42)*E3_Consommateurs!$D20","v":0},{"$f":"E3_Consommateurs!$D18*(E3_Consommateurs!$D21<N$42)+E3_Consommateurs!$D18*(E3_Consommateurs!$D21=N$42)*E3_Consommateurs!$D20","v":0},{"$f":"E3_Consommateurs!$D18*(E3_Consommateurs!$D21<O$42)+E3_Consommateurs!$D18*(E3_Consommateurs!$D21=O$42)*E3_Consommateurs!$D20","v":0},{"$f":"E3_Consommateurs!$D18*(E3_Consommateurs!$D21<P$42)+E3_Consommateurs!$D18*(E3_Consommateurs!$D21=P$42)*E3_Consommateurs!$D20","v":0},{"$f":"E3_Consommateurs!$D18*(E3_Consommateurs!$D21<Q$42)+E3_Consommateurs!$D18*(E3_Consommateurs!$D21=Q$42)*E3_Consommateurs!$D20","v":0},{"$f":"E3_Consommateurs!$D18*(E3_Consommateurs!$D21<R$42)+E3_Consommateurs!$D18*(E3_Consommateurs!$D21=R$42)*E3_Consommateurs!$D20","v":0},{"$f":"E3_Consommateurs!$D18*(E3_Consommateurs!$D21<S$42)+E3_Consommateurs!$D18*(E3_Consommateurs!$D21=S$42)*E3_Consommateurs!$D20","v":0}]
[null,{"$f":"C10","v":0},"[MWh/an]",{"$f":"E3_Consommateurs!$E18*(E3_Consommateurs!$E21<D$42)+E3_Consommateurs!$E18*(E3_Consommateurs!$E21=D$42)*E3_Consommateurs!$E20","v":0},{"$f":"E3_Consommateurs!$E18*(E3_Consommateurs!$E21<E$42)+E3_Consommateurs!$E18*(E3_Consommateurs!$E21=E$42)*E3_Consommateurs!$E20","v":0},{"$f":"E3_Consommateurs!$E18*(E3_Consommateurs!$E21<F$42)+E3_Consommateurs!$E18*(E3_Consommateurs!$E21=F$42)*E3_Consommateurs!$E20","v":0},{"$f":"E3_Consommateurs!$E18*(E3_Consommateurs!$E21<G$42)+E3_Consommateurs!$E18*(E3_Consommateurs!$E21=G$42)*E3_Consommateurs!$E20","v":0},{"$f":"E3_Consommateurs!$E18*(E3_Consommateurs!$E21<H$42)+E3_Consommateurs!$E18*(E3_Consommateurs!$E21=H$42)*E3_Consommateurs!$E20","v":0},{"$f":"E3_Consommateurs!$E18*(E3_Consommateurs!$E21<I$42)+E3_Consommateurs!$E18*(E3_Consommateurs!$E21=I$42)*E3_Consommateurs!$E20","v":0},{"$f":"E3_Consommateurs!$E18*(E3_Consommateurs!$E21<J$42)+E3_Consommateurs!$E18*(E3_Consommateurs!$E21=J$42)*E3_Consommateurs!$E20","v":0},{"$f":"E3_Consommateurs!$E18*(E3_Consommateurs!$E21<K$42)+E3_Consommateurs!$E18*(E3_Consommateurs!$E21=K$42)*E3_Consommateurs!$E20","v":0},{"$f":"E3_Consommateurs!$E18*(E3_Consommateurs!$E21<L$42)+E3_Consommateurs!$E18*(E3_Consommateurs!$E21=L$42)*E3_Consommateurs!$E20","v":0},{"$f":"E3_Consommateurs!$E18*(E3_Consommateurs!$E21<M$42)+E3_Consommateurs!$E18*(E3_Consommateurs!$E21=M$42)*E3_Consommateurs!$E20","v":0},{"$f":"E3_Consommateurs!$E18*(E3_Consommateurs!$E21<N$42)+E3_Consommateurs!$E18*(E3_Consommateurs!$E21=N$42)*E3_Consommateurs!$E20","v":0},{"$f":"E3_Consommateurs!$E18*(E3_Consommateurs!$E21<O$42)+E3_Consommateurs!$E18*(E3_Consommateurs!$E21=O$42)*E3_Consommateurs!$E20","v":0},{"$f":"E3_Consommateurs!$E18*(E3_Consommateurs!$E21<P$42)+E3_Consommateurs!$E18*(E3_Consommateurs!$E21=P$42)*E3_Consommateurs!$E20","v":0},{"$f":"E3_Consommateurs!$E18*(E3_Consommateurs!$E21<Q$42)+E3_Consommateurs!$E18*(E3_Consommateurs!$E21=Q$42)*E3_Consommateurs!$E20","v":0},{"$f":"E3_Consommateurs!$E18*(E3_Consommateurs!$E21<R$42)+E3_Consommateurs!$E18*(E3_Consommateurs!$E21=R$42)*E3_Consommateurs!$E20","v":0},{"$f":"E3_Consommateurs!$E18*(E3_Consommateurs!$E21<S$42)+E3_Consommateurs!$E18*(E3_Consommateurs!$E21=S$42)*E3_Consommateurs!$E20","v":0}]
[null,0,"[MWh/an]",{"$f":"E3_Consommateurs!$F18*(E3_Consommateurs!$F21<D$42)+E3_Consommateurs!$F18*(E3_Consommateurs!$F21=D$42)*E3_Consommateurs!$F20","v":0},{"$f":"E3_Consommateurs!$F18*(E3_Consommateurs!$F21<E$42)+E3_Consommateurs!$F18*(E3_Consommateurs!$F21=E$42)*E3_Consommateurs!$F20","v":0},{"$f":"E3_Consommateurs!$F18*(E3_Consommateurs!$F21<F$42)+E3_Consommateurs!$F18*(E3_Consommateurs!$F21=F$42)*E3_Consommateurs!$F20","v":0},{"$f":"E3_Consommateurs!$F18*(E3_Consommateurs!$F21<G$42)+E3_Consommateurs!$F18*(E3_Consommateurs!$F21=G$42)*E3_Consommateurs!$F20","v":0},{"$f":"E3_Consommateurs!$F18*(E3_Consommateurs!$F21<H$42)+E3_Consommateurs!$F18*(E3_Consommateurs!$F21=H$42)*E3_Consommateurs!$F20","v":0},{"$f":"E3_Consommateurs!$F18*(E3_Consommateurs!$F21<I$42)+E3_Consommateurs!$F18*(E3_Consommateurs!$F21=I$42)*E3_Consommateurs!$F20","v":0},{"$f":"E3_Consommateurs!$F18*(E3_Consommateurs!$F21<J$42)+E3_Consommateurs!$F18*(E3_Consommateurs!$F21=J$42)*E3_Consommateurs!$F20","v":0},{"$f":"E3_Consommateurs!$F18*(E3_Consommateurs!$F21<K$42)+E3_Consommateurs!$F18*(E3_Consommateurs!$F21=K$42)*E3_Consommateurs!$F20","v":0},{"$f":"E3_Consommateurs!$F18*(E3_Consommateurs!$F21<L$42)+E3_Consommateurs!$F18*(E3_Consommateurs!$F21=L$42)*E3_Consommateurs!$F20","v":0},{"$f":"E3_Consommateurs!$F18*(E3_Consommateurs!$F21<M$42)+E3_Consommateurs!$F18*(E3_Consommateurs!$F21=M$42)*E3_Consommateurs!$F20","v":0},{"$f":"E3_Consommateurs!$F18*(E3_Consommateurs!$F21<N$42)+E3_Consommateurs!$F18*(E3_Consommateurs!$F21=N$42)*E3_Consommateurs!$F20","v":0},{"$f":"E3_Consommateurs!$F18*(E3_Consommateurs!$F21<O$42)+E3_Consommateurs!$F18*(E3_Consommateurs!$F21=O$42)*E3_Consommateurs!$F20","v":0},{"$f":"E3_Consommateurs!$F18*(E3_Consommateurs!$F21<P$42)+E3_Consommateurs!$F18*(E3_Consommateurs!$F21=P$42)*E3_Consommateurs!$F20","v":0},{"$f":"E3_Consommateurs!$F18*(E3_Consommateurs!$F21<Q$42)+E3_Consommateurs!$F18*(E3_Consommateurs!$F21=Q$42)*E3_Consommateurs!$F20","v":0},{"$f":"E3_Consommateurs!$F18*(E3_Consommateurs!$F21<R$42)+E3_Consommateurs!$F18*(E3_Consommateurs!$F21=R$42)*E3_Consommateurs!$F20","v":0},{"$f":"E3_Consommateurs!$F18*(E3_Consommateurs!$F21<S$42)+E3_Consommateurs!$F18*(E3_Consommateurs!$F21=S$42)*E3_Consommateurs!$F20","v":0}]
[null,0,"[MWh/an]",{"$f":"E3_Consommateurs!$G18*(E3_Consommateurs!$G21<D$42)+E3_Consommateurs!$G18*(E3_Consommateurs!$G21=D$42)*E3_Consommateurs!$G20","v":0},{"$f":"E3_Consommateurs!$G18*(E3_Consommateurs!$G21<E$42)+E3_Consommateurs!$G18*(E3_Consommateurs!$G21=E$42)*E3_Consommateurs!$G20","v":0},{"$f":"E3_Consommateurs!$G18*(E3_Consommateurs!$G21<F$42)+E3_Consommateurs!$G18*(E3_Consommateurs!$G21=F$42)*E3_Consommateurs!$G20","v":0},{"$f":"E3_Consommateurs!$G18*(E3_Consommateurs!$G21<G$42)+E3_Consommateurs!$G18*(E3_Consommateurs!$G21=G$42)*E3_Consommateurs!$G20","v":0},{"$f":"E3_Consommateurs!$G18*(E3_Consommateurs!$G21<H$42)+E3_Consommateurs!$G18*(E3_Consommateurs!$G21=H$42)*E3_Consommateurs!$G20","v":0},{"$f":"E3_Consommateurs!$G18*(E3_Consommateurs!$G21<I$42)+E3_Consommateurs!$G18*(E3_Consommateurs!$G21=I$42)*E3_Consommateurs!$G20","v":0},{"$f":"E3_Consommateurs!$G18*(E3_Consommateurs!$G21<J$42)+E3_Consommateurs!$G18*(E3_Consommateurs!$G21=J$42)*E3_Consommateurs!$G20","v":0},{"$f":"E3_Consommateurs!$G18*(E3_Consommateurs!$G21<K$42)+E3_Consommateurs!$G18*(E3_Consommateurs!$G21=K$42)*E3_Consommateurs!$G20","v":0},{"$f":"E3_Consommateurs!$G18*(E3_Consommateurs!$G21<L$42)+E3_Consommateurs!$G18*(E3_Consommateurs!$G21=L$42)*E3_Consommateurs!$G20","v":0},{"$f":"E3_Consommateurs!$G18*(E3_Consommateurs!$G21<M$42)+E3_Consommateurs!$G18*(E3_Consommateurs!$G21=M$42)*E3_Consommateurs!$G20","v":0},{"$f":"E3_Consommateurs!$G18*(E3_Consommateurs!$G21<N$42)+E3_Consommateurs!$G18*(E3_Consommateurs!$G21=N$42)*E3_Consommateurs!$G20","v":0},{"$f":"E3_Consommateurs!$G18*(E3_Consommateurs!$G21<O$42)+E3_Consommateurs!$G18*(E3_Consommateurs!$G21=O$42)*E3_Consommateurs!$G20","v":0},{"$f":"E3_Consommateurs!$G18*(E3_Consommateurs!$G21<P$42)+E3_Consommateurs!$G18*(E3_Consommateurs!$G21=P$42)*E3_Consommateurs!$G20","v":0},{"$f":"E3_Consommateurs!$G18*(E3_Consommateurs!$G21<Q$42)+E3_Consommateurs!$G18*(E3_Consommateurs!$G21=Q$42)*E3_Consommateurs!$G20","v":0},{"$f":"E3_Consommateurs!$G18*(E3_Consommateurs!$G21<R$42)+E3_Consommateurs!$G18*(E3_Consommateurs!$G21=R$42)*E3_Consommateurs!$G20","v":0},{"$f":"E3_Consommateurs!$G18*(E3_Consommateurs!$G21<S$42)+E3_Consommateurs!$G18*(E3_Consommateurs!$G21=S$42)*E3_Consommateurs!$G20","v":0}]
[null,0,"[MWh/an]",{"$f":"E3_Consommateurs!$H18*(E3_Consommateurs!$H21<D$42)+E3_Consommateurs!$H18*(E3_Consommateurs!$H21=D$42)*E3_Consommateurs!$H20","v":0},{"$f":"E3_Consommateurs!$H18*(E3_Consommateurs!$H21<E$42)+E3_Consommateurs!$H18*(E3_Consommateurs!$H21=E$42)*E3_Consommateurs!$H20","v":0},{"$f":"E3_Consommateurs!$H18*(E3_Consommateurs!$H21<F$42)+E3_Consommateurs!$H18*(E3_Consommateurs!$H21=F$42)*E3_Consommateurs!$H20","v":0},{"$f":"E3_Consommateurs!$H18*(E3_Consommateurs!$H21<G$42)+E3_Consommateurs!$H18*(E3_Consommateurs!$H21=G$42)*E3_Consommateurs!$H20","v":0},{"$f":"E3_Consommateurs!$H18*(E3_Consommateurs!$H21<H$42)+E3_Consommateurs!$H18*(E3_Consommateurs!$H21=H$42)*E3_Consommateurs!$H20","v":0},{"$f":"E3_Consommateurs!$H18*(E3_Consommateurs!$H21<I$42)+E3_Consommateurs!$H18*(E3_Consommateurs!$H21=I$42)*E3_Consommateurs!$H20","v":0},{"$f":"E3_Consommateurs!$H18*(E3_Consommateurs!$H21<J$42)+E3_Consommateurs!$H18*(E3_Consommateurs!$H21=J$42)*E3_Consommateurs!$H20","v":0},{"$f":"E3_Consommateurs!$H18*(E3_Consommateurs!$H21<K$42)+E3_Consommateurs!$H18*(E3_Consommateurs!$H21=K$42)*E3_Consommateurs!$H20","v":0},{"$f":"E3_Consommateurs!$H18*(E3_Consommateurs!$H21<L$42)+E3_Consommateurs!$H18*(E3_Consommateurs!$H21=L$42)*E3_Consommateurs!$H20","v":0},{"$f":"E3_Consommateurs!$H18*(E3_Consommateurs!$H21<M$42)+E3_Consommateurs!$H18*(E3_Consommateurs!$H21=M$42)*E3_Consommateurs!$H20","v":0},{"$f":"E3_Consommateurs!$H18*(E3_Consommateurs!$H21<N$42)+E3_Consommateurs!$H18*(E3_Consommateurs!$H21=N$42)*E3_Consommateurs!$H20","v":0},{"$f":"E3_Consommateurs!$H18*(E3_Consommateurs!$H21<O$42)+E3_Consommateurs!$H18*(E3_Consommateurs!$H21=O$42)*E3_Consommateurs!$H20","v":0},{"$f":"E3_Consommateurs!$H18*(E3_Consommateurs!$H21<P$42)+E3_Consommateurs!$H18*(E3_Consommateurs!$H21=P$42)*E3_Consommateurs!$H20","v":0},{"$f":"E3_Consommateurs!$H18*(E3_Consommateurs!$H21<Q$42)+E3_Consommateurs!$H18*(E3_Consommateurs!$H21=Q$42)*E3_Consommateurs!$H20","v":0},{"$f":"E3_Consommateurs!$H18*(E3_Consommateurs!$H21<R$42)+E3_Consommateurs!$H18*(E3_Consommateurs!$H21=R$42)*E3_Consommateurs!$H20","v":0},{"$f":"E3_Consommateurs!$H18*(E3_Consommateurs!$H21<S$42)+E3_Consommateurs!$H18*(E3_Consommateurs!$H21=S$42)*E3_Consommateurs!$H20","v":0}]
[null,0,"[MWh/an]",{"$f":"E3_Consommateurs!$I18*(E3_Consommateurs!$I21<D$42)+E3_Consommateurs!$I18*(E3_Consommateurs!$I21=D$42)*E3_Consommateurs!$I20","v":0},{"$f":"E3_Consommateurs!$I18*(E3_Consommateurs!$I21<E$42)+E3_Consommateurs!$I18*(E3_Consommateurs!$I21=E$42)*E3_Consommateurs!$I20","v":0},{"$f":"E3_Consommateurs!$I18*(E3_Consommateurs!$I21<F$42)+E3_Consommateurs!$I18*(E3_Consommateurs!$I21=F$42)*E3_Consommateurs!$I20","v":0},{"$f":"E3_Consommateurs!$I18*(E3_Consommateurs!$I21<G$42)+E3_Consommateurs!$I18*(E3_Consommateurs!$I21=G$42)*E3_Consommateurs!$I20","v":0},{"$f":"E3_Consommateurs!$I18*(E3_Consommateurs!$I21<H$42)+E3_Consommateurs!$I18*(E3_Consommateurs!$I21=H$42)*E3_Consommateurs!$I20","v":0},{"$f":"E3_Consommateurs!$I18*(E3_Consommateurs!$I21<I$42)+E3_Consommateurs!$I18*(E3_Consommateurs!$I21=I$42)*E3_Consommateurs!$I20","v":0},{"$f":"E3_Consommateurs!$I18*(E3_Consommateurs!$I21<J$42)+E3_Consommateurs!$I18*(E3_Consommateurs!$I21=J$42)*E3_Consommateurs!$I20","v":0},{"$f":"E3_Consommateurs!$I18*(E3_Consommateurs!$I21<K$42)+E3_Consommateurs!$I18*(E3_Consommateurs!$I21=K$42)*E3_Consommateurs!$I20","v":0},{"$f":"E3_Consommateurs!$I18*(E3_Consommateurs!$I21<L$42)+E3_Consommateurs!$I18*(E3_Consommateurs!$I21=L$42)*E3_Consommateurs!$I20","v":0},{"$f":"E3_Consommateurs!$I18*(E3_Consommateurs!$I21<M$42)+E3_Consommateurs!$I18*(E3_Consommateurs!$I21=M$42)*E3_Consommateurs!$I20","v":0},{"$f":"E3_Consommateurs!$I18*(E3_Consommateurs!$I21<N$42)+E3_Consommateurs!$I18*(E3_Consommateurs!$I21=N$42)*E3_Consommateurs!$I20","v":0},{"$f":"E3_Consommateurs!$I18*(E3_Consommateurs!$I21<O$42)+E3_Consommateurs!$I18*(E3_Consommateurs!$I21=O$42)*E3_Consommateurs!$I20","v":0},{"$f":"E3_Consommateurs!$I18*(E3_Consommateurs!$I21<P$42)+E3_Consommateurs!$I18*(E3_Consommateurs!$I21=P$42)*E3_Consommateurs!$I20","v":0},{"$f":"E3_Consommateurs!$I18*(E3_Consommateurs!$I21<Q$42)+E3_Consommateurs!$I18*(E3_Consommateurs!$I21=Q$42)*E3_Consommateurs!$I20","v":0},{"$f":"E3_Consommateurs!$I18*(E3_Consommateurs!$I21<R$42)+E3_Consommateurs!$I18*(E3_Consommateurs!$I21=R$42)*E3_Consommateurs!$I20","v":0},{"$f":"E3_Consommateurs!$I18*(E3_Consommateurs!$I21<S$42)+E3_Consommateurs!$I18*(E3_Consommateurs!$I21=S$42)*E3_Consommateurs!$I20","v":0}]
[null,0,"[MWh/an]",{"$f":"E3_Consommateurs!$J18*(E3_Consommateurs!$J21<D$42)+E3_Consommateurs!$J18*(E3_Consommateurs!$J21=D$42)*E3_Consommateurs!$J20","v":0},{"$f":"E3_Consommateurs!$J18*(E3_Consommateurs!$J21<E$42)+E3_Consommateurs!$J18*(E3_Consommateurs!$J21=E$42)*E3_Consommateurs!$J20","v":0},{"$f":"E3_Consommateurs!$J18*(E3_Consommateurs!$J21<F$42)+E3_Consommateurs!$J18*(E3_Consommateurs!$J21=F$42)*E3_Consommateurs!$J20","v":0},{"$f":"E3_Consommateurs!$J18*(E3_Consommateurs!$J21<G$42)+E3_Consommateurs!$J18*(E3_Consommateurs!$J21=G$42)*E3_Consommateurs!$J20","v":0},{"$f":"E3_Consommateurs!$J18*(E3_Consommateurs!$J21<H$42)+E3_Consommateurs!$J18*(E3_Consommateurs!$J21=H$42)*E3_Consommateurs!$J20","v":0},{"$f":"E3_Consommateurs!$J18*(E3_Consommateurs!$J21<I$42)+E3_Consommateurs!$J18*(E3_Consommateurs!$J21=I$42)*E3_Consommateurs!$J20","v":0},{"$f":"E3_Consommateurs!$J18*(E3_Consommateurs!$J21<J$42)+E3_Consommateurs!$J18*(E3_Consommateurs!$J21=J$42)*E3_Consommateurs!$J20","v":0},{"$f":"E3_Consommateurs!$J18*(E3_Consommateurs!$J21<K$42)+E3_Consommateurs!$J18*(E3_Consommateurs!$J21=K$42)*E3_Consommateurs!$J20","v":0},{"$f":"E3_Consommateurs!$J18*(E3_Consommateurs!$J21<L$42)+E3_Consommateurs!$J18*(E3_Consommateurs!$J21=L$42)*E3_Consommateurs!$J20","v":0},{"$f":"E3_Consommateurs!$J18*(E3_Consommateurs!$J21<M$42)+E3_Consommateurs!$J18*(E3_Consommateurs!$J21=M$42)*E3_Consommateurs!$J20","v":0},{"$f":"E3_Consommateurs!$J18*(E3_Consommateurs!$J21<N$42)+E3_Consommateurs!$J18*(E3_Consommateurs!$J21=N$42)*E3_Consommateurs!$J20","v":0},{"$f":"E3_Consommateurs!$J18*(E3_Consommateurs!$J21<O$42)+E3_Consommateurs!$J18*(E3_Consommateurs!$J21=O$42)*E3_Consommateurs!$J20","v":0},{"$f":"E3_Consommateurs!$J18*(E3_Consommateurs!$J21<P$42)+E3_Consommateurs!$J18*(E3_Consommateurs!$J21=P$42)*E3_Consommateurs!$J20","v":0},{"$f":"E3_Consommateurs!$J18*(E3_Consommateurs!$J21<Q$42)+E3_Consommateurs!$J18*(E3_Consommateurs!$J21=Q$42)*E3_Consommateurs!$J20","v":0},{"$f":"E3_Consommateurs!$J18*(E3_Consommateurs!$J21<R$42)+E3_Consommateurs!$J18*(E3_Consommateurs!$J21=R$42)*E3_Consommateurs!$J20","v":0},{"$f":"E3_Consommateurs!$J18*(E3_Consommateurs!$J21<S$42)+E3_Consommateurs!$J18*(E3_Consommateurs!$J21=S$42)*E3_Consommateurs!$J20","v":0}]
[null,0,"[MWh/an]",{"$f":"E3_Consommateurs!$K18*(E3_Consommateurs!$K21<D$42)+E3_Consommateurs!$K18*(E3_Consommateurs!$K21=D$42)*E3_Consommateurs!$K20","v":0},{"$f":"E3_Consommateurs!$K18*(E3_Consommateurs!$K21<E$42)+E3_Consommateurs!$K18*(E3_Consommateurs!$K21=E$42)*E3_Consommateurs!$K20","v":0},{"$f":"E3_Consommateurs!$K18*(E3_Consommateurs!$K21<F$42)+E3_Consommateurs!$K18*(E3_Consommateurs!$K21=F$42)*E3_Consommateurs!$K20","v":0},{"$f":"E3_Consommateurs!$K18*(E3_Consommateurs!$K21<G$42)+E3_Consommateurs!$K18*(E3_Consommateurs!$K21=G$42)*E3_Consommateurs!$K20","v":0},{"$f":"E3_Consommateurs!$K18*(E3_Consommateurs!$K21<H$42)+E3_Consommateurs!$K18*(E3_Consommateurs!$K21=H$42)*E3_Consommateurs!$K20","v":0},{"$f":"E3_Consommateurs!$K18*(E3_Consommateurs!$K21<I$42)+E3_Consommateurs!$K18*(E3_Consommateurs!$K21=I$42)*E3_Consommateurs!$K20","v":0},{"$f":"E3_Consommateurs!$K18*(E3_Consommateurs!$K21<J$42)+E3_Consommateurs!$K18*(E3_Consommateurs!$K21=J$42)*E3_Consommateurs!$K20","v":0},{"$f":"E3_Consommateurs!$K18*(E3_Consommateurs!$K21<K$42)+E3_Consommateurs!$K18*(E3_Consommateurs!$K21=K$42)*E3_Consommateurs!$K20","v":0},{"$f":"E3_Consommateurs!$K18*(E3_Consommateurs!$K21<L$42)+E3_Consommateurs!$K18*(E3_Consommateurs!$K21=L$42)*E3_Consommateurs!$K20","v":0},{"$f":"E3_Consommateurs!$K18*(E3_Consommateurs!$K21<M$42)+E3_Consommateurs!$K18*(E3_Consommateurs!$K21=M$42)*E3_Consommateurs!$K20","v":0},{"$f":"E3_Consommateurs!$K18*(E3_Consommateurs!$K21<N$42)+E3_Consommateurs!$K18*(E3_Consommateurs!$K21=N$42)*E3_Consommateurs!$K20","v":0},{"$f":"E3_Consommateurs!$K18*(E3_Consommateurs!$K21<O$42)+E3_Consommateurs!$K18*(E3_Consommateurs!$K21=O$42)*E3_Consommateurs!$K20","v":0},{"$f":"E3_Consommateurs!$K18*(E3_Consommateurs!$K21<P$42)+E3_Consommateurs!$K18*(E3_Consommateurs!$K21=P$42)*E3_Consommateurs!$K20","v":0},{"$f":"E3_Consommateurs!$K18*(E3_Consommateurs!$K21<Q$42)+E3_Consommateurs!$K18*(E3_Consommateurs!$K21=Q$42)*E3_Consommateurs!$K20","v":0},{"$f":"E3_Consommateurs!$K18*(E3_Consommateurs!$K21<R$42)+E3_Consommateurs!$K18*(E3_Consommateurs!$K21=R$42)*E3_Consommateurs!$K20","v":0},{"$f":"E3_Consommateurs!$K18*(E3_Consommateurs!$K21<S$42)+E3_Consommateurs!$K18*(E3_Consommateurs!$K21=S$42)*E3_Consommateurs!$K20","v":0}]
[null,0,"[MWh/an]",{"$f":"E3_Consommateurs!$L18*(E3_Consommateurs!$L21<D$42)+E3_Consommateurs!$L18*(E3_Consommateurs!$L21=D$42)*E3_Consommateurs!$L20","v":0},{"$f":"E3_Consommateurs!$L18*(E3_Consommateurs!$L21<E$42)+E3_Consommateurs!$L18*(E3_Consommateurs!$L21=E$42)*E3_Consommateurs!$L20","v":0},{"$f":"E3_Consommateurs!$L18*(E3_Consommateurs!$L21<F$42)+E3_Consommateurs!$L18*(E3_Consommateurs!$L21=F$42)*E3_Consommateurs!$L20","v":0},{"$f":"E3_Consommateurs!$L18*(E3_Consommateurs!$L21<G$42)+E3_Consommateurs!$L18*(E3_Consommateurs!$L21=G$42)*E3_Consommateurs!$L20","v":0},{"$f":"E3_Consommateurs!$L18*(E3_Consommateurs!$L21<H$42)+E3_Consommateurs!$L18*(E3_Consommateurs!$L21=H$42)*E3_Consommateurs!$L20","v":0},{"$f":"E3_Consommateurs!$L18*(E3_Consommateurs!$L21<I$42)+E3_Consommateurs!$L18*(E3_Consommateurs!$L21=I$42)*E3_Consommateurs!$L20","v":0},{"$f":"E3_Consommateurs!$L18*(E3_Consommateurs!$L21<J$42)+E3_Consommateurs!$L18*(E3_Consommateurs!$L21=J$42)*E3_Consommateurs!$L20","v":0},{"$f":"E3_Consommateurs!$L18*(E3_Consommateurs!$L21<K$42)+E3_Consommateurs!$L18*(E3_Consommateurs!$L21=K$42)*E3_Consommateurs!$L20","v":0},{"$f":"E3_Consommateurs!$L18*(E3_Consommateurs!$L21<L$42)+E3_Consommateurs!$L18*(E3_Consommateurs!$L21=L$42)*E3_Consommateurs!$L20","v":0},{"$f":"E3_Consommateurs!$L18*(E3_Consommateurs!$L21<M$42)+E3_Consommateurs!$L18*(E3_Consommateurs!$L21=M$42)*E3_Consommateurs!$L20","v":0},{"$f":"E3_Consommateurs!$L18*(E3_Consommateurs!$L21<N$42)+E3_Consommateurs!$L18*(E3_Consommateurs!$L21=N$42)*E3_Consommateurs!$L20","v":0},{"$f":"E3_Consommateurs!$L18*(E3_Consommateurs!$L21<O$42)+E3_Consommateurs!$L18*(E3_Consommateurs!$L21=O$42)*E3_Consommateurs!$L20","v":0},{"$f":"E3_Consommateurs!$L18*(E3_Consommateurs!$L21<P$42)+E3_Consommateurs!$L18*(E3_Consommateurs!$L21=P$42)*E3_Consommateurs!$L20","v":0},{"$f":"E3_Consommateurs!$L18*(E3_Consommateurs!$L21<Q$42)+E3_Consommateurs!$L18*(E3_Consommateurs!$L21=Q$42)*E3_Consommateurs!$L20","v":0},{"$f":"E3_Consommateurs!$L18*(E3_Consommateurs!$L21<R$42)+E3_Consommateurs!$L18*(E3_Consommateurs!$L21=R$42)*E3_Consommateurs!$L20","v":0},{"$f":"E3_Consommateurs!$L18*(E3_Consommateurs!$L21<S$42)+E3_Consommateurs!$L18*(E3_Consommateurs!$L21=S$42)*E3_Consommateurs!$L20","v":0}]
[null,0,"[MWh/an]",{"$f":"E3_Consommateurs!$M18*(E3_Consommateurs!$M21<D$42)+E3_Consommateurs!$M18*(E3_Consommateurs!$M21=D$42)*E3_Consommateurs!$M20","v":0},{"$f":"E3_Consommateurs!$M18*(E3_Consommateurs!$M21<E$42)+E3_Consommateurs!$M18*(E3_Consommateurs!$M21=E$42)*E3_Consommateurs!$M20","v":0},{"$f":"E3_Consommateurs!$M18*(E3_Consommateurs!$M21<F$42)+E3_Consommateurs!$M18*(E3_Consommateurs!$M21=F$42)*E3_Consommateurs!$M20","v":0},{"$f":"E3_Consommateurs!$M18*(E3_Consommateurs!$M21<G$42)+E3_Consommateurs!$M18*(E3_Consommateurs!$M21=G$42)*E3_Consommateurs!$M20","v":0},{"$f":"E3_Consommateurs!$M18*(E3_Consommateurs!$M21<H$42)+E3_Consommateurs!$M18*(E3_Consommateurs!$M21=H$42)*E3_Consommateurs!$M20","v":0},{"$f":"E3_Consommateurs!$M18*(E3_Consommateurs!$M21<I$42)+E3_Consommateurs!$M18*(E3_Consommateurs!$M21=I$42)*E3_Consommateurs!$M20","v":0},{"$f":"E3_Consommateurs!$M18*(E3_Consommateurs!$M21<J$42)+E3_Consommateurs!$M18*(E3_Consommateurs!$M21=J$42)*E3_Consommateurs!$M20","v":0},{"$f":"E3_Consommateurs!$M18*(E3_Consommateurs!$M21<K$42)+E3_Consommateurs!$M18*(E3_Consommateurs!$M21=K$42)*E3_Consommateurs!$M20","v":0},{"$f":"E3_Consommateurs!$M18*(E3_Consommateurs!$M21<L$42)+E3_Consommateurs!$M18*(E3_Consommateurs!$M21=L$42)*E3_Consommateurs!$M20","v":0},{"$f":"E3_Consommateurs!$M18*(E3_Consommateurs!$M21<M$42)+E3_Consommateurs!$M18*(E3_Consommateurs!$M21=M$42)*E3_Consommateurs!$M20","v":0},{"$f":"E3_Consommateurs!$M18*(E3_Consommateurs!$M21<N$42)+E3_Consommateurs!$M18*(E3_Consommateurs!$M21=N$42)*E3_Consommateurs!$M20","v":0},{"$f":"E3_Consommateurs!$M18*(E3_Consommateurs!$M21<O$42)+E3_Consommateurs!$M18*(E3_Consommateurs!$M21=O$42)*E3_Consommateurs!$M20","v":0},{"$f":"E3_Consommateurs!$M18*(E3_Consommateurs!$M21<P$42)+E3_Consommateurs!$M18*(E3_Consommateurs!$M21=P$42)*E3_Consommateurs!$M20","v":0},{"$f":"E3_Consommateurs!$M18*(E3_Consommateurs!$M21<Q$42)+E3_Consommateurs!$M18*(E3_Consommateurs!$M21=Q$42)*E3_Consommateurs!$M20","v":0},{"$f":"E3_Consommateurs!$M18*(E3_Consommateurs!$M21<R$42)+E3_Consommateurs!$M18*(E3_Consommateurs!$M21=R$42)*E3_Consommateurs!$M20","v":0},{"$f":"E3_Consommateurs!$M18*(E3_Consommateurs!$M21<S$42)+E3_Consommateurs!$M18*(E3_Consommateurs!$M21=S$42)*E3_Consommateurs!$M20","v":0}]
[null,0,"[MWh/an]",{"$f":"E3_Consommateurs!$N18*(E3_Consommateurs!$N21<D$42)+E3_Consommateurs!$N18*(E3_Consommateurs!$N21=D$42)*E3_Consommateurs!$N20","v":0},{"$f":"E3_Consommateurs!$N18*(E3_Consommateurs!$N21<E$42)+E3_Consommateurs!$N18*(E3_Consommateurs!$N21=E$42)*E3_Consommateurs!$N20","v":0},{"$f":"E3_Consommateurs!$N18*(E3_Consommateurs!$N21<F$42)+E3_Consommateurs!$N18*(E3_Consommateurs!$N21=F$42)*E3_Consommateurs!$N20","v":0},{"$f":"E3_Consommateurs!$N18*(E3_Consommateurs!$N21<G$42)+E3_Consommateurs!$N18*(E3_Consommateurs!$N21=G$42)*E3_Consommateurs!$N20","v":0},{"$f":"E3_Consommateurs!$N18*(E3_Consommateurs!$N21<H$42)+E3_Consommateurs!$N18*(E3_Consommateurs!$N21=H$42)*E3_Consommateurs!$N20","v":0},{"$f":"E3_Consommateurs!$N18*(E3_Consommateurs!$N21<I$42)+E3_Consommateurs!$N18*(E3_Consommateurs!$N21=I$42)*E3_Consommateurs!$N20","v":0},{"$f":"E3_Consommateurs!$N18*(E3_Consommateurs!$N21<J$42)+E3_Consommateurs!$N18*(E3_Consommateurs!$N21=J$42)*E3_Consommateurs!$N20","v":0},{"$f":"E3_Consommateurs!$N18*(E3_Consommateurs!$N21<K$42)+E3_Consommateurs!$N18*(E3_Consommateurs!$N21=K$42)*E3_Consommateurs!$N20","v":0},{"$f":"E3_Consommateurs!$N18*(E3_Consommateurs!$N21<L$42)+E3_Consommateurs!$N18*(E3_Consommateurs!$N21=L$42)*E3_Consommateurs!$N20","v":0},{"$f":"E3_Consommateurs!$N18*(E3_Consommateurs!$N21<M$42)+E3_Consommateurs!$N18*(E3_Consommateurs!$N21=M$42)*E3_Consommateurs!$N20","v":0},{"$f":"E3_Consommateurs!$N18*(E3_Consommateurs!$N21<N$42)+E3_Consommateurs!$N18*(E3_Consommateurs!$N21=N$42)*E3_Consommateurs!$N20","v":0},{"$f":"E3_Consommateurs!$N18*(E3_Consommateurs!$N21<O$42)+E3_Consommateurs!$N18*(E3_Consommateurs!$N21=O$42)*E3_Consommateurs!$N20","v":0},{"$f":"E3_Consommateurs!$N18*(E3_Consommateurs!$N21<P$42)+E3_Consommateurs!$N18*(E3_Consommateurs!$N21=P$42)*E3_Consommateurs!$N20","v":0},{"$f":"E3_Consommateurs!$N18*(E3_Consommateurs!$N21<Q$42)+E3_Consommateurs!$N18*(E3_Consommateurs!$N21=Q$42)*E3_Consommateurs!$N20","v":0},{"$f":"E3_Consommateurs!$N18*(E3_Consommateurs!$N21<R$42)+E3_Consommateurs!$N18*(E3_Consommateurs!$N21=R$42)*E3_Consommateurs!$N20","v":0},{"$f":"E3_Consommateurs!$N18*(E3_Consommateurs!$N21<S$42)+E3_Consommateurs!$N18*(E3_Consommateurs!$N21=S$42)*E3_Consommateurs!$N20","v":0}]
[null,0,"[MWh/an]",{"$f":"E3_Consommateurs!$O18*(E3_Consommateurs!$O21<D$42)+E3_Consommateurs!$O18*(E3_Consommateurs!$O21=D$42)*E3_Consommateurs!$O20","v":0},{"$f":"E3_Consommateurs!$O18*(E3_Consommateurs!$O21<E$42)+E3_Consommateurs!$O18*(E3_Consommateurs!$O21=E$42)*E3_Consommateurs!$O20","v":0},{"$f":"E3_Consommateurs!$O18*(E3_Consommateurs!$O21<F$42)+E3_Consommateurs!$O18*(E3_Consommateurs!$O21=F$42)*E3_Consommateurs!$O20","v":0},{"$f":"E3_Consommateurs!$O18*(E3_Consommateurs!$O21<G$42)+E3_Consommateurs!$O18*(E3_Consommateurs!$O21=G$42)*E3_Consommateurs!$O20","v":0},{"$f":"E3_Consommateurs!$O18*(E3_Consommateurs!$O21<H$42)+E3_Consommateurs!$O18*(E3_Consommateurs!$O21=H$42)*E3_Consommateurs!$O20","v":0},{"$f":"E3_Consommateurs!$O18*(E3_Consommateurs!$O21<I$42)+E3_Consommateurs!$O18*(E3_Consommateurs!$O21=I$42)*E3_Consommateurs!$O20","v":0},{"$f":"E3_Consommateurs!$O18*(E3_Consommateurs!$O21<J$42)+E3_Consommateurs!$O18*(E3_Consommateurs!$O21=J$42)*E3_Consommateurs!$O20","v":0},{"$f":"E3_Consommateurs!$O18*(E3_Consommateurs!$O21<K$42)+E3_Consommateurs!$O18*(E3_Consommateurs!$O21=K$42)*E3_Consommateurs!$O20","v":0},{"$f":"E3_Consommateurs!$O18*(E3_Consommateurs!$O21<L$42)+E3_Consommateurs!$O18*(E3_Consommateurs!$O21=L$42)*E3_Consommateurs!$O20","v":0},{"$f":"E3_Consommateurs!$O18*(E3_Consommateurs!$O21<M$42)+E3_Consommateurs!$O18*(E3_Consommateurs!$O21=M$42)*E3_Consommateurs!$O20","v":0},{"$f":"E3_Consommateurs!$O18*(E3_Consommateurs!$O21<N$42)+E3_Consommateurs!$O18*(E3_Consommateurs!$O21=N$42)*E3_Consommateurs!$O20","v":0},{"$f":"E3_Consommateurs!$O18*(E3_Consommateurs!$O21<O$42)+E3_Consommateurs!$O18*(E3_Consommateurs!$O21=O$42)*E3_Consommateurs!$O20","v":0},{"$f":"E3_Consommateurs!$O18*(E3_Consommateurs!$O21<P$42)+E3_Consommateurs!$O18*(E3_Consommateurs!$O21=P$42)*E3_Consommateurs!$O20","v":0},{"$f":"E3_Consommateurs!$O18*(E3_Consommateurs!$O21<Q$42)+E3_Consommateurs!$O18*(E3_Consommateurs!$O21=Q$42)*E3_Consommateurs!$O20","v":0},{"$f":"E3_Consommateurs!$O18*(E3_Consommateurs!$O21<R$42)+E3_Consommateurs!$O18*(E3_Consommateurs!$O21=R$42)*E3_Consommateurs!$O20","v":0},{"$f":"E3_Consommateurs!$O18*(E3_Consommateurs!$O21<S$42)+E3_Consommateurs!$O18*(E3_Consommateurs!$O21=S$42)*E3_Consommateurs!$O20","v":0}]
[null,0,"[MWh/an]",{"$f":"E3_Consommateurs!$P18*(E3_Consommateurs!$P21<D$42)+E3_Consommateurs!$P18*(E3_Consommateurs!$P21=D$42)*E3_Consommateurs!$P20","v":0},{"$f":"E3_Consommateurs!$P18*(E3_Consommateurs!$P21<E$42)+E3_Consommateurs!$P18*(E3_Consommateurs!$P21=E$42)*E3_Consommateurs!$P20","v":0},{"$f":"E3_Consommateurs!$P18*(E3_Consommateurs!$P21<F$42)+E3_Consommateurs!$P18*(E3_Consommateurs!$P21=F$42)*E3_Consommateurs!$P20","v":0},{"$f":"E3_Consommateurs!$P18*(E3_Consommateurs!$P21<G$42)+E3_Consommateurs!$P18*(E3_Consommateurs!$P21=G$42)*E3_Consommateurs!$P20","v":0},{"$f":"E3_Consommateurs!$P18*(E3_Consommateurs!$P21<H$42)+E3_Consommateurs!$P18*(E3_Consommateurs!$P21=H$42)*E3_Consommateurs!$P20","v":0},{"$f":"E3_Consommateurs!$P18*(E3_Consommateurs!$P21<I$42)+E3_Consommateurs!$P18*(E3_Consommateurs!$P21=I$42)*E3_Consommateurs!$P20","v":0},{"$f":"E3_Consommateurs!$P18*(E3_Consommateurs!$P21<J$42)+E3_Consommateurs!$P18*(E3_Consommateurs!$P21=J$42)*E3_Consommateurs!$P20","v":0},{"$f":"E3_Consommateurs!$P18*(E3_Consommateurs!$P21<K$42)+E3_Consommateurs!$P18*(E3_Consommateurs!$P21=K$42)*E3_Consommateurs!$P20","v":0},{"$f":"E3_Consommateurs!$P18*(E3_Consommateurs!$P21<L$42)+E3_Consommateurs!$P18*(E3_Consommateurs!$P21=L$42)*E3_Consommateurs!$P20","v":0},{"$f":"E3_Consommateurs!$P18*(E3_Consommateurs!$P21<M$42)+E3_Consommateurs!$P18*(E3_Consommateurs!$P21=M$42)*E3_Consommateurs!$P20","v":0},{"$f":"E3_Consommateurs!$P18*(E3_Consommateurs!$P21<N$42)+E3_Consommateurs!$P18*(E3_Consommateurs!$P21=N$42)*E3_Consommateurs!$P20","v":0},{"$f":"E3_Consommateurs!$P18*(E3_Consommateurs!$P21<O$42)+E3_Consommateurs!$P18*(E3_Consommateurs!$P21=O$42)*E3_Consommateurs!$P20","v":0},{"$f":"E3_Consommateurs!$P18*(E3_Consommateurs!$P21<P$42)+E3_Consommateurs!$P18*(E3_Consommateurs!$P21=P$42)*E3_Consommateurs!$P20","v":0},{"$f":"E3_Consommateurs!$P18*(E3_Consommateurs!$P21<Q$42)+E3_Consommateurs!$P18*(E3_Consommateurs!$P21=Q$42)*E3_Consommateurs!$P20","v":0},{"$f":"E3_Consommateurs!$P18*(E3_Consommateurs!$P21<R$42)+E3_Consommateurs!$P18*(E3_Consommateurs!$P21=R$42)*E3_Consommateurs!$P20","v":0},{"$f":"E3_Consommateurs!$P18*(E3_Consommateurs!$P21<S$42)+E3_Consommateurs!$P18*(E3_Consommateurs!$P21=S$42)*E3_Consommateurs!$P20","v":0}]
[null,0,"[MWh/an]",{"$f":"E3_Consommateurs!$Q18*(E3_Consommateurs!$Q21<D$42)+E3_Consommateurs!$Q18*(E3_Consommateurs!$Q21=D$42)*E3_Consommateurs!$Q20","v":0},{"$f":"E3_Consommateurs!$Q18*(E3_Consommateurs!$Q21<E$42)+E3_Consommateurs!$Q18*(E3_Consommateurs!$Q21=E$42)*E3_Consommateurs!$Q20","v":0},{"$f":"E3_Consommateurs!$Q18*(E3_Consommateurs!$Q21<F$42)+E3_Consommateurs!$Q18*(E3_Consommateurs!$Q21=F$42)*E3_Consommateurs!$Q20","v":0},{"$f":"E3_Consommateurs!$Q18*(E3_Consommateurs!$Q21<G$42)+E3_Consommateurs!$Q18*(E3_Consommateurs!$Q21=G$42)*E3_Consommateurs!$Q20","v":0},{"$f":"E3_Consommateurs!$Q18*(E3_Consommateurs!$Q21<H$42)+E3_Consommateurs!$Q18*(E3_Consommateurs!$Q21=H$42)*E3_Consommateurs!$Q20","v":0},{"$f":"E3_Consommateurs!$Q18*(E3_Consommateurs!$Q21<I$42)+E3_Consommateurs!$Q18*(E3_Consommateurs!$Q21=I$42)*E3_Consommateurs!$Q20","v":0},{"$f":"E3_Consommateurs!$Q18*(E3_Consommateurs!$Q21<J$42)+E3_Consommateurs!$Q18*(E3_Consommateurs!$Q21=J$42)*E3_Consommateurs!$Q20","v":0},{"$f":"E3_Consommateurs!$Q18*(E3_Consommateurs!$Q21<K$42)+E3_Consommateurs!$Q18*(E3_Consommateurs!$Q21=K$42)*E3_Consommateurs!$Q20","v":0},{"$f":"E3_Consommateurs!$Q18*(E3_Consommateurs!$Q21<L$42)+E3_Consommateurs!$Q18*(E3_Consommateurs!$Q21=L$42)*E3_Consommateurs!$Q20","v":0},{"$f":"E3_Consommateurs!$Q18*(E3_Consommateurs!$Q21<M$42)+E3_Consommateurs!$Q18*(E3_Consommateurs!$Q21=M$42)*E3_Consommateurs!$Q20","v":0},{"$f":"E3_Consommateurs!$Q18*(E3_Consommateurs!$Q21<N$42)+E3_Consommateurs!$Q18*(E3_Consommateurs!$Q21=N$42)*E3_Consommateurs!$Q20","v":0},{"$f":"E3_Consommateurs!$Q18*(E3_Consommateurs!$Q21<O$42)+E3_Consommateurs!$Q18*(E3_Consommateurs!$Q21=O$42)*E3_Consommateurs!$Q20","v":0},{"$f":"E3_Consommateurs!$Q18*(E3_Consommateurs!$Q21<P$42)+E3_Consommateurs!$Q18*(E3_Consommateurs!$Q21=P$42)*E3_Consommateurs!$Q20","v":0},{"$f":"E3_Consommateurs!$Q18*(E3_Consommateurs!$Q21<Q$42)+E3_Consommateurs!$Q18*(E3_Consommateurs!$Q21=Q$42)*E3_Consommateurs!$Q20","v":0},{"$f":"E3_Consommateurs!$Q18*(E3_Consommateurs!$Q21<R$42)+E3_Consommateurs!$Q18*(E3_Consommateurs!$Q21=R$42)*E3_Consommateurs!$Q20","v":0},{"$f":"E3_Consommateurs!$Q18*(E3_Consommateurs!$Q21<S$42)+E3_Consommateurs!$Q18*(E3_Consommateurs!$Q21=S$42)*E3_Consommateurs!$Q20","v":0}]
[null,0,"[MWh/an]",{"$f":"E3_Consommateurs!$R18*(E3_Consommateurs!$R21<D$42)+E3_Consommateurs!$R18*(E3_Consommateurs!$R21=D$42)*E3_Consommateurs!$R20","v":0},{"$f":"E3_Consommateurs!$R18*(E3_Consommateurs!$R21<E$42)+E3_Consommateurs!$R18*(E3_Consommateurs!$R21=E$42)*E3_Consommateurs!$R20","v":0},{"$f":"E3_Consommateurs!$R18*(E3_Consommateurs!$R21<F$42)+E3_Consommateurs!$R18*(E3_Consommateurs!$R21=F$42)*E3_Consommateurs!$R20","v":0},{"$f":"E3_Consommateurs!$R18*(E3_Consommateurs!$R21<G$42)+E3_Consommateurs!$R18*(E3_Consommateurs!$R21=G$42)*E3_Consommateurs!$R20","v":0},{"$f":"E3_Consommateurs!$R18*(E3_Consommateurs!$R21<H$42)+E3_Consommateurs!$R18*(E3_Consommateurs!$R21=H$42)*E3_Consommateurs!$R20","v":0},{"$f":"E3_Consommateurs!$R18*(E3_Consommateurs!$R21<I$42)+E3_Consommateurs!$R18*(E3_Consommateurs!$R21=I$42)*E3_Consommateurs!$R20","v":0},{"$f":"E3_Consommateurs!$R18*(E3_Consommateurs!$R21<J$42)+E3_Consommateurs!$R18*(E3_Consommateurs!$R21=J$42)*E3_Consommateurs!$R20","v":0},{"$f":"E3_Consommateurs!$R18*(E3_Consommateurs!$R21<K$42)+E3_Consommateurs!$R18*(E3_Consommateurs!$R21=K$42)*E3_Consommateurs!$R20","v":0},{"$f":"E3_Consommateurs!$R18*(E3_Consommateurs!$R21<L$42)+E3_Consommateurs!$R18*(E3_Consommateurs!$R21=L$42)*E3_Consommateurs!$R20","v":0},{"$f":"E3_Consommateurs!$R18*(E3_Consommateurs!$R21<M$42)+E3_Consommateurs!$R18*(E3_Consommateurs!$R21=M$42)*E3_Consommateurs!$R20","v":0},{"$f":"E3_Consommateurs!$R18*(E3_Consommateurs!$R21<N$42)+E3_Consommateurs!$R18*(E3_Consommateurs!$R21=N$42)*E3_Consommateurs!$R20","v":0},{"$f":"E3_Consommateurs!$R18*(E3_Consommateurs!$R21<O$42)+E3_Consommateurs!$R18*(E3_Consommateurs!$R21=O$42)*E3_Consommateurs!$R20","v":0},{"$f":"E3_Consommateurs!$R18*(E3_Consommateurs!$R21<P$42)+E3_Consommateurs!$R18*(E3_Consommateurs!$R21=P$42)*E3_Consommateurs!$R20","v":0},{"$f":"E3_Consommateurs!$R18*(E3_Consommateurs!$R21<Q$42)+E3_Consommateurs!$R18*(E3_Consommateurs!$R21=Q$42)*E3_Consommateurs!$R20","v":0},{"$f":"E3_Consommateurs!$R18*(E3_Consommateurs!$R21<R$42)+E3_Consommateurs!$R18*(E3_Consommateurs!$R21=R$42)*E3_Consommateurs!$R20","v":0},{"$f":"E3_Consommateurs!$R18*(E3_Consommateurs!$R21<S$42)+E3_Consommateurs!$R18*(E3_Consommateurs!$R21=S$42)*E3_Consommateurs!$R20","v":0}]
[null,"Consommation d’électricité centrale de chaleur à distance"]
[922,"Consommation d’électricité totale par an","[MWh/an]",{"$f":"VLOOKUP('A2_Données VAN'!D42,B1_Calculs!$B$36:$C$60,2)*Eing_Spez_Stromverbrauch/100","v":0},{"$f":"VLOOKUP('A2_Données VAN'!E42,B1_Calculs!$B$36:$C$60,2)*Eing_Spez_Stromverbrauch/100","v":0},{"$f":"VLOOKUP('A2_Données VAN'!F42,B1_Calculs!$B$36:$C$60,2)*Eing_Spez_Stromverbrauch/100","v":0},{"$f":"VLOOKUP('A2_Données VAN'!G42,B1_Calculs!$B$36:$C$60,2)*Eing_Spez_Stromverbrauch/100","v":0},{"$f":"VLOOKUP('A2_Données VAN'!H42,B1_Calculs!$B$36:$C$60,2)*Eing_Spez_Stromverbrauch/100","v":0},{"$f":"VLOOKUP('A2_Données VAN'!I42,B1_Calculs!$B$36:$C$60,2)*Eing_Spez_Stromverbrauch/100","v":0},{"$f":"VLOOKUP('A2_Données VAN'!J42,B1_Calculs!$B$36:$C$60,2)*Eing_Spez_Stromverbrauch/100","v":0},{"$f":"VLOOKUP('A2_Données VAN'!K42,B1_Calculs!$B$36:$C$60,2)*Eing_Spez_Stromverbrauch/100","v":0},{"$f":"VLOOKUP('A2_Données VAN'!L42,B1_Calculs!$B$36:$C$60,2)*Eing_Spez_Stromverbrauch/100","v":0},{"$f":"VLOOKUP('A2_Données VAN'!M42,B1_Calculs!$B$36:$C$60,2)*Eing_Spez_Stromverbrauch/100","v":0},{"$f":"VLOOKUP('A2_Données VAN'!N42,B1_Calculs!$B$36:$C$60,2)*Eing_Spez_Stromverbrauch/100","v":0},{"$f":"VLOOKUP('A2_Données VAN'!O42,B1_Calculs!$B$36:$C$60,2)*Eing_Spez_Stromverbrauch/100","v":0},{"$f":"VLOOKUP('A2_Données VAN'!P42,B1_Calculs!$B$36:$C$60,2)*Eing_Spez_Stromverbrauch/100","v":0},{"$f":"VLOOKUP('A2_Données VAN'!Q42,B1_Calculs!$B$36:$C$60,2)*Eing_Spez_Stromverbrauch/100","v":0},{"$f":"VLOOKUP('A2_Données VAN'!R42,B1_Calculs!$B$36:$C$60,2)*Eing_Spez_Stromverbrauch/100","v":0},{"$f":"VLOOKUP('A2_Données VAN'!S42,B1_Calculs!$B$36:$C$60,2)*Eing_Spez_Stromverbrauch/100","v":0}]
[null,"Onglet Rentabilité ; Activité de projet",null,{"$f":"Eing_Beginnjahr","v":0},{"$f":"D62+1","v":1},{"$f":"E62+1","v":2},3,4,5,6,7,8,9,10,11,12,13,14,15,16,17,{"$f":"U62+1","v":18}]
[null,"Dépenses"]
[null,"Investissements et investissements de remplacement ","[CHF/an]"]
[923,"Réseau de chaleur à distance (40 ans)","[CHF/an]",{"$f":"(VLOOKUP('A2_Données VAN'!D$62,B1_Calculs!$B$36:$Z$60,23)*SUM('E1_Données de projet'!$D$52,'E1_Données de projet'!$D$54,'E1_Données de projet'!$D$55)/Gesamtinvestition)","v":{"$error":"#DIV/0!"}},{"$f":"(VLOOKUP('A2_Données VAN'!E$62,B1_Calculs!$B$36:$Z$60,23)*SUM('E1_Données de projet'!$D$52,'E1_Données de projet'!$D$54,'E1_Données de projet'!$D$55)/Gesamtinvestition)","v":{"$error":"#DIV/0!"}},{"$f":"(VLOOKUP('A2_Données VAN'!F$62,B1_Calculs!$B$36:$Z$60,23)*SUM('E1_Données de projet'!$D$52,'E1_Données de projet'!$D$54,'E1_Données de projet'!$D$55)/Gesamtinvestition)","v":{"$error":"#DIV/0!"}},{"$f":"(VLOOKUP('A2_Données VAN'!G$62,B1_Calculs!$B$36:$Z$60,23)*SUM('E1_Données de projet'!$D$52,'E1_Données de projet'!$D$54,'E1_Données de projet'!$D$55)/Gesamtinvestition)","v":{"$error":"#DIV/0!"}},{"$f":"(VLOOKUP('A2_Données VAN'!H$62,B1_Calculs!$B$36:$Z$60,23)*SUM('E1_Données de projet'!$D$52,'E1_Données de projet'!$D$54,'E1_Données de projet'!$D$55)/Gesamtinvestition)","v":{"$error":"#DIV/0!"}},{"$f":"(VLOOKUP('A2_Données VAN'!I$62,B1_Calculs!$B$36:$Z$60,23)*SUM('E1_Données de projet'!$D$52,'E1_Données de projet'!$D$54,'E1_Données de projet'!$D$55)/Gesamtinvestition)","v":{"$error":"#DIV/0!"}},{"$f":"(VLOOKUP('A2_Données VAN'!J$62,B1_Calculs!$B$36:$Z$60,23)*SUM('E1_Données de projet'!$D$52,'E1_Données de projet'!$D$54,'E1_Données de projet'!$D$55)/Gesamtinvestition)","v":{"$error":"#DIV/0!"}},{"$f":"(VLOOKUP('A2_Données VAN'!K$62,B1_Calculs!$B$36:$Z$60,23)*SUM('E1_Données de projet'!$D$52,'E1_Données de projet'!$D$54,'E1_Données de projet'!$D$55)/Gesamtinvestition)","v":{"$error":"#DIV/0!"}},{"$f":"(VLOOKUP('A2_Données VAN'!L$62,B1_Calculs!$B$36:$Z$60,23)*SUM('E1_Données de projet'!$D$52,'E1_Données de projet'!$D$54,'E1_Données de projet'!$D$55)/Gesamtinvestition)","v":{"$error":"#DIV/0!"}},{"$f":"(VLOOKUP('A2_Données VAN'!M$62,B1_Calculs!$B$36:$Z$60,23)*SUM('E1_Données de projet'!$D$52,'E1_Données de projet'!$D$54,'E1_Données de projet'!$D$55)/Gesamtinvestition)","v":{"$error":"#DIV/0!"}},{"$f":"(VLOOKUP('A2_Données VAN'!N$62,B1_Calculs!$B$36:$Z$60,23)*SUM('E1_Données de projet'!$D$52,'E1_Données de projet'!$D$54,'E1_Données de projet'!$D$55)/Gesamtinvestition)","v":{"$error":"#DIV/0!"}},{"$f":"(VLOOKUP('A2_Données VAN'!O$62,B1_Calculs!$B$36:$Z$60,23)*SUM('E1_Données de projet'!$D$52,'E1_Données de projet'!$D$54,'E1_Données de projet'!$D$55)/Gesamtinvestition)","v":{"$error":"#DIV/0!"}},{"$f":"(VLOOKUP('A2_Données VAN'!P$62,B1_Calculs!$B$36:$Z$60,23)*SUM('E1_Données de projet'!$D$52,'E1_Données de projet'!$D$54,'E1_Données de projet'!$D$55)/Gesamtinvestition)","v":{"$error":"#DIV/0!"}},{"$f":"(VLOOKUP('A2_Données VAN'!Q$62,B1_Calculs!$B$36:$Z$60,23)*SUM('E1_Données de projet'!$D$52,'E1_Données de projet'!$D$54,'E1_Données de projet'!$D$55)/Gesamtinvestition)","v":{"$error":"#DIV/0!"}},{"$f":"(VLOOKUP('A2_Données VAN'!R$62,B1_Calculs!$B$36:$Z$60,23)*SUM('E1_Données de projet'!$D$52,'E1_Données de projet'!$D$54,'E1_Données de projet'!$D$55)/Gesamtinvestition)","v":{"$error":"#DIV/0!"}},{"$f":"(VLOOKUP('A2_Données VAN'!S$62,B1_Calculs!$B$36:$Z$60,23)*SUM('E1_Données de projet'!$D$52,'E1_Données de projet'!$D$54,'E1_Données de projet'!$D$55)/Gesamtinvestition)","v":{"$error":"#DIV/0!"}},{"$f":"(VLOOKUP('A2_Données VAN'!T$62,B1_Calculs!$B$36:$Z$60,23)*SUM('E1_Données de projet'!$D$52,'E1_Données de projet'!$D$54,'E1_Données de projet'!$D$55)/Gesamtinvestition)","v":{"$error":"#DIV/0!"}},{"$f":"(VLOOKUP('A2_Données VAN'!U$62,B1_Calculs!$B$36:$Z$60,23)*SUM('E1_Données de projet'!$D$52,'E1_Données de projet'!$D$54,'E1_Données de projet'!$D$55)/Gesamtinvestition)","v":{"$error":"#DIV/0!"}},{"$f":"(VLOOKUP('A2_Données VAN'!V$62,B1_Calculs!$B$36:$Z$60,23)*SUM('E1_Données de projet'!$D$52,'E1_Données de projet'!$D$54,'E1_Données de projet'!$D$55)/Gesamtinvestition)","v":{"$error":"#DIV/0!"}}]
[924,"Centrale de chauffage resp. systèmes de chaleur décentralisés (15 ans)","[CHF/an]",{"$f":"(VLOOKUP('A2_Données VAN'!D$62,B1_Calculs!$B$36:$Z$60,23)-D65)","v":{"$error":"#DIV/0!"}},{"$f":"(VLOOKUP('A2_Données VAN'!E$62,B1_Calculs!$B$36:$Z$60,23)-E65)","v":{"$error":"#DIV/0!"}},{"$f":"(VLOOKUP('A2_Données VAN'!F$62,B1_Calculs!$B$36:$Z$60,23)-F65)","v":{"$error":"#DIV/0!"}},{"$f":"(VLOOKUP('A2_Données VAN'!G$62,B1_Calculs!$B$36:$Z$60,23)-G65)","v":{"$error":"#DIV/0!"}},{"$f":"(VLOOKUP('A2_Données VAN'!H$62,B1_Calculs!$B$36:$Z$60,23)-H65)","v":{"$error":"#DIV/0!"}},{"$f":"(VLOOKUP('A2_Données VAN'!I$62,B1_Calculs!$B$36:$Z$60,23)-I65)","v":{"$error":"#DIV/0!"}},{"$f":"(VLOOKUP('A2_Données VAN'!J$62,B1_Calculs!$B$36:$Z$60,23)-J65)","v":{"$error":"#DIV/0!"}},{"$f":"(VLOOKUP('A2_Données VAN'!K$62,B1_Calculs!$B$36:$Z$60,23)-K65)","v":{"$error":"#DIV/0!"}},{"$f":"(VLOOKUP('A2_Données VAN'!L$62,B1_Calculs!$B$36:$Z$60,23)-L65)","v":{"$error":"#DIV/0!"}},{"$f":"(VLOOKUP('A2_Données VAN'!M$62,B1_Calculs!$B$36:$Z$60,23)-M65)","v":{"$error":"#DIV/0!"}},{"$f":"(VLOOKUP('A2_Données VAN'!N$62,B1_Calculs!$B$36:$Z$60,23)-N65)","v":{"$error":"#DIV/0!"}},{"$f":"(VLOOKUP('A2_Données VAN'!O$62,B1_Calculs!$B$36:$Z$60,23)-O65)","v":{"$error":"#DIV/0!"}},{"$f":"(VLOOKUP('A2_Données VAN'!P$62,B1_Calculs!$B$36:$Z$60,23)-P65)","v":{"$error":"#DIV/0!"}},{"$f":"(VLOOKUP('A2_Données VAN'!Q$62,B1_Calculs!$B$36:$Z$60,23)-Q65)","v":{"$error":"#DIV/0!"}},{"$f":"(VLOOKUP('A2_Données VAN'!R$62,B1_Calculs!$B$36:$Z$60,23)-R65)","v":{"$error":"#DIV/0!"}},{"$f":"(VLOOKUP('A2_Données VAN'!S$62,B1_Calculs!$B$36:$Z$60,23)-S65)","v":{"$error":"#DIV/0!"}},{"$f":"(VLOOKUP('A2_Données VAN'!T$62,B1_Calculs!$B$36:$Z$60,23)-T65)","v":{"$error":"#DIV/0!"}},{"$f":"(VLOOKUP('A2_Données VAN'!U$62,B1_Calculs!$B$36:$Z$60,23)-U65)","v":{"$error":"#DIV/0!"}},{"$f":"(VLOOKUP('A2_Données VAN'!V$62,B1_Calculs!$B$36:$Z$60,23)-V65)","v":{"$error":"#DIV/0!"}}]
[null,"Valeur résiduelle réseau de chaleur à distance","[CHF]",{"$f":"IF(D62='E1_Données de projet'!$D$22+15,-VLOOKUP(D62,B1_Calculs!$B$36:$AH$60,31),\"\")","v":""},{"$f":"IF(E62='E1_Données de projet'!$D$22+15,-VLOOKUP(E62,B1_Calculs!$B$36:$AH$60,31),\"\")","v":""},{"$f":"IF(F62='E1_Données de projet'!$D$22+15,-VLOOKUP(F62,B1_Calculs!$B$36:$AH$60,31),\"\")","v":""},{"$f":"IF(G62='E1_Données de projet'!$D$22+15,-VLOOKUP(G62,B1_Calculs!$B$36:$AH$60,31),\"\")","v":""},{"$f":"IF(H62='E1_Données de projet'!$D$22+15,-VLOOKUP(H62,B1_Calculs!$B$36:$AH$60,31),\"\")","v":""},{"$f":"IF(I62='E1_Données de projet'!$D$22+15,-VLOOKUP(I62,B1_Calculs!$B$36:$AH$60,31),\"\")","v":""},{"$f":"IF(J62='E1_Données de projet'!$D$22+15,-VLOOKUP(J62,B1_Calculs!$B$36:$AH$60,31),\"\")","v":""},{"$f":"IF(K62='E1_Données de projet'!$D$22+15,-VLOOKUP(K62,B1_Calculs!$B$36:$AH$60,31),\"\")","v":""},{"$f":"IF(L62='E1_Données de projet'!$D$22+15,-VLOOKUP(L62,B1_Calculs!$B$36:$AH$60,31),\"\")","v":""},{"$f":"IF(M62='E1_Données de projet'!$D$22+15,-VLOOKUP(M62,B1_Calculs!$B$36:$AH$60,31),\"\")","v":""},{"$f":"IF(N62='E1_Données de projet'!$D$22+15,-VLOOKUP(N62,B1_Calculs!$B$36:$AH$60,31),\"\")","v":""},{"$f":"IF(O62='E1_Données de projet'!$D$22+15,-VLOOKUP(O62,B1_Calculs!$B$36:$AH$60,31),\"\")","v":""},{"$f":"IF(P62='E1_Données de projet'!$D$22+15,-VLOOKUP(P62,B1_Calculs!$B$36:$AH$60,31),\"\")","v":""},{"$f":"IF(Q62='E1_Données de projet'!$D$22+15,-VLOOKUP(Q62,B1_Calculs!$B$36:$AH$60,31),\"\")","v":""},{"$f":"IF(R62='E1_Données de projet'!$D$22+15,-VLOOKUP(R62,B1_Calculs!$B$36:$AH$60,31),\"\")","v":""},{"$f":"IF(S62='E1_Données de projet'!$D$22+15,-VLOOKUP(S62,B1_Calculs!$B$36:$AH$60,31),\"\")","v":0},{"$f":"IF(T62='E1_Données de projet'!$D$22+15,-VLOOKUP(T62,B1_Calculs!$B$36:$AH$60,31),\"\")","v":""},{"$f":"IF(U62='E1_Données de projet'!$D$22+15,-VLOOKUP(U62,B1_Calculs!$B$36:$AH$60,31),\"\")","v":""},{"$f":"IF(V62='E1_Données de projet'!$D$22+15,-VLOOKUP(V62,B1_Calculs!$B$36:$AH$60,31),\"\")","v":""}]
[null,"Coûts","[CHF/an]"]
[925,"Exploitation et entretien","[CHF/an]",{"$f":"VLOOKUP('A2_Données VAN'!D$62,B1_Calculs!$B$36:$N$60,7)+VLOOKUP('A2_Données VAN'!D$62,B1_Calculs!$B$36:$N$60,8)+VLOOKUP('A2_Données VAN'!D$62,B1_Calculs!$B$36:$N$60,9)","v":0},{"$f":"VLOOKUP('A2_Données VAN'!E$62,B1_Calculs!$B$36:$N$60,7)+VLOOKUP('A2_Données VAN'!E$62,B1_Calculs!$B$36:$N$60,8)+VLOOKUP('A2_Données VAN'!E$62,B1_Calculs!$B$36:$N$60,9)","v":0},{"$f":"VLOOKUP('A2_Données VAN'!F$62,B1_Calculs!$B$36:$N$60,7)+VLOOKUP('A2_Données VAN'!F$62,B1_Calculs!$B$36:$N$60,8)+VLOOKUP('A2_Données VAN'!F$62,B1_Calculs!$B$36:$N$60,9)","v":0},{"$f":"VLOOKUP('A2_Données VAN'!G$62,B1_Calculs!$B$36:$N$60,7)+VLOOKUP('A2_Données VAN'!G$62,B1_Calculs!$B$36:$N$60,8)+VLOOKUP('A2_Données VAN'!G$62,B1_Calculs!$B$36:$N$60,9)","v":0},{"$f":"VLOOKUP('A2_Données VAN'!H$62,B1_Calculs!$B$36:$N$60,7)+VLOOKUP('A2_Données VAN'!H$62,B1_Calculs!$B$36:$N$60,8)+VLOOKUP('A2_Données VAN'!H$62,B1_Calculs!$B$36:$N$60,9)","v":0},{"$f":"VLOOKUP('A2_Données VAN'!I$62,B1_Calculs!$B$36:$N$60,7)+VLOOKUP('A2_Données VAN'!I$62,B1_Calculs!$B$36:$N$60,8)+VLOOKUP('A2_Données VAN'!I$62,B1_Calculs!$B$36:$N$60,9)","v":0},{"$f":"VLOOKUP('A2_Données VAN'!J$62,B1_Calculs!$B$36:$N$60,7)+VLOOKUP('A2_Données VAN'!J$62,B1_Calculs!$B$36:$N$60,8)+VLOOKUP('A2_Données VAN'!J$62,B1_Calculs!$B$36:$N$60,9)","v":0},{"$f":"VLOOKUP('A2_Données VAN'!K$62,B1_Calculs!$B$36:$N$60,7)+VLOOKUP('A2_Données VAN'!K$62,B1_Calculs!$B$36:$N$60,8)+VLOOKUP('A2_Données VAN'!K$62,B1_Calculs!$B$36:$N$60,9)","v":0},{"$f":"VLOOKUP('A2_Données VAN'!L$62,B1_Calculs!$B$36:$N$60,7)+VLOOKUP('A2_Données VAN'!L$62,B1_Calculs!$B$36:$N$60,8)+VLOOKUP('A2_Données VAN'!L$62,B1_Calculs!$B$36:$N$60,9)","v":0},{"$f":"VLOOKUP('A2_Données VAN'!M$62,B1_Calculs!$B$36:$N$60,7)+VLOOKUP('A2_Données VAN'!M$62,B1_Calculs!$B$36:$N$60,8)+VLOOKUP('A2_Données VAN'!M$62,B1_Calculs!$B$36:$N$60,9)","v":0},{"$f":"VLOOKUP('A2_Données VAN'!N$62,B1_Calculs!$B$36:$N$60,7)+VLOOKUP('A2_Données VAN'!N$62,B1_Calculs!$B$36:$N$60,8)+VLOOKUP('A2_Données VAN'!N$62,B1_Calculs!$B$36:$N$60,9)","v":0},{"$f":"VLOOKUP('A2_Données VAN'!O$62,B1_Calculs!$B$36:$N$60,7)+VLOOKUP('A2_Données VAN'!O$62,B1_Calculs!$B$36:$N$60,8)+VLOOKUP('A2_Données VAN'!O$62,B1_Calculs!$B$36:$N$60,9)","v":0},{"$f":"VLOOKUP('A2_Données VAN'!P$62,B1_Calculs!$B$36:$N$60,7)+VLOOKUP('A2_Données VAN'!P$62,B1_Calculs!$B$36:$N$60,8)+VLOOKUP('A2_Données VAN'!P$62,B1_Calculs!$B$36:$N$60,9)","v":0},{"$f":"VLOOKUP('A2_Données VAN'!Q$62,B1_Calculs!$B$36:$N$60,7)+VLOOKUP('A2_Données VAN'!Q$62,B1_Calculs!$B$36:$N$60,8)+VLOOKUP('A2_Données VAN'!Q$62,B1_Calculs!$B$36:$N$60,9)","v":0},{"$f":"VLOOKUP('A2_Données VAN'!R$62,B1_Calculs!$B$36:$N$60,7)+VLOOKUP('A2_Données VAN'!R$62,B1_Calculs!$B$36:$N$60,8)+VLOOKUP('A2_Données VAN'!R$62,B1_Calculs!$B$36:$N$60,9)","v":0},{"$f":"VLOOKUP('A2_Données VAN'!S$62,B1_Calculs!$B$36:$N$60,7)+VLOOKUP('A2_Données VAN'!S$62,B1_Calculs!$B$36:$N$60,8)+VLOOKUP('A2_Données VAN'!S$62,B1_Calculs!$B$36:$N$60,9)","v":0},{"$f":"VLOOKUP('A2_Données VAN'!T$62,B1_Calculs!$B$36:$N$60,7)+VLOOKUP('A2_Données VAN'!T$62,B1_Calculs!$B$36:$N$60,8)+VLOOKUP('A2_Données VAN'!T$62,B1_Calculs!$B$36:$N$60,9)","v":0},{"$f":"VLOOKUP('A2_Données VAN'!U$62,B1_Calculs!$B$36:$N$60,7)+VLOOKUP('A2_Données VAN'!U$62,B1_Calculs!$B$36:$N$60,8)+VLOOKUP('A2_Données VAN'!U$62,B1_Calculs!$B$36:$N$60,9)","v":0},{"$f":"VLOOKUP('A2_Données VAN'!V$62,B1_Calculs!$B$36:$N$60,7)+VLOOKUP('A2_Données VAN'!V$62,B1_Calculs!$B$36:$N$60,8)+VLOOKUP('A2_Données VAN'!V$62,B1_Calculs!$B$36:$N$60,9)","v":0}]
[926,"Coûts d'énergie","[CHF/an]",{"$f":"VLOOKUP('A2_Données VAN'!D$62,B1_Calculs!$B$36:$N$60,4)+VLOOKUP('A2_Données VAN'!D$62,B1_Calculs!$B$36:$N$60,5)+VLOOKUP('A2_Données VAN'!D$62,B1_Calculs!$B$36:$N$60,6)","v":0},{"$f":"VLOOKUP('A2_Données VAN'!E$62,B1_Calculs!$B$36:$N$60,4)+VLOOKUP('A2_Données VAN'!E$62,B1_Calculs!$B$36:$N$60,5)+VLOOKUP('A2_Données VAN'!E$62,B1_Calculs!$B$36:$N$60,6)","v":0},{"$f":"VLOOKUP('A2_Données VAN'!F$62,B1_Calculs!$B$36:$N$60,4)+VLOOKUP('A2_Données VAN'!F$62,B1_Calculs!$B$36:$N$60,5)+VLOOKUP('A2_Données VAN'!F$62,B1_Calculs!$B$36:$N$60,6)","v":0},{"$f":"VLOOKUP('A2_Données VAN'!G$62,B1_Calculs!$B$36:$N$60,4)+VLOOKUP('A2_Données VAN'!G$62,B1_Calculs!$B$36:$N$60,5)+VLOOKUP('A2_Données VAN'!G$62,B1_Calculs!$B$36:$N$60,6)","v":0},{"$f":"VLOOKUP('A2_Données VAN'!H$62,B1_Calculs!$B$36:$N$60,4)+VLOOKUP('A2_Données VAN'!H$62,B1_Calculs!$B$36:$N$60,5)+VLOOKUP('A2_Données VAN'!H$62,B1_Calculs!$B$36:$N$60,6)","v":0},{"$f":"VLOOKUP('A2_Données VAN'!I$62,B1_Calculs!$B$36:$N$60,4)+VLOOKUP('A2_Données VAN'!I$62,B1_Calculs!$B$36:$N$60,5)+VLOOKUP('A2_Données VAN'!I$62,B1_Calculs!$B$36:$N$60,6)","v":0},{"$f":"VLOOKUP('A2_Données VAN'!J$62,B1_Calculs!$B$36:$N$60,4)+VLOOKUP('A2_Données VAN'!J$62,B1_Calculs!$B$36:$N$60,5)+VLOOKUP('A2_Données VAN'!J$62,B1_Calculs!$B$36:$N$60,6)","v":0},{"$f":"VLOOKUP('A2_Données VAN'!K$62,B1_Calculs!$B$36:$N$60,4)+VLOOKUP('A2_Données VAN'!K$62,B1_Calculs!$B$36:$N$60,5)+VLOOKUP('A2_Données VAN'!K$62,B1_Calculs!$B$36:$N$60,6)","v":0},{"$f":"VLOOKUP('A2_Données VAN'!L$62,B1_Calculs!$B$36:$N$60,4)+VLOOKUP('A2_Données VAN'!L$62,B1_Calculs!$B$36:$N$60,5)+VLOOKUP('A2_Données VAN'!L$62,B1_Calculs!$B$36:$N$60,6)","v":0},{"$f":"VLOOKUP('A2_Données VAN'!M$62,B1_Calculs!$B$36:$N$60,4)+VLOOKUP('A2_Données VAN'!M$62,B1_Calculs!$B$36:$N$60,5)+VLOOKUP('A2_Données VAN'!M$62,B1_Calculs!$B$36:$N$60,6)","v":0},{"$f":"VLOOKUP('A2_Données VAN'!N$62,B1_Calculs!$B$36:$N$60,4)+VLOOKUP('A2_Données VAN'!N$62,B1_Calculs!$B$36:$N$60,5)+VLOOKUP('A2_Données VAN'!N$62,B1_Calculs!$B$36:$N$60,6)","v":0},{"$f":"VLOOKUP('A2_Données VAN'!O$62,B1_Calculs!$B$36:$N$60,4)+VLOOKUP('A2_Données VAN'!O$62,B1_Calculs!$B$36:$N$60,5)+VLOOKUP('A2_Données VAN'!O$62,B1_Calculs!$B$36:$N$60,6)","v":0},{"$f":"VLOOKUP('A2_Données VAN'!P$62,B1_Calculs!$B$36:$N$60,4)+VLOOKUP('A2_Données VAN'!P$62,B1_Calculs!$B$36:$N$60,5)+VLOOKUP('A2_Données VAN'!P$62,B1_Calculs!$B$36:$N$60,6)","v":0},{"$f":"VLOOKUP('A2_Données VAN'!Q$62,B1_Calculs!$B$36:$N$60,4)+VLOOKUP('A2_Données VAN'!Q$62,B1_Calculs!$B$36:$N$60,5)+VLOOKUP('A2_Données VAN'!Q$62,B1_Calculs!$B$36:$N$60,6)","v":0},{"$f":"VLOOKUP('A2_Données VAN'!R$62,B1_Calculs!$B$36:$N$60,4)+VLOOKUP('A2_Données VAN'!R$62,B1_Calculs!$B$36:$N$60,5)+VLOOKUP('A2_Données VAN'!R$62,B1_Calculs!$B$36:$N$60,6)","v":0},{"$f":"VLOOKUP('A2_Données VAN'!S$62,B1_Calculs!$B$36:$N$60,4)+VLOOKUP('A2_Données VAN'!S$62,B1_Calculs!$B$36:$N$60,5)+VLOOKUP('A2_Données VAN'!S$62,B1_Calculs!$B$36:$N$60,6)","v":0},{"$f":"VLOOKUP('A2_Données VAN'!T$62,B1_Calculs!$B$36:$N$60,4)+VLOOKUP('A2_Données VAN'!T$62,B1_Calculs!$B$36:$N$60,5)+VLOOKUP('A2_Données VAN'!T$62,B1_Calculs!$B$36:$N$60,6)","v":0},{"$f":"VLOOKUP('A2_Données VAN'!U$62,B1_Calculs!$B$36:$N$60,4)+VLOOKUP('A2_Données VAN'!U$62,B1_Calculs!$B$36:$N$60,5)+VLOOKUP('A2_Données VAN'!U$62,B1_Calculs!$B$36:$N$60,6)","v":0},{"$f":"VLOOKUP('A2_Données VAN'!V$62,B1_Calculs!$B$36:$N$60,4)+VLOOKUP('A2_Données VAN'!V$62,B1_Calculs!$B$36:$N$60,5)+VLOOKUP('A2_Données VAN'!V$62,B1_Calculs!$B$36:$N$60,6)","v":0}]
[null,"Total dépenses annuelles","[CHF/an]"]
[]
[null,"Revenus (hors indemnité)"]
[927,"Contributions de raccordement / revenus exceptionnels","[CHF/an]",{"$f":"VLOOKUP('A2_Données VAN'!D$62,B1_Calculs!$B$36:$T$60,16)","v":0},{"$f":"VLOOKUP('A2_Données VAN'!E$62,B1_Calculs!$B$36:$T$60,16)","v":0},{"$f":"VLOOKUP('A2_Données VAN'!F$62,B1_Calculs!$B$36:$T$60,16)","v":0},{"$f":"VLOOKUP('A2_Données VAN'!G$62,B1_Calculs!$B$36:$T$60,16)","v":0},{"$f":"VLOOKUP('A2_Données VAN'!H$62,B1_Calculs!$B$36:$T$60,16)","v":0},{"$f":"VLOOKUP('A2_Données VAN'!I$62,B1_Calculs!$B$36:$T$60,16)","v":0},{"$f":"VLOOKUP('A2_Données VAN'!J$62,B1_Calculs!$B$36:$T$60,16)","v":0},{"$f":"VLOOKUP('A2_Données VAN'!K$62,B1_Calculs!$B$36:$T$60,16)","v":0},{"$f":"VLOOKUP('A2_Données VAN'!L$62,B1_Calculs!$B$36:$T$60,16)","v":0},{"$f":"VLOOKUP('A2_Données VAN'!M$62,B1_Calculs!$B$36:$T$60,16)","v":0},{"$f":"VLOOKUP('A2_Données VAN'!N$62,B1_Calculs!$B$36:$T$60,16)","v":0},{"$f":"VLOOKUP('A2_Données VAN'!O$62,B1_Calculs!$B$36:$T$60,16)","v":0},{"$f":"VLOOKUP('A2_Données VAN'!P$62,B1_Calculs!$B$36:$T$60,16)","v":0},{"$f":"VLOOKUP('A2_Données VAN'!Q$62,B1_Calculs!$B$36:$T$60,16)","v":0},{"$f":"VLOOKUP('A2_Données VAN'!R$62,B1_Calculs!$B$36:$T$60,16)","v":0},{"$f":"VLOOKUP('A2_Données VAN'!S$62,B1_Calculs!$B$36:$T$60,16)","v":0},{"$f":"VLOOKUP('A2_Données VAN'!T$62,B1_Calculs!$B$36:$T$60,16)","v":0},{"$f":"VLOOKUP('A2_Données VAN'!U$62,B1_Calculs!$B$36:$T$60,16)","v":0},{"$f":"VLOOKUP('A2_Données VAN'!V$62,B1_Calculs!$B$36:$T$60,16)","v":0}]
[928,"Ventes de chaleur / revenus récurrents","[CHF/an]",{"$f":"VLOOKUP('A2_Données VAN'!D$62,B1_Calculs!$B$36:$T$60,15)","v":0},{"$f":"VLOOKUP('A2_Données VAN'!E$62,B1_Calculs!$B$36:$T$60,15)","v":0},{"$f":"VLOOKUP('A2_Données VAN'!F$62,B1_Calculs!$B$36:$T$60,15)","v":0},{"$f":"VLOOKUP('A2_Données VAN'!G$62,B1_Calculs!$B$36:$T$60,15)","v":0},{"$f":"VLOOKUP('A2_Données VAN'!H$62,B1_Calculs!$B$36:$T$60,15)","v":0},{"$f":"VLOOKUP('A2_Données VAN'!I$62,B1_Calculs!$B$36:$T$60,15)","v":0},{"$f":"VLOOKUP('A2_Données VAN'!J$62,B1_Calculs!$B$36:$T$60,15)","v":0},{"$f":"VLOOKUP('A2_Données VAN'!K$62,B1_Calculs!$B$36:$T$60,15)","v":0},{"$f":"VLOOKUP('A2_Données VAN'!L$62,B1_Calculs!$B$36:$T$60,15)","v":0},{"$f":"VLOOKUP('A2_Données VAN'!M$62,B1_Calculs!$B$36:$T$60,15)","v":0},{"$f":"VLOOKUP('A2_Données VAN'!N$62,B1_Calculs!$B$36:$T$60,15)","v":0},{"$f":"VLOOKUP('A2_Données VAN'!O$62,B1_Calculs!$B$36:$T$60,15)","v":0},{"$f":"VLOOKUP('A2_Données VAN'!P$62,B1_Calculs!$B$36:$T$60,15)","v":0},{"$f":"VLOOKUP('A2_Données VAN'!Q$62,B1_Calculs!$B$36:$T$60,15)","v":0},{"$f":"VLOOKUP('A2_Données VAN'!R$62,B1_Calculs!$B$36:$T$60,15)","v":0},{"$f":"VLOOKUP('A2_Données VAN'!S$62,B1_Calculs!$B$36:$T$60,15)","v":0},{"$f":"VLOOKUP('A2_Données VAN'!T$62,B1_Calculs!$B$36:$T$60,15)","v":0},{"$f":"VLOOKUP('A2_Données VAN'!U$62,B1_Calculs!$B$36:$T$60,15)","v":0},{"$f":"VLOOKUP('A2_Données VAN'!V$62,B1_Calculs!$B$36:$T$60,15)","v":0}]
[929,"Subsides de tiers (canton, Confédération, commune)","[CHF/an]",{"$f":"((D62='E1_Données de projet'!$D$77)*'E1_Données de projet'!$D$76+(D62='E1_Données de projet'!$D$79)*'E1_Données de projet'!$D$78)*('A2_Données VAN'!D62>0)","v":0},{"$f":"((E62='E1_Données de projet'!$D$77)*'E1_Données de projet'!$D$76+(E62='E1_Données de projet'!$D$79)*'E1_Données de projet'!$D$78)*('A2_Données VAN'!E62>0)","v":0},{"$f":"((F62='E1_Données de projet'!$D$77)*'E1_Données de projet'!$D$76+(F62='E1_Données de projet'!$D$79)*'E1_Données de projet'!$D$78)*('A2_Données VAN'!F62>0)","v":0},{"$f":"((G62='E1_Données de projet'!$D$77)*'E1_Données de projet'!$D$76+(G62='E1_Données de projet'!$D$79)*'E1_Données de projet'!$D$78)*('A2_Données VAN'!G62>0)","v":0},{"$f":"((H62='E1_Données de projet'!$D$77)*'E1_Données de projet'!$D$76+(H62='E1_Données de projet'!$D$79)*'E1_Données de projet'!$D$78)*('A2_Données VAN'!H62>0)","v":0},{"$f":"((I62='E1_Données de projet'!$D$77)*'E1_Données de projet'!$D$76+(I62='E1_Données de projet'!$D$79)*'E1_Données de projet'!$D$78)*('A2_Données VAN'!I62>0)","v":0},{"$f":"((J62='E1_Données de projet'!$D$77)*'E1_Données de projet'!$D$76+(J62='E1_Données de projet'!$D$79)*'E1_Données de projet'!$D$78)*('A2_Données VAN'!J62>0)","v":0},{"$f":"((K62='E1_Données de projet'!$D$77)*'E1_Données de projet'!$D$76+(K62='E1_Données de projet'!$D$79)*'E1_Données de projet'!$D$78)*('A2_Données VAN'!K62>0)","v":0},{"$f":"((L62='E1_Données de projet'!$D$77)*'E1_Données de projet'!$D$76+(L62='E1_Données de projet'!$D$79)*'E1_Données de projet'!$D$78)*('A2_Données VAN'!L62>0)","v":0},{"$f":"((M62='E1_Données de projet'!$D$77)*'E1_Données de projet'!$D$76+(M62='E1_Données de projet'!$D$79)*'E1_Données de projet'!$D$78)*('A2_Données VAN'!M62>0)","v":0},{"$f":"((N62='E1_Données de projet'!$D$77)*'E1_Données de projet'!$D$76+(N62='E1_Données de projet'!$D$79)*'E1_Données de projet'!$D$78)*('A2_Données VAN'!N62>0)","v":0},{"$f":"((O62='E1_Données de projet'!$D$77)*'E1_Données de projet'!$D$76+(O62='E1_Données de projet'!$D$79)*'E1_Données de projet'!$D$78)*('A2_Données VAN'!O62>0)","v":0},{"$f":"((P62='E1_Données de projet'!$D$77)*'E1_Données de projet'!$D$76+(P62='E1_Données de projet'!$D$79)*'E1_Données de projet'!$D$78)*('A2_Données VAN'!P62>0)","v":0},{"$f":"((Q62='E1_Données de projet'!$D$77)*'E1_Données de projet'!$D$76+(Q62='E1_Données de projet'!$D$79)*'E1_Données de projet'!$D$78)*('A2_Données VAN'!Q62>0)","v":0},{"$f":"((R62='E1_Données de projet'!$D$77)*'E1_Données de projet'!$D$76+(R62='E1_Données de projet'!$D$79)*'E1_Données de projet'!$D$78)*('A2_Données VAN'!R62>0)","v":0},{"$f":"((S62='E1_Données de projet'!$D$77)*'E1_Données de projet'!$D$76+(S62='E1_Données de projet'!$D$79)*'E1_Données de projet'!$D$78)*('A2_Données VAN'!S62>0)","v":0},{"$f":"((T62='E1_Données de projet'!$D$77)*'E1_Données de projet'!$D$76+(T62='E1_Données de projet'!$D$79)*'E1_Données de projet'!$D$78)*('A2_Données VAN'!T62>0)","v":0},{"$f":"((U62='E1_Données de projet'!$D$77)*'E1_Données de projet'!$D$76+(U62='E1_Données de projet'!$D$79)*'E1_Données de projet'!$D$78)*('A2_Données VAN'!U62>0)","v":0},{"$f":"((V62='E1_Données de projet'!$D$77)*'E1_Données de projet'!$D$76+(V62='E1_Données de projet'!$D$79)*'E1_Données de projet'!$D$78)*('A2_Données VAN'!V62>0)","v":0}]
[]
[930,"Dépenses et recettes non prises en compte"]
[561,"Charges additionnelles","[CHF/an]",{"$f":"VLOOKUP('A2_Données VAN'!D$62,B1_Calculs!$B$36:$T$60,10)","v":0},{"$f":"VLOOKUP('A2_Données VAN'!E$62,B1_Calculs!$B$36:$T$60,10)","v":0},{"$f":"VLOOKUP('A2_Données VAN'!F$62,B1_Calculs!$B$36:$T$60,10)","v":0},{"$f":"VLOOKUP('A2_Données VAN'!G$62,B1_Calculs!$B$36:$T$60,10)","v":0},{"$f":"VLOOKUP('A2_Données VAN'!H$62,B1_Calculs!$B$36:$T$60,10)","v":0},{"$f":"VLOOKUP('A2_Données VAN'!I$62,B1_Calculs!$B$36:$T$60,10)","v":0},{"$f":"VLOOKUP('A2_Données VAN'!J$62,B1_Calculs!$B$36:$T$60,10)","v":0},{"$f":"VLOOKUP('A2_Données VAN'!K$62,B1_Calculs!$B$36:$T$60,10)","v":0},{"$f":"VLOOKUP('A2_Données VAN'!L$62,B1_Calculs!$B$36:$T$60,10)","v":0},{"$f":"VLOOKUP('A2_Données VAN'!M$62,B1_Calculs!$B$36:$T$60,10)","v":0},{"$f":"VLOOKUP('A2_Données VAN'!N$62,B1_Calculs!$B$36:$T$60,10)","v":0},{"$f":"VLOOKUP('A2_Données VAN'!O$62,B1_Calculs!$B$36:$T$60,10)","v":0},{"$f":"VLOOKUP('A2_Données VAN'!P$62,B1_Calculs!$B$36:$T$60,10)","v":0},{"$f":"VLOOKUP('A2_Données VAN'!Q$62,B1_Calculs!$B$36:$T$60,10)","v":0},{"$f":"VLOOKUP('A2_Données VAN'!R$62,B1_Calculs!$B$36:$T$60,10)","v":0},{"$f":"VLOOKUP('A2_Données VAN'!S$62,B1_Calculs!$B$36:$T$60,10)","v":0},{"$f":"VLOOKUP('A2_Données VAN'!T$62,B1_Calculs!$B$36:$T$60,10)","v":0},{"$f":"VLOOKUP('A2_Données VAN'!U$62,B1_Calculs!$B$36:$T$60,10)","v":0}]
[574,"Recettes additionnelles","[CHF/an]",{"$f":"VLOOKUP('A2_Données VAN'!D$62,B1_Calculs!$B$36:$T$60,18)","v":0},{"$f":"VLOOKUP('A2_Données VAN'!E$62,B1_Calculs!$B$36:$T$60,18)","v":0},{"$f":"VLOOKUP('A2_Données VAN'!F$62,B1_Calculs!$B$36:$T$60,18)","v":0},{"$f":"VLOOKUP('A2_Données VAN'!G$62,B1_Calculs!$B$36:$T$60,18)","v":0},{"$f":"VLOOKUP('A2_Données VAN'!H$62,B1_Calculs!$B$36:$T$60,18)","v":0},{"$f":"VLOOKUP('A2_Données VAN'!I$62,B1_Calculs!$B$36:$T$60,18)","v":0},{"$f":"VLOOKUP('A2_Données VAN'!J$62,B1_Calculs!$B$36:$T$60,18)","v":0},{"$f":"VLOOKUP('A2_Données VAN'!K$62,B1_Calculs!$B$36:$T$60,18)","v":0},{"$f":"VLOOKUP('A2_Données VAN'!L$62,B1_Calculs!$B$36:$T$60,18)","v":0},{"$f":"VLOOKUP('A2_Données VAN'!M$62,B1_Calculs!$B$36:$T$60,18)","v":0},{"$f":"VLOOKUP('A2_Données VAN'!N$62,B1_Calculs!$B$36:$T$60,18)","v":0},{"$f":"VLOOKUP('A2_Données VAN'!O$62,B1_Calculs!$B$36:$T$60,18)","v":0},{"$f":"VLOOKUP('A2_Données VAN'!P$62,B1_Calculs!$B$36:$T$60,18)","v":0},{"$f":"VLOOKUP('A2_Données VAN'!Q$62,B1_Calculs!$B$36:$T$60,18)","v":0},{"$f":"VLOOKUP('A2_Données VAN'!R$62,B1_Calculs!$B$36:$T$60,18)","v":0},{"$f":"VLOOKUP('A2_Données VAN'!S$62,B1_Calculs!$B$36:$T$60,18)","v":0},{"$f":"VLOOKUP('A2_Données VAN'!T$62,B1_Calculs!$B$36:$T$60,18)","v":0},{"$f":"VLOOKUP('A2_Données VAN'!U$62,B1_Calculs!$B$36:$T$60,18)","v":0}]